date,department/service,beneficiary,amount,summary of purpose,category,transaction number,SAP vendor number
01.04.2018,ADULT SOCIAL CARE,PINEAPPLE CONTRACTS UNLIMITED,441,ORIENT STREET,FURNITURE PURCHASE & REPAIR,5902297308,11003086
01.04.2018,ADULT SOCIAL CARE,MEDACS HOMECARE,"48,332.54",REABLEMENT SERVICE,HOMECARE - C&V,5902297131,11287415
01.04.2018,CHIEF EXECUTIVE,AFRO-BRAZILIAN ARTS & CULTURAL EXCHANGE INSTITUTE,396,CAPITAL PS (REGEN),CONSTRUCTION FEES,5902296878,1000072302
01.04.2018,CHILDREN'S SERVICES,WRIXONCARE SEVICES,"1,972.50",SEMI INDEPENDENT,OTHER PAYMENTS FOR CLIENTS,5902297451,1000013166
01.04.2018,COMMUNITIES,ACCESSIBLE TRAINING LTD,650,TENANTS FUND,TRAINING,5902296968,1000000705
01.04.2018,ENVIRONMENT DIRECTORATE,CIVICA UK LTD,"99,408.79",LICENSING,STATIONERY,5902296830,1730625
01.04.2018,ENVIRONMENT DIRECTORATE,IMPERIAL POLYTHENE PRODUCTS LTD,"1,232.00",MANAGEMENT TEAM,MATERIALS,5902297350,1000061299
01.04.2018,ENVIRONMENT DIRECTORATE,IMPERIAL POLYTHENE PRODUCTS LTD,"1,452.00",MANAGEMENT TEAM,MATERIALS,5902297351,1000061299
01.04.2018,ENVIRONMENT DIRECTORATE,CONWAY AECOM LTD,474.88,PROJECT SUPPORT,CONSULTANTS SERVICES,5902297219,1000071205
01.04.2018,F & C S EXCLUDING CORPORATE BUDGETS,DSI BILLING SERVICES LTD,951.07,ADMINISTRATIVE SUPPORT,POSTAGES,5902297109,1000058640
01.04.2018,HOUSING GENERAL FUND,LONDON BOROUGH OF BRENT,"46,394.37",CAPITAL PS (STRAT SERV),ICT ACQUISITION,5902297166,1000064734
01.04.2018,HOUSING GENERAL FUND,LONDON BOROUGH OF BRENT,"980,220.29",CAPITAL PS (STRAT SERV),ICT ACQUISITION,5902297164,1000064734
01.04.2018,HOUSING STRATEGY AND OPTIONS,SOLACE WOMEN'S AID,"14,000.00",HOMELESS & HOUSING OPTIONS MGT,PROFESSIONAL FEES,5902297547,1000057231
01.04.2018,LEISURE DIRECTORATE,KENT COUNTY COUNCIL - LASER,887.9,BURGESS SPORTS CENTRE,ELECTRICITY,5902296861,1000012926
01.04.2018,LEISURE DIRECTORATE,KENT COUNTY COUNCIL - LASER,351.53,DULWICH AREA TEAM,ELECTRICITY,5902296858,1000012926
01.04.2018,MODERNISATION HGF,SYED & QUINN LTD,400,ADULTS MULTI-AGENCY SAFEGUARDING TRNG,TRAINING,5902296730,1000029554
01.04.2018,MODERNISATION HGF,SYED & QUINN LTD,500,CSW - PROFESSIONAL DEVELOPMENT,TRAINING,5902296733,1000029554
01.04.2018,MODERNISATION HGF,MAJELLA GREENE & ASSOCIATES LTD,"1,716.00",CSW - PROFESSIONAL DEVELOPMENT,TRAINING,5902296708,1000049273
01.04.2018,MODERNISATION HGF,LONDON BOROUGH OF BRENT,"1,036,000.30",TECHNOLOGY,DATA COMMUNICATIONS,5902297164,1000064734
01.04.2018,MODERNISATION HGF,ITEC CONNECT LTD,"1,014.65",TECHNOLOGY,PRINTING,5902297232,1000080418
01.04.2018,MODERNISATION HGF,ITEC CONNECT LTD,"1,946.23",TECHNOLOGY,PRINTING,5902297235,1000080418
01.04.2018,MODERNISATION HGF,ITEC CONNECT LTD,"23,376.89",TECHNOLOGY,PRINTING,5902297235,1000080418
01.04.2018,PROPERTY SERVICES,STANBURY BUILDING SERVICES LTD,395,KENNINGTON WORKSHOPS,BUILDING R&M,5902297401,1000078207
01.04.2018,PROPERTY SERVICES,STANBURY BUILDING SERVICES LTD,795,KENNINGTON WORKSHOPS,BUILDING R&M,5902297405,1000078207
01.04.2018,REGENERATION,MACCREANOR LAVINGTON B V,"10,060.00",OKR MASTER PLANNING,PROFESSIONAL FEES,5902296554,1000080276
02.04.2018,ADULT SOCIAL CARE,ANCHOR TRUST,"87,344.59",PHY LTS 65+,RESIDENTIAL CARE,5902296853,11257534
02.04.2018,CENTRAL FUNCTIONS,CALFORD SEADEN LLP,"5,280.24",LEDBURY ESTATE,OTHER R&M,5902297261,1061592
02.04.2018,CHIEF EXECUTIVE,STEER DAVIES & GLEAVE LIMITED,"5,400.00",CAPITAL PS (REGEN),CONSTR'N SUB CONTRACT - NON CERTIFICATED,5902296711,1823348
02.04.2018,CHIEF EXECUTIVE,GLOBAL SURVEYS,"1,750.00",CAPITAL PS (REGEN),CONSTRUCTION FEES  - EXTERNAL,5902297025,11322761
02.04.2018,CHILDREN AND ADULT,RSK ENVIRONMENT LTD,"1,950.00",CAPITAL PS (EDUCATION),CONSTRUCTION FEES - QUANTITY SURVEYOR,5902297400,1000057186
02.04.2018,CHILDREN AND ADULT,RSK ENVIRONMENT LTD,"3,000.00",CAPITAL PS (EDUCATION),CONSTRUCTION FEES - QUANTITY SURVEYOR,5902297400,1000057186
02.04.2018,CHILDREN AND ADULT,RSK ENVIRONMENT LTD,"3,800.00",CAPITAL PS (EDUCATION),CONSTRUCTION FEES - QUANTITY SURVEYOR,5902297400,1000057186
02.04.2018,CHILDREN AND ADULT,RSK ENVIRONMENT LTD,"4,417.50",CAPITAL PS (EDUCATION),CONSTRUCTION FEES - QUANTITY SURVEYOR,5902297400,1000057186
02.04.2018,CHILDREN AND ADULT,RSK ENVIRONMENT LTD,"4,574.40",CAPITAL PS (EDUCATION),CONSTRUCTION FEES - QUANTITY SURVEYOR,5902297400,1000057186
02.04.2018,CHILDREN AND ADULT,RSK ENVIRONMENT LTD,"7,298.40",CAPITAL PS (EDUCATION),CONSTRUCTION FEES - QUANTITY SURVEYOR,5902297400,1000057186
02.04.2018,CHILDREN'S SERVICES,INTERSERVE HEALTHCARE,534.5,HOME 2 SCHOOL TRANSPORT,AGENCY STAFF,5902297297,1000049612
02.04.2018,ENVIRONMENT DIRECTORATE,F R JONES & SON LTD,276.17,NON HOUSING GROUNDS,EQUIPMENT PURCHASE & REPAIR,5902297411,1000037178
02.04.2018,HOUSING HRA,CALFORD SEADEN LLP,340.55,CAPITAL PS (HRA),CONSTRUCTION FEES  - EXTERNAL,5902297320,1061592
02.04.2018,LEISURE DIRECTORATE,AGENTIS WORKWEAR LTD,354.27,CREMATORIUM,"CLOTHING, UNIFORMS & LAUNDRY",5902297437,1000065561
02.04.2018,LEISURE DIRECTORATE,AGENTIS WORKWEAR LTD,390.26,CREMATORIUM,"CLOTHING, UNIFORMS & LAUNDRY",5902297434,1000065561
02.04.2018,LEISURE DIRECTORATE,VIP LABELS,655.5,LIBARIES DEVELOPMENT,MARKETING & PUBLICITY SERVICES,5902297317,1000027464
02.04.2018,LEISURE DIRECTORATE,REPLAY MAINTENANCE LTD,"1,300.00",SOUTHWARK AREA TEAM,OTHER R&M,5902297142,1000077895
02.04.2018,LEISURE DIRECTORATE,REPLAY MAINTENANCE LTD,"2,650.00",SOUTHWARK AREA TEAM,OTHER R&M,5902297142,1000077895
02.04.2018,MODERNISATION HGF,CAPITA SECURE INFORMATION,"16,087.25",TECHNOLOGY,PROFESSIONAL FEES,5902297162,1000070739
03.04.2018,ASSET MANAGEMENT,HODGE JONES & ALLEN,"-4,500.00",DISREPAIR,LEGAL FEES & COURT COSTS,2102800850,11011881
03.04.2018,ASSET MANAGEMENT,HODGE JONES & ALLEN,"4,500.00",DISREPAIR,LEGAL FEES & COURT COSTS,2102767689,11011881
03.04.2018,CENTRAL FUNCTIONS,KENT COUNTY COUNCIL - LASER,"12,307.74",HEATING ACCOUNT,GAS,5902292561,1000012926
03.04.2018,CENTRAL FUNCTIONS,KENT COUNTY COUNCIL - LASER,"445,519.96",HEATING ACCOUNT,GAS,5902292561,1000012926
03.04.2018,CENTRAL FUNCTIONS,GREENCROFT CONSULTING,"7,200.00",OPERATIONAL TEAM,AGENCY STAFF,5902297113,1000078147
03.04.2018,LEISURE DIRECTORATE,KENT COUNTY COUNCIL - LASER,"1,706.02",CREMATORIUM,ELECTRICITY,5902292627,1000012926
03.04.2018,LEISURE DIRECTORATE,KENT COUNTY COUNCIL - LASER,310.77,CREMATORIUM,GAS,5902292631,1000012926
03.04.2018,LEISURE DIRECTORATE,KENT COUNTY COUNCIL - LASER,"3,000.00",CREMATORIUM,GAS,5902292631,1000012926
04.04.2018,ADULT SOCIAL CARE,REDACTED PERSONAL DATA,600,APPOINTEESHIPS,OTHER PAYMENTS FOR CLIENTS,REDACTED,REDACTED
04.04.2018,ADULT SOCIAL CARE,REDACTED PERSONAL DATA,264.8,APPOINTEESHIPS,OTHER PAYMENTS FOR CLIENTS,REDACTED,REDACTED
04.04.2018,ADULT SOCIAL CARE,NESTOR PRIMECARE SERVICES LTD T/A ALLIED HEALTHCARE,"4,127.76",EXTRA CARE CONTRACT,HOMECARE - SPOT,5902297757,11098703
04.04.2018,ADULT SOCIAL CARE,ACT TOO LTD,600,LD LTS 18-64,DAYCARE,2102800829,1000053657
04.04.2018,ADULT SOCIAL CARE,CONTACT PROFESSIONALS,465,LD LTS 18-64,HOMECARE - SPOT,2102800820,1000057263
04.04.2018,ADULT SOCIAL CARE,CONTACT PROFESSIONALS,465,LD LTS 18-64,HOMECARE - SPOT,2102800827,1000057263
04.04.2018,ADULT SOCIAL CARE,CONTACT PROFESSIONALS,465,LD LTS 18-64,HOMECARE - SPOT,2102800828,1000057263
04.04.2018,ADULT SOCIAL CARE,CHOICE SUPPORT,293.92,LD LTS 18-64,SUPPORTED LIVING,2102800699,1104183
04.04.2018,ADULT SOCIAL CARE,CHOICE SUPPORT,293.92,LD LTS 18-64,SUPPORTED LIVING,2102800700,1104183
04.04.2018,ADULT SOCIAL CARE,RESOURCES FOR AUTISM,957.38,LD LTS 18-64,SUPPORTED LIVING,2102800826,1000062540
04.04.2018,ADULT SOCIAL CARE,CHOICE SUPPORT,"6,935.52",LD LTS 65+,SUPPORTED LIVING,2102800698,1104183
04.04.2018,ADULT SOCIAL CARE,LONDON CARE LTD,538.2,MEM LTS 65+,HOMECARE - C&V,2102800739,1000003398
04.04.2018,ADULT SOCIAL CARE,LONDON CARE LTD,643.19,MEM LTS 65+,HOMECARE - C&V,2102800762,1000003398
04.04.2018,ADULT SOCIAL CARE,LONDON CARE LTD,647.43,MEM LTS 65+,HOMECARE - C&V,2102800751,1000003398
04.04.2018,ADULT SOCIAL CARE,LONDON CARE LTD,689.24,MEM LTS 65+,HOMECARE - C&V,2102800786,1000003398
04.04.2018,ADULT SOCIAL CARE,CARE DIRECT UK LTD,565.39,MEM LTS 65+,HOMECARE - SPOT,2102800638,1000066322
04.04.2018,ADULT SOCIAL CARE,YOUTH GRACES (UK) LTD,261.98,MEM LTS 65+,HOMECARE - SPOT,2102800575,1000072524
04.04.2018,ADULT SOCIAL CARE,LONDON CARE LTD,891.28,MH LTS 65+,HOMECARE - C&V,2102800730,1000003398
04.04.2018,ADULT SOCIAL CARE,METRO HOMECARE LTD,386.12,MH LTS 65+,HOMECARE - SPOT,2102800538,1000070695
04.04.2018,ADULT SOCIAL CARE,LONDON CARE LTD,268.96,PHY LTS 18-64,HOMECARE - C&V,2102800779,1000003398
04.04.2018,ADULT SOCIAL CARE,LONDON CARE LTD,269.08,PHY LTS 18-64,HOMECARE - C&V,2102800745,1000003398
04.04.2018,ADULT SOCIAL CARE,LONDON CARE LTD,319.44,PHY LTS 18-64,HOMECARE - C&V,2102800810,1000003398
04.04.2018,ADULT SOCIAL CARE,LONDON CARE LTD,336.2,PHY LTS 18-64,HOMECARE - C&V,2102800706,1000003398
04.04.2018,ADULT SOCIAL CARE,LONDON CARE LTD,353.08,PHY LTS 18-64,HOMECARE - C&V,2102800747,1000003398
04.04.2018,ADULT SOCIAL CARE,LONDON CARE LTD,369.92,PHY LTS 18-64,HOMECARE - C&V,2102800713,1000003398
04.04.2018,ADULT SOCIAL CARE,LONDON CARE LTD,458.15,PHY LTS 18-64,HOMECARE - C&V,2102800752,1000003398
04.04.2018,ADULT SOCIAL CARE,LONDON CARE LTD,508.57,PHY LTS 18-64,HOMECARE - C&V,2102800763,1000003398
04.04.2018,ADULT SOCIAL CARE,LONDON CARE LTD,521.11,PHY LTS 18-64,HOMECARE - C&V,2102800788,1000003398
04.04.2018,ADULT SOCIAL CARE,LONDON CARE LTD,592.62,PHY LTS 18-64,HOMECARE - C&V,2102800732,1000003398
04.04.2018,ADULT SOCIAL CARE,LONDON CARE LTD,613.76,PHY LTS 18-64,HOMECARE - C&V,2102800708,1000003398
04.04.2018,ADULT SOCIAL CARE,LONDON CARE LTD,706.16,PHY LTS 18-64,HOMECARE - C&V,2102800701,1000003398
04.04.2018,ADULT SOCIAL CARE,LONDON CARE LTD,882.87,PHY LTS 18-64,HOMECARE - C&V,2102800709,1000003398
04.04.2018,ADULT SOCIAL CARE,LONDON CARE LTD,"1,000.58",PHY LTS 18-64,HOMECARE - C&V,2102800782,1000003398
04.04.2018,ADULT SOCIAL CARE,LONDON CARE LTD,"1,118.35",PHY LTS 18-64,HOMECARE - C&V,2102800725,1000003398
04.04.2018,ADULT SOCIAL CARE,LONDON CARE LTD,"1,538.76",PHY LTS 18-64,HOMECARE - C&V,2102800770,1000003398
04.04.2018,ADULT SOCIAL CARE,LONDON CARE LTD,"2,186.28",PHY LTS 18-64,HOMECARE - C&V,2102800790,1000003398
04.04.2018,ADULT SOCIAL CARE,LONDON CARE LTD,"2,425.39",PHY LTS 18-64,HOMECARE - C&V,2102800800,1000003398
04.04.2018,ADULT SOCIAL CARE,YOUTH GRACES (UK) LTD,413.68,PHY LTS 18-64,HOMECARE - C&V,2102800559,1000072524
04.04.2018,ADULT SOCIAL CARE,LONDON CARE LTD,348.84,PHY LTS 18-64,HOMECARE - SPOT,2102800774,1000003398
04.04.2018,ADULT SOCIAL CARE,CARE DIRECT UK LTD,262.01,PHY LTS 18-64,HOMECARE - SPOT,2102800651,1000066322
04.04.2018,ADULT SOCIAL CARE,CARE DIRECT UK LTD,268.91,PHY LTS 18-64,HOMECARE - SPOT,2102800635,1000066322
04.04.2018,ADULT SOCIAL CARE,CARE DIRECT UK LTD,310.28,PHY LTS 18-64,HOMECARE - SPOT,2102800612,1000066322
04.04.2018,ADULT SOCIAL CARE,CARE DIRECT UK LTD,417.25,PHY LTS 18-64,HOMECARE - SPOT,2102800641,1000066322
04.04.2018,ADULT SOCIAL CARE,METRO HOMECARE LTD,262.01,PHY LTS 18-64,HOMECARE - SPOT,2102800513,1000070695
04.04.2018,ADULT SOCIAL CARE,METRO HOMECARE LTD,289.59,PHY LTS 18-64,HOMECARE - SPOT,2102800500,1000070695
04.04.2018,ADULT SOCIAL CARE,METRO HOMECARE LTD,310.28,PHY LTS 18-64,HOMECARE - SPOT,2102800478,1000070695
04.04.2018,ADULT SOCIAL CARE,METRO HOMECARE LTD,330.96,PHY LTS 18-64,HOMECARE - SPOT,2102800498,1000070695
04.04.2018,ADULT SOCIAL CARE,METRO HOMECARE LTD,337.86,PHY LTS 18-64,HOMECARE - SPOT,2102800503,1000070695
04.04.2018,ADULT SOCIAL CARE,METRO HOMECARE LTD,455.07,PHY LTS 18-64,HOMECARE - SPOT,2102800509,1000070695
04.04.2018,ADULT SOCIAL CARE,METRO HOMECARE LTD,703.29,PHY LTS 18-64,HOMECARE - SPOT,2102800481,1000070695
04.04.2018,ADULT SOCIAL CARE,METRO HOMECARE LTD,744.66,PHY LTS 18-64,HOMECARE - SPOT,2102800531,1000070695
04.04.2018,ADULT SOCIAL CARE,METRO HOMECARE LTD,896.35,PHY LTS 18-64,HOMECARE - SPOT,2102800512,1000070695
04.04.2018,ADULT SOCIAL CARE,METRO HOMECARE LTD,896.35,PHY LTS 18-64,HOMECARE - SPOT,2102800525,1000070695
04.04.2018,ADULT SOCIAL CARE,METRO HOMECARE LTD,896.35,PHY LTS 18-64,HOMECARE - SPOT,2102800526,1000070695
04.04.2018,ADULT SOCIAL CARE,YOUTH GRACES (UK) LTD,455.14,PHY LTS 18-64,HOMECARE - SPOT,2102800601,1000072524
04.04.2018,ADULT SOCIAL CARE,GREENWRITE HEALTHCARE LTD,303.38,PHY LTS 18-64,HOMECARE - SPOT,2102800472,1000080718
04.04.2018,ADULT SOCIAL CARE,GREENWRITE HEALTHCARE LTD,455.07,PHY LTS 18-64,HOMECARE - SPOT,2102800470,1000080718
04.04.2018,ADULT SOCIAL CARE,GREENWRITE HEALTHCARE LTD,634.34,PHY LTS 18-64,HOMECARE - SPOT,2102800466,1000080718
04.04.2018,ADULT SOCIAL CARE,GREENWRITE HEALTHCARE LTD,"1,351.42",PHY LTS 18-64,HOMECARE - SPOT,2102800465,1000080718
04.04.2018,ADULT SOCIAL CARE,AMBULANCE SOLUTIONS,570,PHY LTS 65+,CLIENT TRANSPORT,2102800815,1000080628
04.04.2018,ADULT SOCIAL CARE,LONDON CARE LTD,260.71,PHY LTS 65+,HOMECARE - C&V,2102800716,1000003398
04.04.2018,ADULT SOCIAL CARE,LONDON CARE LTD,268.96,PHY LTS 65+,HOMECARE - C&V,2102800715,1000003398
04.04.2018,ADULT SOCIAL CARE,LONDON CARE LTD,277.42,PHY LTS 65+,HOMECARE - C&V,2102800805,1000003398
04.04.2018,ADULT SOCIAL CARE,LONDON CARE LTD,285.79,PHY LTS 65+,HOMECARE - C&V,2102800717,1000003398
04.04.2018,ADULT SOCIAL CARE,LONDON CARE LTD,348.62,PHY LTS 65+,HOMECARE - C&V,2102800771,1000003398
04.04.2018,ADULT SOCIAL CARE,LONDON CARE LTD,349.76,PHY LTS 65+,HOMECARE - C&V,2102800746,1000003398
04.04.2018,ADULT SOCIAL CARE,LONDON CARE LTD,353.08,PHY LTS 65+,HOMECARE - C&V,2102800736,1000003398
04.04.2018,ADULT SOCIAL CARE,LONDON CARE LTD,365.68,PHY LTS 65+,HOMECARE - C&V,2102800724,1000003398
04.04.2018,ADULT SOCIAL CARE,LONDON CARE LTD,394.92,PHY LTS 65+,HOMECARE - C&V,2102800733,1000003398
04.04.2018,ADULT SOCIAL CARE,LONDON CARE LTD,403.5,PHY LTS 65+,HOMECARE - C&V,2102800766,1000003398
04.04.2018,ADULT SOCIAL CARE,LONDON CARE LTD,403.6,PHY LTS 65+,HOMECARE - C&V,2102800811,1000003398
04.04.2018,ADULT SOCIAL CARE,LONDON CARE LTD,415.62,PHY LTS 65+,HOMECARE - C&V,2102800758,1000003398
04.04.2018,ADULT SOCIAL CARE,LONDON CARE LTD,416.05,PHY LTS 65+,HOMECARE - C&V,2102800794,1000003398
04.04.2018,ADULT SOCIAL CARE,LONDON CARE LTD,437.32,PHY LTS 65+,HOMECARE - C&V,2102800803,1000003398
04.04.2018,ADULT SOCIAL CARE,LONDON CARE LTD,453.87,PHY LTS 65+,HOMECARE - C&V,2102800781,1000003398
04.04.2018,ADULT SOCIAL CARE,LONDON CARE LTD,470.96,PHY LTS 65+,HOMECARE - C&V,2102800813,1000003398
04.04.2018,ADULT SOCIAL CARE,LONDON CARE LTD,491.79,PHY LTS 65+,HOMECARE - C&V,2102800775,1000003398
04.04.2018,ADULT SOCIAL CARE,LONDON CARE LTD,491.85,PHY LTS 65+,HOMECARE - C&V,2102800797,1000003398
04.04.2018,ADULT SOCIAL CARE,LONDON CARE LTD,496.13,PHY LTS 65+,HOMECARE - C&V,2102800785,1000003398
04.04.2018,ADULT SOCIAL CARE,LONDON CARE LTD,546.59,PHY LTS 65+,HOMECARE - C&V,2102800742,1000003398
04.04.2018,ADULT SOCIAL CARE,LONDON CARE LTD,554.75,PHY LTS 65+,HOMECARE - C&V,2102800804,1000003398
04.04.2018,ADULT SOCIAL CARE,LONDON CARE LTD,571.63,PHY LTS 65+,HOMECARE - C&V,2102800768,1000003398
04.04.2018,ADULT SOCIAL CARE,LONDON CARE LTD,580.15,PHY LTS 65+,HOMECARE - C&V,2102800754,1000003398
04.04.2018,ADULT SOCIAL CARE,LONDON CARE LTD,588.56,PHY LTS 65+,HOMECARE - C&V,2102800750,1000003398
04.04.2018,ADULT SOCIAL CARE,LONDON CARE LTD,588.56,PHY LTS 65+,HOMECARE - C&V,2102800807,1000003398
04.04.2018,ADULT SOCIAL CARE,LONDON CARE LTD,680.94,PHY LTS 65+,HOMECARE - C&V,2102800735,1000003398
04.04.2018,ADULT SOCIAL CARE,LONDON CARE LTD,686.53,PHY LTS 65+,HOMECARE - C&V,2102800712,1000003398
04.04.2018,ADULT SOCIAL CARE,LONDON CARE LTD,693.71,PHY LTS 65+,HOMECARE - C&V,2102800743,1000003398
04.04.2018,ADULT SOCIAL CARE,LONDON CARE LTD,706.44,PHY LTS 65+,HOMECARE - C&V,2102800741,1000003398
04.04.2018,ADULT SOCIAL CARE,LONDON CARE LTD,723.04,PHY LTS 65+,HOMECARE - C&V,2102800784,1000003398
04.04.2018,ADULT SOCIAL CARE,LONDON CARE LTD,743.5,PHY LTS 65+,HOMECARE - C&V,2102800711,1000003398
04.04.2018,ADULT SOCIAL CARE,LONDON CARE LTD,748.43,PHY LTS 65+,HOMECARE - C&V,2102800759,1000003398
04.04.2018,ADULT SOCIAL CARE,LONDON CARE LTD,756.6,PHY LTS 65+,HOMECARE - C&V,2102800753,1000003398
04.04.2018,ADULT SOCIAL CARE,LONDON CARE LTD,903.53,PHY LTS 65+,HOMECARE - C&V,2102800721,1000003398
04.04.2018,ADULT SOCIAL CARE,LONDON CARE LTD,908.04,PHY LTS 65+,HOMECARE - C&V,2102800749,1000003398
04.04.2018,ADULT SOCIAL CARE,LONDON CARE LTD,924.8,PHY LTS 65+,HOMECARE - C&V,2102800792,1000003398
04.04.2018,ADULT SOCIAL CARE,LONDON CARE LTD,933.07,PHY LTS 65+,HOMECARE - C&V,2102800780,1000003398
04.04.2018,ADULT SOCIAL CARE,LONDON CARE LTD,953.85,PHY LTS 65+,HOMECARE - C&V,2102800806,1000003398
04.04.2018,ADULT SOCIAL CARE,LONDON CARE LTD,975.24,PHY LTS 65+,HOMECARE - C&V,2102800814,1000003398
04.04.2018,ADULT SOCIAL CARE,LONDON CARE LTD,992.16,PHY LTS 65+,HOMECARE - C&V,2102800761,1000003398
04.04.2018,ADULT SOCIAL CARE,LONDON CARE LTD,"1,000.65",PHY LTS 65+,HOMECARE - C&V,2102800808,1000003398
04.04.2018,ADULT SOCIAL CARE,LONDON CARE LTD,"1,008.88",PHY LTS 65+,HOMECARE - C&V,2102800802,1000003398
04.04.2018,ADULT SOCIAL CARE,LONDON CARE LTD,"1,042.52",PHY LTS 65+,HOMECARE - C&V,2102800705,1000003398
04.04.2018,ADULT SOCIAL CARE,LONDON CARE LTD,"1,164.02",PHY LTS 65+,HOMECARE - C&V,2102800765,1000003398
04.04.2018,ADULT SOCIAL CARE,LONDON CARE LTD,"1,194.00",PHY LTS 65+,HOMECARE - C&V,2102800778,1000003398
04.04.2018,ADULT SOCIAL CARE,LONDON CARE LTD,"1,311.62",PHY LTS 65+,HOMECARE - C&V,2102800748,1000003398
04.04.2018,ADULT SOCIAL CARE,LONDON CARE LTD,"1,509.15",PHY LTS 65+,HOMECARE - C&V,2102800767,1000003398
04.04.2018,ADULT SOCIAL CARE,LONDON CARE LTD,"1,614.44",PHY LTS 65+,HOMECARE - C&V,2102800703,1000003398
04.04.2018,ADULT SOCIAL CARE,LONDON CARE LTD,"1,950.02",PHY LTS 65+,HOMECARE - C&V,2102800757,1000003398
04.04.2018,ADULT SOCIAL CARE,LONDON CARE LTD,"2,169.52",PHY LTS 65+,HOMECARE - C&V,2102800801,1000003398
04.04.2018,ADULT SOCIAL CARE,LONDON CARE LTD,"2,354.24",PHY LTS 65+,HOMECARE - C&V,2102800704,1000003398
04.04.2018,ADULT SOCIAL CARE,LONDON CARE LTD,"2,589.44",PHY LTS 65+,HOMECARE - C&V,2102800787,1000003398
04.04.2018,ADULT SOCIAL CARE,LONDON CARE LTD,"2,618.84",PHY LTS 65+,HOMECARE - C&V,2102800723,1000003398
04.04.2018,ADULT SOCIAL CARE,METRO HOMECARE LTD,358.54,PHY LTS 65+,HOMECARE - C&V,2102800507,1000070695
04.04.2018,ADULT SOCIAL CARE,METRO HOMECARE LTD,365.44,PHY LTS 65+,HOMECARE - C&V,2102800487,1000070695
04.04.2018,ADULT SOCIAL CARE,LONDON CARE LTD,454.14,PHY LTS 65+,HOMECARE - SPOT,2102800773,1000003398
04.04.2018,ADULT SOCIAL CARE,LONDON CARE LTD,483.47,PHY LTS 65+,HOMECARE - SPOT,2102800729,1000003398
04.04.2018,ADULT SOCIAL CARE,CARE DIRECT UK LTD,265.46,PHY LTS 65+,HOMECARE - SPOT,2102800627,1000066322
04.04.2018,ADULT SOCIAL CARE,CARE DIRECT UK LTD,265.46,PHY LTS 65+,HOMECARE - SPOT,2102800687,1000066322
04.04.2018,ADULT SOCIAL CARE,CARE DIRECT UK LTD,313.72,PHY LTS 65+,HOMECARE - SPOT,2102800685,1000066322
04.04.2018,ADULT SOCIAL CARE,CARE DIRECT UK LTD,358.54,PHY LTS 65+,HOMECARE - SPOT,2102800657,1000066322
04.04.2018,ADULT SOCIAL CARE,CARE DIRECT UK LTD,358.54,PHY LTS 65+,HOMECARE - SPOT,2102800681,1000066322
04.04.2018,ADULT SOCIAL CARE,CARE DIRECT UK LTD,399.91,PHY LTS 65+,HOMECARE - SPOT,2102800659,1000066322
04.04.2018,ADULT SOCIAL CARE,CARE DIRECT UK LTD,406.81,PHY LTS 65+,HOMECARE - SPOT,2102800692,1000066322
04.04.2018,ADULT SOCIAL CARE,CARE DIRECT UK LTD,434.39,PHY LTS 65+,HOMECARE - SPOT,2102800616,1000066322
04.04.2018,ADULT SOCIAL CARE,CARE DIRECT UK LTD,530.92,PHY LTS 65+,HOMECARE - SPOT,2102800653,1000066322
04.04.2018,ADULT SOCIAL CARE,CARE DIRECT UK LTD,675.71,PHY LTS 65+,HOMECARE - SPOT,2102800661,1000066322
04.04.2018,ADULT SOCIAL CARE,CARE DIRECT UK LTD,703.29,PHY LTS 65+,HOMECARE - SPOT,2102800682,1000066322
04.04.2018,ADULT SOCIAL CARE,METRO HOMECARE LTD,255.12,PHY LTS 65+,HOMECARE - SPOT,2102800506,1000070695
04.04.2018,ADULT SOCIAL CARE,METRO HOMECARE LTD,289.59,PHY LTS 65+,HOMECARE - SPOT,2102800482,1000070695
04.04.2018,ADULT SOCIAL CARE,METRO HOMECARE LTD,310.28,PHY LTS 65+,HOMECARE - SPOT,2102800499,1000070695
04.04.2018,ADULT SOCIAL CARE,METRO HOMECARE LTD,324.07,PHY LTS 65+,HOMECARE - SPOT,2102800477,1000070695
04.04.2018,ADULT SOCIAL CARE,METRO HOMECARE LTD,337.86,PHY LTS 65+,HOMECARE - SPOT,2102800524,1000070695
04.04.2018,ADULT SOCIAL CARE,METRO HOMECARE LTD,344.75,PHY LTS 65+,HOMECARE - SPOT,2102800488,1000070695
04.04.2018,ADULT SOCIAL CARE,METRO HOMECARE LTD,358.54,PHY LTS 65+,HOMECARE - SPOT,2102800504,1000070695
04.04.2018,ADULT SOCIAL CARE,METRO HOMECARE LTD,406.81,PHY LTS 65+,HOMECARE - SPOT,2102800533,1000070695
04.04.2018,ADULT SOCIAL CARE,METRO HOMECARE LTD,413.7,PHY LTS 65+,HOMECARE - SPOT,2102800483,1000070695
04.04.2018,ADULT SOCIAL CARE,METRO HOMECARE LTD,427.49,PHY LTS 65+,HOMECARE - SPOT,2102800515,1000070695
04.04.2018,ADULT SOCIAL CARE,METRO HOMECARE LTD,427.49,PHY LTS 65+,HOMECARE - SPOT,2102800516,1000070695
04.04.2018,ADULT SOCIAL CARE,METRO HOMECARE LTD,434.39,PHY LTS 65+,HOMECARE - SPOT,2102800522,1000070695
04.04.2018,ADULT SOCIAL CARE,METRO HOMECARE LTD,434.39,PHY LTS 65+,HOMECARE - SPOT,2102800534,1000070695
04.04.2018,ADULT SOCIAL CARE,METRO HOMECARE LTD,489.55,PHY LTS 65+,HOMECARE - SPOT,2102800517,1000070695
04.04.2018,ADULT SOCIAL CARE,METRO HOMECARE LTD,489.55,PHY LTS 65+,HOMECARE - SPOT,2102800528,1000070695
04.04.2018,ADULT SOCIAL CARE,METRO HOMECARE LTD,544.71,PHY LTS 65+,HOMECARE - SPOT,2102800497,1000070695
04.04.2018,ADULT SOCIAL CARE,METRO HOMECARE LTD,558.5,PHY LTS 65+,HOMECARE - SPOT,2102800527,1000070695
04.04.2018,ADULT SOCIAL CARE,METRO HOMECARE LTD,772.24,PHY LTS 65+,HOMECARE - SPOT,2102800495,1000070695
04.04.2018,ADULT SOCIAL CARE,METRO HOMECARE LTD,868.77,PHY LTS 65+,HOMECARE - SPOT,2102800519,1000070695
04.04.2018,ADULT SOCIAL CARE,METRO HOMECARE LTD,868.77,PHY LTS 65+,HOMECARE - SPOT,2102800521,1000070695
04.04.2018,ADULT SOCIAL CARE,METRO HOMECARE LTD,923.93,PHY LTS 65+,HOMECARE - SPOT,2102800476,1000070695
04.04.2018,ADULT SOCIAL CARE,METRO HOMECARE LTD,965.3,PHY LTS 65+,HOMECARE - SPOT,2102800480,1000070695
04.04.2018,ADULT SOCIAL CARE,METRO HOMECARE LTD,"1,013.57",PHY LTS 65+,HOMECARE - SPOT,2102800520,1000070695
04.04.2018,ADULT SOCIAL CARE,METRO HOMECARE LTD,"1,061.83",PHY LTS 65+,HOMECARE - SPOT,2102800818,1000070695
04.04.2018,ADULT SOCIAL CARE,METRO HOMECARE LTD,"1,061.83",PHY LTS 65+,HOMECARE - SPOT,2102800825,1000070695
04.04.2018,ADULT SOCIAL CARE,METRO HOMECARE LTD,"1,110.10",PHY LTS 65+,HOMECARE - SPOT,2102800511,1000070695
04.04.2018,ADULT SOCIAL CARE,METRO HOMECARE LTD,"1,158.36",PHY LTS 65+,HOMECARE - SPOT,2102800501,1000070695
04.04.2018,ADULT SOCIAL CARE,METRO HOMECARE LTD,"1,627.22",PHY LTS 65+,HOMECARE - SPOT,2102800489,1000070695
04.04.2018,ADULT SOCIAL CARE,YOUTH GRACES (UK) LTD,255.22,PHY LTS 65+,HOMECARE - SPOT,2102800545,1000072524
04.04.2018,ADULT SOCIAL CARE,YOUTH GRACES (UK) LTD,282.66,PHY LTS 65+,HOMECARE - SPOT,2102800563,1000072524
04.04.2018,ADULT SOCIAL CARE,YOUTH GRACES (UK) LTD,399.91,PHY LTS 65+,HOMECARE - SPOT,2102800586,1000072524
04.04.2018,ADULT SOCIAL CARE,YOUTH GRACES (UK) LTD,434.56,PHY LTS 65+,HOMECARE - SPOT,2102800572,1000072524
04.04.2018,ADULT SOCIAL CARE,YOUTH GRACES (UK) LTD,451.8,PHY LTS 65+,HOMECARE - SPOT,2102800547,1000072524
04.04.2018,ADULT SOCIAL CARE,YOUTH GRACES (UK) LTD,496.51,PHY LTS 65+,HOMECARE - SPOT,2102800555,1000072524
04.04.2018,ADULT SOCIAL CARE,YOUTH GRACES (UK) LTD,675.78,PHY LTS 65+,HOMECARE - SPOT,2102800599,1000072524
04.04.2018,ADULT SOCIAL CARE,GREENWRITE HEALTHCARE LTD,372.33,PHY LTS 65+,HOMECARE - SPOT,2102800474,1000080718
04.04.2018,ADULT SOCIAL CARE,GREENWRITE HEALTHCARE LTD,903.24,PHY LTS 65+,HOMECARE - SPOT,2102800467,1000080718
04.04.2018,ADULT SOCIAL CARE,GREENWRITE HEALTHCARE LTD,"1,048.04",PHY LTS 65+,HOMECARE - SPOT,2102800468,1000080718
04.04.2018,ADULT SOCIAL CARE,GREENWRITE HEALTHCARE LTD,"1,172.15",PHY LTS 65+,HOMECARE - SPOT,2102800473,1000080718
04.04.2018,ADULT SOCIAL CARE,CHOICE SUPPORT,293.92,PHY LTS 65+,SUPPORTED LIVING,2102800696,1104183
04.04.2018,ADULT SOCIAL CARE,CARE DIRECT UK LTD,255.12,SEN LTS 65+,HOMECARE - SPOT,2102800672,1000066322
04.04.2018,ADULT SOCIAL CARE,LONDON CARE LTD,436.74,SOCIAL ISOLATION,HOMECARE - C&V,2102800731,1000003398
04.04.2018,ADULT SOCIAL CARE,LONDON CARE LTD,"1,034.17",SOCIAL ISOLATION,HOMECARE - C&V,2102800809,1000003398
04.04.2018,ADULT SOCIAL CARE,CARE DIRECT UK LTD,268.91,SOCIAL ISOLATION,HOMECARE - SPOT,2102800674,1000066322
04.04.2018,ADULT SOCIAL CARE,METRO HOMECARE LTD,517.13,SOCIAL ISOLATION,HOMECARE - SPOT,2102800535,1000070695
04.04.2018,ADULT SOCIAL CARE,HAVELOCK COURT (BUPA CARE),"1,414.29",SOCIAL ISOLATION,PLACEMENTS - RESPITE,2102800832,1000028902
04.04.2018,ADULT SOCIAL CARE,HAVELOCK COURT (BUPA CARE),"2,042.86",SOCIAL ISOLATION,PLACEMENTS - RESPITE,2102800831,1000028902
04.04.2018,ASSET MANAGEMENT,PRB ESTATES LTD,"6,424.72",ADAPTATIONS,BUILDING R&M,2102800864,3000001691
04.04.2018,ASSET MANAGEMENT,HOCKFIELD & CO SOLICITORS,"3,000.00",DISREPAIR,LEGAL FEES & COURT COSTS,5902297750,11295667
04.04.2018,ASSET MANAGEMENT,PRB ESTATES LTD,"90,894.00",HIP MAJOR WORKS,OTHER R&M,2102800868,3000001691
04.04.2018,CENTRAL FUNCTIONS,ETC VENUES LTD,"4,399.00",HOME OWNERSHIP,HIRE OF ROOMS/HALLS,5902297569,1000045226
04.04.2018,CENTRAL FUNCTIONS,CAPITA BUSINESS SERVICES LTD,"24,992.00",OPERATIONAL TEAM,OTHER CONTRACTORS,5902297676,1000049446
04.04.2018,CENTRAL FUNCTIONS,VIRTUAL COLLEGE LIMITED,"3,750.00",TENANTS FUND,TRAINING,5902297636,1000054756
04.04.2018,CHILDREN AND ADULT,MORGAN SINDALL PLC,"12,917.35",CAPITAL PS (EDUCATION),CONSTRUCTION MAIN CONTRACT -CERTIFICATED,2102800861,3000001556
04.04.2018,CHILDREN AND ADULT,MORGAN SINDALL PLC,"68,567.13",CAPITAL PS (EDUCATION),CONSTRUCTION MAIN CONTRACT -CERTIFICATED,2102800862,3000001556
04.04.2018,CHILDREN AND ADULT,MORGAN SINDALL PLC,"115,864.23",CAPITAL PS (EDUCATION),CONSTRUCTION MAIN CONTRACT -CERTIFICATED,2102800863,3000001556
04.04.2018,CHILDREN'S SERVICES,BELLENDEN PRIMARY SCHOOL,"44,000.00",BELLENDEN JMI,COSTS RECOVERED,2102800846,5001000007
04.04.2018,CHILDREN'S SERVICES,BRAKE BROS,394.46,BISHOPS HOUSE EARLY YEARS CENTRE,CATERING MATERIALS & SUPPLIES,5902297645,1001482
04.04.2018,CHILDREN'S SERVICES,REDACTED PERSONAL DATA,270,CARE GRPS  4 TO 6,OTHER PAYMENTS FOR CLIENTS,REDACTED,REDACTED
04.04.2018,CHILDREN'S SERVICES,REDACTED PERSONAL DATA,285,CARE GRPS  4 TO 6,OTHER PAYMENTS FOR CLIENTS,REDACTED,REDACTED
04.04.2018,CHILDREN'S SERVICES,REDACTED PERSONAL DATA,300,DISABILITY & HIV,ADDITIONAL PAYMENTS TO AGENCIES/CARERS,REDACTED,REDACTED
04.04.2018,CHILDREN'S SERVICES,REDACTED PERSONAL DATA,300,DISABILITY & HIV,ADDITIONAL PAYMENTS TO AGENCIES/CARERS,REDACTED,REDACTED
04.04.2018,CHILDREN'S SERVICES,REDACTED PERSONAL DATA,400,DISABILITY & HIV,COMPUTER CONSUMABLES,REDACTED,REDACTED
04.04.2018,CHILDREN'S SERVICES,REDACTED PERSONAL DATA,287.89,DISABILITY & HIV,PAYMENTS TO CARERS,REDACTED,REDACTED
04.04.2018,CHILDREN'S SERVICES,REDACTED PERSONAL DATA,978.81,DISABILITY & HIV,PAYMENTS TO CARERS,REDACTED,REDACTED
04.04.2018,CHILDREN'S SERVICES,REDACTED PERSONAL DATA,-285.15,DISABILITY & HIV,PAYMENTS TO CARERS,REDACTED,REDACTED
04.04.2018,CHILDREN'S SERVICES,REDACTED PERSONAL DATA,966.69,DISABILITY & HIV,PAYMENTS TO CARERS,REDACTED,REDACTED
04.04.2018,CHILDREN'S SERVICES,REDACTED PERSONAL DATA,518.19,DISABILITY & HIV,PAYMENTS TO CARERS,REDACTED,REDACTED
04.04.2018,CHILDREN'S SERVICES,REDACTED PERSONAL DATA,740,DISABILITY & HIV,PAYMENTS TO CARERS,REDACTED,REDACTED
04.04.2018,CHILDREN'S SERVICES,REDACTED PERSONAL DATA,700,DISABILITY & HIV,PAYMENTS TO CARERS,REDACTED,REDACTED
04.04.2018,CHILDREN'S SERVICES,REDACTED PERSONAL DATA,579.8,DISABILITY & HIV,PAYMENTS TO CARERS,REDACTED,REDACTED
04.04.2018,CHILDREN'S SERVICES,REDACTED PERSONAL DATA,457.91,DISABILITY & HIV,PAYMENTS TO CARERS,REDACTED,REDACTED
04.04.2018,CHILDREN'S SERVICES,INTERPRETING DIRECT CO (UK) LTD,"6,470.75",FINANCE,INTERPRETING SERVICES,5902297583,1000070133
04.04.2018,CHILDREN'S SERVICES,ALLPAY NET LIMITED,754.56,FINANCE,PAYMENTS FOR FINANCIAL SERVICES,5902297659,1000043001
04.04.2018,CHILDREN'S SERVICES,KINTORE WAY CHILDRENS CENTRE,"94,550.23",IN YEAR STATEMENTS & REORGS,SCHOOLS CAPITATION,2102800853,5001000047
04.04.2018,CHILDREN'S SERVICES,DRUMHEAD LTD,"1,220.00",LEA MUSIC SERVICE(310) - 5018566,OP LEASE/HIRE CHARGES:PLANT/EQUIP/FURNIT,5902297677,1000051656
04.04.2018,CHILDREN'S SERVICES,DRUMHEAD LTD,"1,668.00",LEA MUSIC SERVICE(310) - 5018566,OP LEASE/HIRE CHARGES:PLANT/EQUIP/FURNIT,5902297632,1000051656
04.04.2018,CHILDREN'S SERVICES,DRUMHEAD LTD,"3,010.00",LEA MUSIC SERVICE(310) - 5018566,OP LEASE/HIRE CHARGES:PLANT/EQUIP/FURNIT,5902297672,1000051656
04.04.2018,CHILDREN'S SERVICES,OASIS PRINTING LTD,395,LEA MUSIC SERVICE(310) - 5018566,STATIONERY,5902297696,1000075855
04.04.2018,CHILDREN'S SERVICES,FAMILY FOSTERING LTD,"1,360.00",LEAVING CARE GRANT,OTHER PAYMENTS FOR CLIENTS,5902297766,1000075179
04.04.2018,CHILDREN'S SERVICES,SOUTH LONDON & MAUDSLEY HOSPITAL,"289,874.00",PECKHAM & NUNHEAD,EXTERNAL AGENCIES AND BODIES,5902297627,1000013096
04.04.2018,CHILDREN'S SERVICES,SOUTH LONDON & MAUDSLEY HOSPITAL,"289,874.00",PECKHAM & NUNHEAD,EXTERNAL AGENCIES AND BODIES,5902297627,1000013096
04.04.2018,CHILDREN'S SERVICES,REDACTED PERSONAL DATA,268.36,RESIDENCE ORDERS,PAYMENTS TO CARERS,REDACTED,REDACTED
04.04.2018,CHILDREN'S SERVICES,REDACTED PERSONAL DATA,269.08,RESIDENCE ORDERS,PAYMENTS TO CARERS,REDACTED,REDACTED
04.04.2018,CHILDREN'S SERVICES,REDACTED PERSONAL DATA,269.08,RESIDENCE ORDERS,PAYMENTS TO CARERS,REDACTED,REDACTED
04.04.2018,CHILDREN'S SERVICES,REDACTED PERSONAL DATA,264.16,RESIDENCE ORDERS,PAYMENTS TO CARERS,REDACTED,REDACTED
04.04.2018,CHILDREN'S SERVICES,REDACTED PERSONAL DATA,269.08,RESIDENCE ORDERS,PAYMENTS TO CARERS,REDACTED,REDACTED
04.04.2018,CHILDREN'S SERVICES,ROTHERHITHE PRIMARY SCHOOL,"130,000.00",ROTHERHITHE JMI,EARLY YEARS - 3 AND 4 YEAR OLDS,2102800852,5001000058
04.04.2018,CHILDREN'S SERVICES,RYE OAK PRIMARY SCHOOL,"44,000.00",RYE OAK SCHOOL DFES NO. 2462,COSTS RECOVERED,2102800847,5001000059
04.04.2018,CHILDREN'S SERVICES,SOUTH LONDON & MAUDSLEY HOSPITAL,"194,675.00",SLAM,EXTERNAL AGENCIES AND BODIES,5902297626,1000013096
04.04.2018,CHILDREN'S SERVICES,SOUTH LONDON & MAUDSLEY HOSPITAL,"194,675.00",SLAM,EXTERNAL AGENCIES AND BODIES,5902297626,1000013096
04.04.2018,CHILDREN'S SERVICES,REDACTED PERSONAL DATA,433.36,SPECIAL GUARDIANSHIP,PAYMENTS TO CARERS,REDACTED,REDACTED
04.04.2018,CHILDREN'S SERVICES,REDACTED PERSONAL DATA,276.1,SPECIAL GUARDIANSHIP,PAYMENTS TO CARERS,REDACTED,REDACTED
04.04.2018,CHILDREN'S SERVICES,REDACTED PERSONAL DATA,269.08,SPECIAL GUARDIANSHIP,PAYMENTS TO CARERS,REDACTED,REDACTED
04.04.2018,CHILDREN'S SERVICES,REDACTED PERSONAL DATA,269.08,SPECIAL GUARDIANSHIP,PAYMENTS TO CARERS,REDACTED,REDACTED
04.04.2018,CHILDREN'S SERVICES,REDACTED PERSONAL DATA,350,SPECIAL GUARDIANSHIP,PAYMENTS TO CARERS,REDACTED,REDACTED
04.04.2018,CHILDREN'S SERVICES,REDACTED PERSONAL DATA,354.59,SPECIAL GUARDIANSHIP,PAYMENTS TO CARERS,REDACTED,REDACTED
04.04.2018,CHILDREN'S SERVICES,REDACTED PERSONAL DATA,525,SPECIAL GUARDIANSHIP,PAYMENTS TO CARERS,REDACTED,REDACTED
04.04.2018,CHILDREN'S SERVICES,REDACTED PERSONAL DATA,525,SPECIAL GUARDIANSHIP,PAYMENTS TO CARERS,REDACTED,REDACTED
04.04.2018,CHILDREN'S SERVICES,REDACTED PERSONAL DATA,525,SPECIAL GUARDIANSHIP,PAYMENTS TO CARERS,REDACTED,REDACTED
04.04.2018,CHILDREN'S SERVICES,REDACTED PERSONAL DATA,303.97,SPECIAL GUARDIANSHIP,PAYMENTS TO CARERS,REDACTED,REDACTED
04.04.2018,CHILDREN'S SERVICES,REDACTED PERSONAL DATA,268.36,SPECIAL GUARDIANSHIP,PAYMENTS TO CARERS,REDACTED,REDACTED
04.04.2018,CHILDREN'S SERVICES,REDACTED PERSONAL DATA,269.08,SPECIAL GUARDIANSHIP,PAYMENTS TO CARERS,REDACTED,REDACTED
04.04.2018,CHILDREN'S SERVICES,PSYCHO DYNAMICS LIMITED,"1,470.00",SUMMERHOUSE - EX416 - 5015232,CONSULTANTS SERVICES,5902297652,1000051708
04.04.2018,CHILDREN'S SERVICES,SALTCO LTD T/A KELLY EXECUTIVE,"2,890.00",SUMMERHOUSE - EX416 - 5015232,HIRED VEHICLES,5902297655,1000000548
04.04.2018,CHILDREN'S SERVICES,SALTCO LTD T/A KELLY EXECUTIVE,"3,230.00",SUMMERHOUSE - EX416 - 5015232,HIRED VEHICLES,5902297656,1000000548
04.04.2018,CHILDREN'S SERVICES,MANAK SOLICITORS,271.38,UASC SECTION 24,OTHER PAYMENTS FOR CLIENTS,5902297762,1000053626
04.04.2018,CHILDREN'S SERVICES,CROYDON COLLEGE,"2,270.00",YOUTH FUND - LOCAL ECONOMY,"SCHOOLS CAPITATION, STANDARDS FUND",2102800107,11300222
04.04.2018,CHILDREN'S SERVICES,CITY AND ISLINGTON COLLEGE,"23,154.00",YOUTH FUND - LOCAL ECONOMY,"SCHOOLS CAPITATION, STANDARDS FUND",2102800106,1000020537
04.04.2018,CHILDREN'S SERVICES,CHRIST THE KING SIXTH FORM COLLEGE,"23,608.00",YOUTH FUND - LOCAL ECONOMY,"SCHOOLS CAPITATION, STANDARDS FUND",2102800105,1000025935
04.04.2018,CHILDREN'S SERVICES,THE ACADEMY @ PECKHAM,"5,448.00",YOUTH FUND - LOCAL ECONOMY,"SCHOOLS CAPITATION, STANDARDS FUND",2102800108,1000041433
04.04.2018,CHILDREN'S SERVICES,ST FRANCIS XAVIER 6TH FORM COLLEGE,"8,626.00",YOUTH FUND - LOCAL ECONOMY,"SCHOOLS CAPITATION, STANDARDS FUND",2102800114,1000049251
04.04.2018,CHILDREN'S SERVICES,WALWORTH ACADEMY,"9,534.00",YOUTH FUND - LOCAL ECONOMY,"SCHOOLS CAPITATION, STANDARDS FUND",2102800117,1000062868
04.04.2018,CHILDREN'S SERVICES,RICHMOND UPON THAMES COLLEGE,"2,270.00",YOUTH FUND - LOCAL ECONOMY,"SCHOOLS CAPITATION, STANDARDS FUND",2102800111,1000068232
04.04.2018,CHILDREN'S SERVICES,RAVENSBOURNE COLLEGE,454,YOUTH FUND - LOCAL ECONOMY,"SCHOOLS CAPITATION, STANDARDS FUND",2102800110,1000068345
04.04.2018,CHILDREN'S SERVICES,ST MICHAELS CATHOLIC COLLEGE,"5,902.00",YOUTH FUND - LOCAL ECONOMY,"SCHOOLS CAPITATION, STANDARDS FUND",2102800113,1000071000
04.04.2018,CHILDREN'S SERVICES,SACRED HEART CATHOLIC SCHOOL,"4,086.00",YOUTH FUND - LOCAL ECONOMY,"SCHOOLS CAPITATION, STANDARDS FUND",2102800112,1000071091
04.04.2018,CHILDREN'S SERVICES,HIGHSHORE SCHOOL,"4,086.00",YOUTH FUND - LOCAL ECONOMY,"SCHOOLS CAPITATION, STANDARDS FUND",2102800109,5001000046
04.04.2018,CHILDREN'S SERVICES,THE ST THOMAS THE APOSTLE COLLEGE,908,YOUTH FUND - LOCAL ECONOMY,"SCHOOLS CAPITATION, STANDARDS FUND",2102800116,5001000074
04.04.2018,CHILDREN'S SERVICES,ST SAVIOURS & ST OLAVES SCHOOL,"3,178.00",YOUTH FUND - LOCAL ECONOMY,"SCHOOLS CAPITATION, STANDARDS FUND",2102800115,5001000084
04.04.2018,COMMISSIONING & CENTRAL,ST MUNGOS,"81,057.93",SUPPORTING PEOPLE,EXTERNAL AGENCIES AND BODIES,5902296821,1000017600
04.04.2018,COMMUNITIES,CENTRE FOR POLICY ON AGEING,"1,300.00",COMMUNITY ENGAGEMENT,PROFESSIONAL FEES,5902297634,1000076532
04.04.2018,COMMUNITIES,LOVE WALK HOSTEL FOR DISABLED,"1,405.71",NO RECOURSE TO PUBLIC FUNDS,NATIONAL ASSISTANCE,2102800817,1008978
04.04.2018,COMMUNITIES,LOVE WALK HOSTEL FOR DISABLED,"3,280.00",NO RECOURSE TO PUBLIC FUNDS,NATIONAL ASSISTANCE,2102800821,1008978
04.04.2018,COMMUNITIES,LOVE WALK HOSTEL FOR DISABLED,"3,280.00",NO RECOURSE TO PUBLIC FUNDS,NATIONAL ASSISTANCE,2102800822,1008978
04.04.2018,COMMUNITIES,LOVE WALK HOSTEL FOR DISABLED,"3,280.00",NO RECOURSE TO PUBLIC FUNDS,NATIONAL ASSISTANCE,2102800824,1008978
04.04.2018,COMMUNITIES,WEBBER AND QUENTIN LTD,"37,508.50",TENANT MGT INITITIVES,DISCRETIONARY AWARDS AND FEES,5902297674,1000077088
04.04.2018,COMMUNITIES,TIME & TALENTS ASSOCIATION,"4,543.25",VCS GRANTS,GRANTS,5902297591,1757632
04.04.2018,COMMUNITIES,EAST DULWICH COMMUNITY CENTRE,"1,740.00",VCS GRANTS,GRANTS,5902297592,1968633
04.04.2018,COMMUNITIES,BEDE HSE,"3,475.50",VCS GRANTS,GRANTS,5902297593,11248731
04.04.2018,COMMUNITIES,CAMBRIDGE HOUSE & TALBOT,"3,475.50",VCS GRANTS,GRANTS,5902297594,11248874
04.04.2018,COMMUNITIES,AYLESBURY EVERY WOMAN'S CENTRE,"3,600.00",VCS GRANTS,GRANTS,5902297595,1000042216
04.04.2018,COMMUNITIES,WORKING WITH MEN,"3,600.00",VCS GRANTS,GRANTS,5902297596,1000046010
04.04.2018,COMMUNITIES,COOLTAN ARTS,"3,187.50",VCS GRANTS,GRANTS,5902297597,1000050416
04.04.2018,COMMUNITIES,MENTAL FIGHT CLUB,"1,870.00",VCS GRANTS,GRANTS,5902297598,1000051170
04.04.2018,COMMUNITIES,CRYSTAL PALACE COMM DEV TRUST,"2,264.75",VCS GRANTS,GRANTS,5902297599,1000054200
04.04.2018,COMMUNITIES,LATIN AMERICAN DISABLED PEOPLE PROJECT,"4,000.00",VCS GRANTS,GRANTS,5902297600,1000058588
04.04.2018,COMMUNITIES,LATIN AMERICAN WOMEN'S RIGHTS SERVICES,"3,400.00",VCS GRANTS,GRANTS,5902297602,1000068356
04.04.2018,COMMUNITIES,PAXTON GREEN TIME BANK,"3,600.00",VCS GRANTS,GRANTS,5902297603,1000070648
04.04.2018,COMMUNITIES,BERMONDSEY COMMUNITY KITCHEN,"3,500.00",VCS GRANTS,GRANTS,5902297604,1000075477
04.04.2018,COMMUNITIES,THE BIKE PROJECT,"3,750.00",VCS GRANTS,GRANTS,5902297605,1000077217
04.04.2018,CUSTOMER EXPERIENCE HGF,CROWN HOUSING LTD,"15,887.50",NIGHTLY TA (NSC),EXTERNAL AGENCIES AND BODIES,5902297638,1000075070
04.04.2018,CUSTOMER EXPERIENCE HGF,DR YISA OLABODE AKINWANDE,"1,500.00",PRIVATE SECTOR LEASING,EXTERNAL AGENCIES AND BODIES,2102800860,1000079599
04.04.2018,CUSTOMER EXPERIENCE HGF,HOMEPATH MANAGEMENT LTD,"1,000.00",PSL (SOCIAL LETTINGS),EXTERNAL AGENCIES AND BODIES,2102800855,1000078034
04.04.2018,CUSTOMER EXPERIENCE HGF,HOMEPATH MANAGEMENT LTD,"1,000.00",PSL (SOCIAL LETTINGS),EXTERNAL AGENCIES AND BODIES,2102800857,1000078034
04.04.2018,CUSTOMER EXPERIENCE HGF,HOMEPATH MANAGEMENT LTD,"1,224.00",PSL (SOCIAL LETTINGS),EXTERNAL AGENCIES AND BODIES,2102800854,1000078034
04.04.2018,CUSTOMER EXPERIENCE HGF,HOMEPATH MANAGEMENT LTD,"1,923.43",PSL (SOCIAL LETTINGS),EXTERNAL AGENCIES AND BODIES,2102800856,1000078034
04.04.2018,CUSTOMER EXPERIENCE HGF,HOMEPATH MANAGEMENT LTD,"2,189.39",PSL (SOCIAL LETTINGS),EXTERNAL AGENCIES AND BODIES,2102800858,1000078034
04.04.2018,CUSTOMER EXPERIENCE HGF,HOMEPATH MANAGEMENT LTD,"3,000.00",PSL (SOCIAL LETTINGS),EXTERNAL AGENCIES AND BODIES,2102800859,1000078034
04.04.2018,ELECTORAL SVCES,FINANCIAL DATA MANAGEMENT PLC,621,BOROUGH COUNCIL ELECTIONS,LEGAL FEES & COURT COSTS,2102800033,1000031759
04.04.2018,ENVIRONMENT AND LEISURE,CJS PLANTS,253.5,CAPITAL PS (LEISURE),CONST'N MAIN CONTRACT - NON CERTIFICATED,5902297725,1000025370
04.04.2018,ENVIRONMENT AND LEISURE,CJS PLANTS,285,CAPITAL PS (LEISURE),CONST'N MAIN CONTRACT - NON CERTIFICATED,5902297715,1000025370
04.04.2018,ENVIRONMENT AND LEISURE,CJS PLANTS,"1,113.33",CAPITAL PS (LEISURE),CONST'N MAIN CONTRACT - NON CERTIFICATED,5902297703,1000025370
04.04.2018,ENVIRONMENT AND LEISURE,VALLEY PROVINCIAL GROUP LLP,"-24,495.00",CAPITAL PS (LEISURE),CONSTRUCTION FEES  - EXTERNAL,5902298057,3000001895
04.04.2018,ENVIRONMENT AND LEISURE,VALLEY PROVINCIAL GROUP LLP,"24,495.00",CAPITAL PS (LEISURE),CONSTRUCTION FEES  - EXTERNAL,5902297775,3000001895
04.04.2018,ENVIRONMENT DIRECTORATE,KENT COUNTY COUNCIL - LASER,534.73,COLUMNS - MINOR ROADS,SOUTHWARK DIRECT CHARGES,5902297611,1000012926
04.04.2018,ENVIRONMENT DIRECTORATE,CALLOW MASTER LOCKSMITHS,432.7,ENGINEERING CRAFTS,OTHER CONTRACTORS,5902297711,11179552
04.04.2018,ENVIRONMENT DIRECTORATE,TOUCAN TOOL CO LTD,325.96,ESTATES  (NORTH WEST),MATERIALS,5902297695,1395125
04.04.2018,ENVIRONMENT DIRECTORATE,SOUTHWARK NEWSPAPER LTD,408,HIGHWAYS DEVELOPMENT,MARKETING & PUBLICITY SERVICES,5902297588,1556957
04.04.2018,ENVIRONMENT DIRECTORATE,SOUTHWARK NEWSPAPER LTD,420,HIGHWAYS DEVELOPMENT,MARKETING & PUBLICITY SERVICES,5902297580,1556957
04.04.2018,ENVIRONMENT DIRECTORATE,SOUTHWARK NEWSPAPER LTD,456,HIGHWAYS DEVELOPMENT,MARKETING & PUBLICITY SERVICES,5902297584,1556957
04.04.2018,ENVIRONMENT DIRECTORATE,SOUTHWARK NEWSPAPER LTD,480,HIGHWAYS DEVELOPMENT,MARKETING & PUBLICITY SERVICES,5902297587,1556957
04.04.2018,ENVIRONMENT DIRECTORATE,SOUTHWARK NEWSPAPER LTD,480,HIGHWAYS DEVELOPMENT,MARKETING & PUBLICITY SERVICES,5902297637,1556957
04.04.2018,ENVIRONMENT DIRECTORATE,CABLE TEST LTD,"35,666.20",LIGHTING RECOVERABLE WORKS,SOUTHWARK DIRECT CHARGES,5902297607,1000079183
04.04.2018,ENVIRONMENT DIRECTORATE,CABLE TEST LTD,"44,522.52",LIGHTING RECOVERABLE WORKS,SOUTHWARK DIRECT CHARGES,5902297610,1000079183
04.04.2018,ENVIRONMENT DIRECTORATE,T4 INTELLIGENT INFRASTRUCTURE,"69,322.57",LIGHTING RECOVERABLE WORKS,SOUTHWARK DIRECT CHARGES,2102800841,3000001985
04.04.2018,ENVIRONMENT DIRECTORATE,R HERRIDGE & PARTNERS,"4,458.00",PARKS TECH UNIT (PREMISES),OTHER R&M,2102800844,3000000680
04.04.2018,ENVIRONMENT DIRECTORATE,CONWAY AECOM LTD,"48,022.43",PARKS TECH UNIT (PREMISES),OTHER R&M,2102800843,3000001595
04.04.2018,ENVIRONMENT DIRECTORATE,FENLAND LEISURE PRODUCTS LTD,"1,629.58",PARKS TECH UNIT (PREMISES),OTHER R&M,2102800842,3000001785
04.04.2018,ENVIRONMENT DIRECTORATE,CABLE TEST LTD,"3,567.48",PUBLIC LIGHTING,OTHER CONTRACTORS,5902297575,1000079183
04.04.2018,ENVIRONMENT DIRECTORATE,CABLE TEST LTD,"5,976.52",PUBLIC LIGHTING,OTHER CONTRACTORS,5902297571,1000079183
04.04.2018,ENVIRONMENT DIRECTORATE,CABLE TEST LTD,"10,069.50",PUBLIC LIGHTING,OTHER CONTRACTORS,5902297572,1000079183
04.04.2018,ENVIRONMENT DIRECTORATE,CABLE TEST LTD,"10,453.10",PUBLIC LIGHTING,OTHER CONTRACTORS,5902297573,1000079183
04.04.2018,ENVIRONMENT DIRECTORATE,CABLE TEST LTD,"10,683.26",PUBLIC LIGHTING,OTHER CONTRACTORS,5902297574,1000079183
04.04.2018,ENVIRONMENT DIRECTORATE,CABLE TEST LTD,"19,659.50",PUBLIC LIGHTING,OTHER CONTRACTORS,5902297576,1000079183
04.04.2018,ENVIRONMENT DIRECTORATE,LOCKESLEYS LTD,"2,669.79",PUBLIC LIGHTING,OTHER CONTRACTORS,2102800845,3000001480
04.04.2018,ENVIRONMENT DIRECTORATE,COMMUNITY CYCLEWORKS,"1,930.00","ROAD SAFETY EDUCATION,TRAINING&PUBLICITY",PROFESSIONAL FEES,5902295626,1000073000
04.04.2018,ENVIRONMENT DIRECTORATE,COMMUNITY CYCLEWORKS,"2,535.00","ROAD SAFETY EDUCATION,TRAINING&PUBLICITY",PROFESSIONAL FEES,5902295626,1000073000
04.04.2018,ENVIRONMENT DIRECTORATE,BELLENDEN SIGNS LTD,"1,595.00",SIGN SHOP,OTHER CONTRACTORS,5902297614,1704661
04.04.2018,ENVIRONMENT DIRECTORATE,FLEETSHIELD,345,SIGN SHOP,OTHER CONTRACTORS,5902297612,1000080852
04.04.2018,F & C S EXCLUDING CORPORATE BUDGETS,THOMSON REUTERS PROFESSIONAL UK LTD,368,LEGAL SVCES MANAGEMENT,BOOKS & PUBLICATIONS,5902297675,1000000130
04.04.2018,HOUSING HRA,MORGAN SINDALL PLC,"515,569.00",CAPITAL PS (HRA),CONSTR'N SUB CONTRACT - NON CERTIFICATED,2102800866,3000001556
04.04.2018,HOUSING HRA,CALFORD SEADEN LLP,"9,525.60",CAPITAL PS (HRA),CONSTRUCTION FEES  - EXTERNAL,5902297629,1061592
04.04.2018,HOUSING HRA,MOTT MACDONALD LTD,"2,623.00",CAPITAL PS (HRA),CONSTRUCTION FEES  - EXTERNAL,5902297685,1000067305
04.04.2018,HOUSING HRA,MOTT MACDONALD LTD,"2,896.00",CAPITAL PS (HRA),CONSTRUCTION FEES  - EXTERNAL,5902297678,1000067305
04.04.2018,HOUSING HRA,MOTT MACDONALD LTD,"2,896.00",CAPITAL PS (HRA),CONSTRUCTION FEES  - EXTERNAL,5902297716,1000067305
04.04.2018,HOUSING HRA,MEARS LTD,"18,549.30",MEARS,MANUAL CREDITORS,2102800867,3000001096
04.04.2018,LEISURE DIRECTORATE,CASTLE WATER LTD,308.2,BURGESS AREA TEAM,WATER,5902297651,1000078867
04.04.2018,LEISURE DIRECTORATE,CASTLE WATER LTD,879.26,BURGESS AREA TEAM,WATER,5902297658,1000078867
04.04.2018,LEISURE DIRECTORATE,STANBURY BUILDING SERVICES LTD,545,CEMETERIES,OTHER R&M,5902297765,1000078207
04.04.2018,MODERNISATION HGF,PITNEY BOWES SOFTWARE EUROPE LTD,265,APPLICATIONS,SUBSCRIPTIONS,5902297745,1476232
04.04.2018,MODERNISATION HGF,PITNEY BOWES SOFTWARE EUROPE LTD,399.96,APPLICATIONS,SUBSCRIPTIONS,5902297745,1476232
04.04.2018,MODERNISATION HGF,PITNEY BOWES SOFTWARE EUROPE LTD,"2,250.00",APPLICATIONS,SUBSCRIPTIONS,5902297745,1476232
04.04.2018,MODERNISATION HGF,PITNEY BOWES SOFTWARE EUROPE LTD,"7,159.92",APPLICATIONS,SUBSCRIPTIONS,5902297745,1476232
04.04.2018,MODERNISATION HGF,PITNEY BOWES SOFTWARE EUROPE LTD,"9,950.00",APPLICATIONS,SUBSCRIPTIONS,5902297739,1476232
04.04.2018,MODERNISATION HGF,PITNEY BOWES SOFTWARE EUROPE LTD,"10,560.00",APPLICATIONS,SUBSCRIPTIONS,5902297745,1476232
04.04.2018,MODERNISATION HGF,ELIESHA TRAINING LTD,645,ILM COSTS,TRAINING,5902297728,1000079900
04.04.2018,MODERNISATION HGF,ELIESHA TRAINING LTD,645,ILM COSTS,TRAINING,5902297728,1000079900
04.04.2018,MODERNISATION HGF,ELIESHA TRAINING LTD,"1,970.00",ILM COSTS,TRAINING,5902297684,1000079900
04.04.2018,MODERNISATION HGF,SHERRIDAN HUGHES,300,OCCUPATIONAL ASSESSMENT,CONSULTANTS SERVICES,5902297635,1000074250
04.04.2018,MODERNISATION HGF,SHL UK LTD,823.5,OCCUPATIONAL ASSESSMENT,CONSULTANTS SERVICES,5902297630,1050652
04.04.2018,MODERNISATION HGF,NEWMANS CONSULTING LIMITED,"1,900.00",OCCUPATIONAL ASSESSMENT,CONSULTANTS SERVICES,5902297616,1000065375
04.04.2018,MODERNISATION HGF,FULL CIRCLE DEVELOPMENT CONSULTANCY,"4,500.00",ORG TRANSFORMATION,TRAINING,5902297512,1000067240
04.04.2018,RESIDENT SERVICES,GLS EDUCATIONAL SUPPLIES LTD,314.54,SUPPORTED HOSTELS,EQUIPMENT PURCHASE & REPAIR,5902297698,1318282
04.04.2018,RESIDENT SERVICES,KENT COUNTY COUNCIL - LASER,323.97,TA HOSTELS,ELECTRICITY,5902297751,1000012926
04.04.2018,RESIDENT SERVICES,KENT COUNTY COUNCIL - LASER,401.3,TA HOSTELS,ELECTRICITY,5902297764,1000012926
04.04.2018,RESIDENT SERVICES,SOUTH OF THE RIVER INVESTMENTS LTD,"1,674.00",TA PLACEMENTS,EXTERNAL AGENCIES AND BODIES,5902297670,1000073638
04.04.2018,SOUTHWARK BUILDING SERVICES,THAMESMEAD BUSINESS SERVICES  LTD,777.6,STORES/LOGISTICS,CREDITORS -GR/IR CLEARING ACCOUNT,5902297639,1011709
04.04.2018,SOUTHWARK BUILDING SERVICES,THAMESMEAD BUSINESS SERVICES  LTD,"1,706.40",STORES/LOGISTICS,CREDITORS -GR/IR CLEARING ACCOUNT,5902297639,1011709
04.04.2018,SOUTHWARK BUILDING SERVICES,MARTIN VITERA LTD,303.2,STORES/LOGISTICS,CREDITORS -GR/IR CLEARING ACCOUNT,5902297609,1560597
04.04.2018,SOUTHWARK BUILDING SERVICES,MARTIN VITERA LTD,540,STORES/LOGISTICS,CREDITORS -GR/IR CLEARING ACCOUNT,5902297609,1560597
04.04.2018,SOUTHWARK BUILDING SERVICES,EYRE & ELLISTON LTD,330,STORES/LOGISTICS,CREDITORS -GR/IR CLEARING ACCOUNT,5902297617,1000056664
04.04.2018,SOUTHWARK BUILDING SERVICES,EYRE & ELLISTON LTD,616,STORES/LOGISTICS,CREDITORS -GR/IR CLEARING ACCOUNT,5902297621,1000056664
04.04.2018,SOUTHWARK BUILDING SERVICES,EYRE & ELLISTON LTD,770,STORES/LOGISTICS,CREDITORS -GR/IR CLEARING ACCOUNT,5902297623,1000056664
04.04.2018,SOUTHWARK BUILDING SERVICES,EYRE & ELLISTON LTD,924,STORES/LOGISTICS,CREDITORS -GR/IR CLEARING ACCOUNT,5902297621,1000056664
04.04.2018,SOUTHWARK BUILDING SERVICES,EYRE & ELLISTON LTD,"1,045.20",STORES/LOGISTICS,CREDITORS -GR/IR CLEARING ACCOUNT,5902297618,1000056664
04.04.2018,STRATEGIC FINANCING BUDGETS,4 FUTURES PHASE 1 LIMITED,"50,000.00",ONGOING SCHOOLS PFI COSTS,PFI/PPP PAYMENTS,5902297758,1000061400
04.04.2018,STRATEGIC FINANCING BUDGETS,4 FUTURES PHASE 1 LIMITED,"50,000.00",ONGOING SCHOOLS PFI COSTS,PFI/PPP PAYMENTS,5902297760,1000061400
05.04.2018,ADULT SOCIAL CARE,REDACTED PERSONAL DATA,400,APPOINTEESHIPS,OTHER PAYMENTS FOR CLIENTS,REDACTED,REDACTED
05.04.2018,ADULT SOCIAL CARE,KARTS ONLINE LTD,315.83,ORIENT STREET,EQUIPMENT PURCHASE & REPAIR,5902297960,1000080900
05.04.2018,ADULT SOCIAL CARE,KARTS ONLINE LTD,382.5,ORIENT STREET,EQUIPMENT PURCHASE & REPAIR,5902297960,1000080900
05.04.2018,ADULT SOCIAL CARE,CONTACT PROFESSIONALS,"3,331.00",SPECIALIST CARE,SECTION 17 PAYMENTS TO AGENCIES/CARERS,5902296910,1000057263
05.04.2018,ASSET MANAGEMENT,LONDON TOOLS LIMITED,310,DESIGN & DELIVERY,"CLOTHING, UNIFORMS & LAUNDRY",5902297950,1000003017
05.04.2018,ASSET MANAGEMENT,BRIXTON ADVICE CENTRE,"4,000.00",DISREPAIR,LEGAL FEES & COURT COSTS,5902297947,1000080840
05.04.2018,ASSET MANAGEMENT,INSTITUTE OF GAS ENGINEERS AND MANAGERS,750,ENG CONTRACTS,EQUIPMENT PURCHASE & REPAIR,5902297811,1000080853
05.04.2018,ASSET MANAGEMENT,A & H PEST CONTROL LTD,690,ENG CONTRACTS (NORTH),PLANNED MAINTENANCE,5902297907,11230875
05.04.2018,ASSET MANAGEMENT,T BROWN & SONS (HEATING) LTD,"-4,000.00",ENG CONTRACTS (NORTH),PLANNED MAINTENANCE,5902298224,1000040191
05.04.2018,ASSET MANAGEMENT,T BROWN & SONS (HEATING) LTD,"4,000.00",ENG CONTRACTS (NORTH),PLANNED MAINTENANCE,5902298223,1000040191
05.04.2018,CENTRAL FUNCTIONS,TYCO INTEGRATED FIRE & SECURITY,"10,511.14",ENVIRONMENTAL ESTATE WORKS,SECURITY SERVICES,5902297876,1000077948
05.04.2018,CENTRAL FUNCTIONS,ENGIE REGENERATION (APOLLO) LTD,"105,000.26",LEDBURY ESTATE,OTHER R&M,2102801166,4000449
05.04.2018,CHIEF EXECUTIVE,GREATER LONDON AUTHORITY,"7,202,000.00",CAPITAL PS (REGEN),CONSTRUCTION,5902298001,1000015827
05.04.2018,CHIEF EXECUTIVE,KENNY HUNTER,"5,000.00",CAPITAL PS (REGEN),CONSTRUCTION FEES  - EXTERNAL,5902298007,1000078795
05.04.2018,CHIEF EXECUTIVE,STANDAGE & CO LTD,"9,074.48",CAPITAL PS (REGEN),CONSTRUCTION MAIN CONTRACT -CERTIFICATED,5902297821,11223389
05.04.2018,CHIEF EXECUTIVE'S OFFICE,SOLACE GROUP,495,CHIEF EXEC'S OFFICE,TRAINING,5902297871,1967877
05.04.2018,CHILDREN'S SERVICES,SAM CHAPLIN,600,ADOPTION REFORM GRANT (PART A),PROFESSIONAL FEES,5902297863,1000080487
05.04.2018,CHILDREN'S SERVICES,SIMON HOWES,754.5,ADOPTION REFORM GRANT (PART B),PROFESSIONAL FEES,5902297866,1000077991
05.04.2018,CHILDREN'S SERVICES,BRAKE BROS,356.22,AYLESBURY EARLY YEARS CENTRE,CATERING MATERIALS & SUPPLIES,5902297997,1001482
05.04.2018,CHILDREN'S SERVICES,BRAKE BROS,385.72,BISHOPS HOUSE EARLY YEARS CENTRE,CATERING MATERIALS & SUPPLIES,5902297642,1001482
05.04.2018,CHILDREN'S SERVICES,CORAL COMMUNITY ASSESSMENTS LTD,"3,800.00",FAMILY ASSESSMENTS,RESIDENTIAL CARE,5902298050,1000056464
05.04.2018,CHILDREN'S SERVICES,BIBBY FACTORS YORKSHIRE LTD,"1,825.20",LEGAL,LEGAL FEES & COURT COSTS,2102801215,1000047974
05.04.2018,CHILDREN'S SERVICES,E4 LAW LTD,487.52,LEGAL,LEGAL FEES & COURT COSTS,2102801209,1000072222
05.04.2018,CHILDREN'S SERVICES,REDACTED PERSONAL DATA,300,LEGAL,LEGAL FEES & COURT COSTS,REDACTED,REDACTED
05.04.2018,CHILDREN'S SERVICES,JULIAN DATE,325,LEGAL,LEGAL FEES & COURT COSTS,2102801205,1000068743
05.04.2018,CHILDREN'S SERVICES,JULIAN DATE,325,LEGAL,LEGAL FEES & COURT COSTS,2102801206,1000068743
05.04.2018,CHILDREN'S SERVICES,JULIAN DATE,325,LEGAL,LEGAL FEES & COURT COSTS,2102801208,1000068743
05.04.2018,CHILDREN'S SERVICES,MATTHEW STOTT,800,LEGAL,LEGAL FEES & COURT COSTS,2102801214,1000068749
05.04.2018,CHILDREN'S SERVICES,MARTINA VAN DER LEIJ,325,LEGAL,LEGAL FEES & COURT COSTS,2102801212,1000068753
05.04.2018,CHILDREN'S SERVICES,FRANCIS HOAR,540,LEGAL,LEGAL FEES & COURT COSTS,2102801193,1000068759
05.04.2018,CHILDREN'S SERVICES,FRANCIS HOAR,742.5,LEGAL,LEGAL FEES & COURT COSTS,2102801192,1000068759
05.04.2018,CHILDREN'S SERVICES,FRANCIS WILKINSON,325,LEGAL,LEGAL FEES & COURT COSTS,2102801194,1000068760
05.04.2018,CHILDREN'S SERVICES,FIONA MUNRO,765,LEGAL,LEGAL FEES & COURT COSTS,2102801191,1000072693
05.04.2018,CHILDREN'S SERVICES,ANITA RAO,300,LEGAL,LEGAL FEES & COURT COSTS,2102801185,1000074789
05.04.2018,CHILDREN'S SERVICES,CLIVE REDLEY,325,LEGAL,LEGAL FEES & COURT COSTS,2102801187,1000078306
05.04.2018,CHILDREN'S SERVICES,JUDITH CHARLTON,650,LEGAL,LEGAL FEES & COURT COSTS,2102801200,1000078401
05.04.2018,CHILDREN'S SERVICES,JUDITH CHARLTON,650,LEGAL,LEGAL FEES & COURT COSTS,2102801201,1000078401
05.04.2018,CHILDREN'S SERVICES,JUDITH CHARLTON,650,LEGAL,LEGAL FEES & COURT COSTS,2102801202,1000078401
05.04.2018,CHILDREN'S SERVICES,JUDITH CHARLTON,650,LEGAL,LEGAL FEES & COURT COSTS,2102801203,1000078401
05.04.2018,CHILDREN'S SERVICES,JUDITH CHARLTON,"1,500.00",LEGAL,LEGAL FEES & COURT COSTS,2102801204,1000078401
05.04.2018,CHILDREN'S SERVICES,JUDITH CHARLTON,"2,500.00",LEGAL,LEGAL FEES & COURT COSTS,2102801199,1000078401
05.04.2018,CHILDREN'S SERVICES,FIONNUALA MULLIN & ASSOCIATES,260,POST ADOPTION ADVISE & SUPPORT,EXTERNAL AGENCIES AND BODIES,5902297995,1985091
05.04.2018,CHILDREN'S SERVICES,FIONNUALA MULLIN & ASSOCIATES,390,POST ADOPTION ADVISE & SUPPORT,EXTERNAL AGENCIES AND BODIES,5902297868,1985091
05.04.2018,CHILDREN'S SERVICES,FIONNUALA MULLIN & ASSOCIATES,390,POST ADOPTION ADVISE & SUPPORT,EXTERNAL AGENCIES AND BODIES,5902297872,1985091
05.04.2018,CHILDREN'S SERVICES,THE ANNA FREUD CENTRE,400,S & FAM SUPP - PRAC GRP A SET 14-16,TRAINING,5902298049,1000017805
05.04.2018,CHILDREN'S SERVICES,HAMMERSMITH & FULHAM COMMUNITY LAW,500,S24 CLA,OTHER PAYMENTS FOR CLIENTS,5902297769,1000074752
05.04.2018,CHILDREN'S SERVICES,BALANCED MINDS LTD,450,SAFEGUARDING & FAM SUPP - MANAGEMENT,TRAINING,5902298048,1000080997
05.04.2018,CHILDREN'S SERVICES,PULSE HEALTHCARE LTD,388.7,SEN TRANSPORT,STATEMENTED FEES,5902297262,1000035063
05.04.2018,CHILDREN'S SERVICES,PULSE HEALTHCARE LTD,583.05,SEN TRANSPORT,STATEMENTED FEES,5902297260,1000035063
05.04.2018,CHILDREN'S SERVICES,LOGICOUS LTD,"1,037.30",SPECIAL GUARDIANSHIP,EXTERNAL AGENCIES AND BODIES,5902297816,1000073852
05.04.2018,CHILDREN'S SERVICES,REDACTED PERSONAL DATA,500,STAYING PUT,OTHER PAYMENTS FOR CLIENTS,REDACTED,REDACTED
05.04.2018,COMMUNITIES,ADVISING COMMUNITIES,"18,000.00",LEGAL GRANTS,EXTERNAL AGENCIES AND BODIES,5902297905,11292649
05.04.2018,COMMUNITIES,ST FAITHS COMMUNITY CENTRE,"5,115.25",VCS GRANTS,GRANTS,5902297830,1039446
05.04.2018,COMMUNITIES,LONDON WILDLIFE TRUST,"7,968.75",VCS GRANTS,GRANTS,5902297831,1832374
05.04.2018,COMMUNITIES,SOUTHWARK CITIZENS ADVICE,"5,600.00",VCS GRANTS,GRANTS,5902297832,1874379
05.04.2018,COMMUNITIES,SOMALI INTEGRATION & DEVELOPMENT ASSOCIATION,"13,222.50",VCS GRANTS,GRANTS,5902297833,11048946
05.04.2018,COMMUNITIES,BEORMUND COMMUNITY CENTRE,"17,437.25",VCS GRANTS,GRANTS,5902297834,11048982
05.04.2018,COMMUNITIES,PECAN LTD,"13,292.00",VCS GRANTS,GRANTS,5902297835,11263114
05.04.2018,COMMUNITIES,SURREY DOCKS FARM PROVIDENT SOCIETY,"10,678.25",VCS GRANTS,GRANTS,5902297836,1000000958
05.04.2018,COMMUNITIES,AAINA WOMEN GROUP,"8,018.25",VCS GRANTS,GRANTS,5902297837,1000002442
05.04.2018,COMMUNITIES,SWK DAY CTR FOR ASYLUM SEEKERS,"11,330.25",VCS GRANTS,GRANTS,5902297838,1000040491
05.04.2018,COMMUNITIES,BLACKFRIARS SETTLEMENT,"5,574.75",VCS GRANTS,GRANTS,5902297843,1000071456
05.04.2018,COMMUNITIES,SOUTHWARK TRAVELLERS' ACTION,"5,750.00",VCS GRANTS,GRANTS,5902297844,1000077795
05.04.2018,CORPORATE & DEMOCRATIC CORE,THE WHITEHALL & INDUSTRY GROUP,"4,950.00",CORPORATE & DEPARTMENTAL EXP.,MISCELLANEOUS EXPENSES,5902297859,1000036496
05.04.2018,CUSTOMER EXPERIENCE HGF,MAKING EXPERIENCES COUNT LTD,"2,025.00",COMPLAINTS,EXTERNAL AGENCIES AND BODIES,5902297159,1000061843
05.04.2018,CUSTOMER EXPERIENCE HGF,TAAKSVALE HOUSING LTD,"88,007.50",NIGHTLY TA (NSC),EXTERNAL AGENCIES AND BODIES,5902297822,1000073665
05.04.2018,ENVIRONMENT AND LEISURE,AMETHYST HORTICULTURE LTD,960,CAPITAL PS (LEISURE),CONST'N MAIN CONTRACT - NON CERTIFICATED,5902297809,1000054623
05.04.2018,ENVIRONMENT AND LEISURE,AMETHYST HORTICULTURE LTD,"3,450.00",CAPITAL PS (LEISURE),CONST'N MAIN CONTRACT - NON CERTIFICATED,5902297809,1000054623
05.04.2018,ENVIRONMENT AND LEISURE,WARWICK LANDSCAPING LTD,"229,833.38",CAPITAL PS (LEISURE),CONSTRUCTION FEES  - EXTERNAL,2102801168,3000001705
05.04.2018,ENVIRONMENT AND LEISURE,BARCHAM TREES PLC,"5,181.60",CAPITAL PS (LEISURE),CONSTRUCTION FEES - INTERNAL,5902298040,11254891
05.04.2018,ENVIRONMENT AND LEISURE,BARCHAM TREES PLC,"7,174.00",CAPITAL PS (LEISURE),CONSTRUCTION FEES - INTERNAL,5902298045,11254891
05.04.2018,ENVIRONMENT AND LEISURE,TYCO INTEGRATED FIRE & SECURITY,"14,465.00",CAPITAL PS (LEISURE),CONSTRUCTION FEES - INTERNAL,5902297916,1000077948
05.04.2018,ENVIRONMENT AND LEISURE,GROUND CONTROL LIMITED,"5,378.50",CAPITAL PS (LEISURE),CONSTRUCTION MAIN CONTRACT,2102801172,3000001551
05.04.2018,ENVIRONMENT AND LEISURE,GROUND CONTROL LIMITED,"18,110.03",CAPITAL PS (LEISURE),CONSTRUCTION MAIN CONTRACT,2102801167,3000001551
05.04.2018,ENVIRONMENT DIRECTORATE,THE CCTV USER GROUP,275,CCTV,TRAINING,5902297912,1000063904
05.04.2018,ENVIRONMENT DIRECTORATE,AUTOMOTIVE LEASING,"1,524.85",COMMERCIAL VEH CTRL A/C,HIRED VEHICLES,5902297986,11014756
05.04.2018,ENVIRONMENT DIRECTORATE,BEVAN BRITTAN LLP,375,COMMERCIAL WASTE,PAYMENTS FOR LEGAL SERVICES,5902297819,1000047779
05.04.2018,ENVIRONMENT DIRECTORATE,PERFORMANCE CHEMICALS LTD,988.8,ESTATE CLEANING-GENERAL,MATERIALS,5902297931,1000037129
05.04.2018,ENVIRONMENT DIRECTORATE,LONDON TOOLS LIMITED,645,ESTATES  (NORTH WEST),MATERIALS,5902297943,1000003017
05.04.2018,ENVIRONMENT DIRECTORATE,CHARLTON ENVIRONMENTAL LTD,"1,728.00",GROUNDS MAINTENANCE - GENERAL,MATERIALS,5902297314,1589286
05.04.2018,ENVIRONMENT DIRECTORATE,AMETHYST HORTICULTURE LTD,"8,933.70",GROUNDS MAINTENANCE - GENERAL,MATERIALS,5902296978,1000054623
05.04.2018,ENVIRONMENT DIRECTORATE,CONWAY AECOM LTD,"3,000.00",HIGHWAY MAINTENANCE OVERHEADS,HIGHWAYS TERM CONTRACT,2102801171,3000001595
05.04.2018,ENVIRONMENT DIRECTORATE,CONWAY AECOM LTD,"52,254.06",HIGHWAY MAINTENANCE OVERHEADS,HIGHWAYS TERM CONTRACT,2102801171,3000001595
05.04.2018,ENVIRONMENT DIRECTORATE,CONWAY AECOM LTD,"826,753.26",HIGHWAY MAINTENANCE OVERHEADS,HIGHWAYS TERM CONTRACT,2102801171,3000001595
05.04.2018,ENVIRONMENT DIRECTORATE,FAROL LTD,"1,111.71",ICC SPECIAL TEAMS,EQUIPMENT PURCHASE & REPAIR,5902297064,1000078940
05.04.2018,ENVIRONMENT DIRECTORATE,FAROL LTD,"5,500.00",ICC SPECIAL TEAMS,EQUIPMENT PURCHASE & REPAIR,5902297064,1000078940
05.04.2018,ENVIRONMENT DIRECTORATE,ST MUNGOS,"59,880.00",MH ST. MUNGO'S,GRANTS,5902297818,1000017600
05.04.2018,ENVIRONMENT DIRECTORATE,METROPOLITAN POLICE AUTHORITY,"16,625.00",MPS/SOUTHWARK JETS,PROFESSIONAL FEES,5902297855,1000035048
05.04.2018,ENVIRONMENT DIRECTORATE,METROPOLITAN POLICE AUTHORITY,"33,250.00",MPS/SOUTHWARK JETS,PROFESSIONAL FEES,5902297846,1000035048
05.04.2018,ENVIRONMENT DIRECTORATE,CROSSED HANDS LTD,"1,000.00",PEST CONTROL,TRAINING,5902297221,1000077484
05.04.2018,ENVIRONMENT DIRECTORATE,KINGS COLLEGE LONDON,"1,589.75",POLLUTION CONTROL,STATIONERY,5902298021,1000021115
05.04.2018,ENVIRONMENT DIRECTORATE,JARED NORMAN,900,ROUGH SLEEPERS,LEGAL FEES & COURT COSTS,2102801196,1000064080
05.04.2018,ENVIRONMENT DIRECTORATE,EMMA GODFREY,450,ROUGH SLEEPERS,LEGAL FEES & COURT COSTS,2102801189,1000068757
05.04.2018,ENVIRONMENT DIRECTORATE,DR SARA HUNTON,900,ROUGH SLEEPERS,LEGAL FEES & COURT COSTS,2102801188,1000073021
05.04.2018,ENVIRONMENT DIRECTORATE,JUDGE AND PRIESTLEY SOLICITORS,"2,794.50",SASBU,LEGAL FEES & COURT COSTS,5902297951,1472217
05.04.2018,ENVIRONMENT DIRECTORATE,CONWAY AECOM LTD,"4,930.17",SECTION 278 & 38,HIGHWAYS TERM CONTRACT,5902297306,1000071205
05.04.2018,ENVIRONMENT DIRECTORATE,CONWAY AECOM LTD,"1,200.00",SECTION 278 & 38,OTHER CONTRACTORS,5902297313,1000071205
05.04.2018,ENVIRONMENT DIRECTORATE,CONWAY AECOM LTD,"1,200.00",SECTION 278 & 38,OTHER CONTRACTORS,5902297315,1000071205
05.04.2018,ENVIRONMENT DIRECTORATE,TYCO INTEGRATED FIRE & SECURITY,"20,051.92",TOWN CENTRE CCTV,OTHER CONTRACTORS,5902297923,1000077948
05.04.2018,F & C S EXCLUDING CORPORATE BUDGETS,CANTIUM RESOURCING LTD,600,FINANCE DIRECTOR,OTHER EMPLOYEE EXPENSES,5902296980,1000060849
05.04.2018,HOUSING GENERAL FUND,POTTER RAPER AND PARTNERS,"5,996.76",CAPITAL PS (HOUSING GF),CONSTRUCTION MAIN CONTRACT -CERTIFICATED,5902297817,1009369
05.04.2018,HOUSING HRA,CALFORD SEADEN LLP,284.13,CAPITAL PS (HRA),CONSTRUCTION FEES  - EXTERNAL,5902296977,1061592
05.04.2018,HOUSING HRA,CALFORD SEADEN LLP,"2,041.46",CAPITAL PS (HRA),CONSTRUCTION FEES  - EXTERNAL,5902297039,1061592
05.04.2018,HOUSING HRA,CALFORD SEADEN LLP,"2,799.80",CAPITAL PS (HRA),CONSTRUCTION FEES  - EXTERNAL,5902297302,1061592
05.04.2018,HOUSING HRA,CALFORD SEADEN LLP,"3,053.78",CAPITAL PS (HRA),CONSTRUCTION FEES  - EXTERNAL,5902297300,1061592
05.04.2018,HOUSING HRA,CALFORD SEADEN LLP,"18,324.78",CAPITAL PS (HRA),CONSTRUCTION FEES  - EXTERNAL,5902297494,1061592
05.04.2018,HOUSING HRA,CALFORD SEADEN LLP,"18,647.71",CAPITAL PS (HRA),CONSTRUCTION FEES  - EXTERNAL,5902297482,1061592
05.04.2018,HOUSING HRA,TECHNICAL DEVELOPMENT SERVICES,"3,247.96",CAPITAL PS (HRA),CONSTRUCTION FEES  - EXTERNAL,5902297937,1000079928
05.04.2018,HOUSING HRA,LAMBERT SMITH HAMPTON GROUP LTD,"2,125.00",CAPITAL PS (REGEN),CONSTRUCTION FEES,5902298023,1000060045
05.04.2018,HOUSING HRA,LAMBERT SMITH HAMPTON GROUP LTD,"2,125.00",CAPITAL PS (REGEN),CONSTRUCTION FEES,5902298030,1000060045
05.04.2018,HOUSING HRA,LAMBERT SMITH HAMPTON GROUP LTD,"2,125.00",CAPITAL PS (REGEN),CONSTRUCTION FEES,5902298027,1000060045
05.04.2018,HOUSING HRA,LAMBERT SMITH HAMPTON GROUP LTD,"2,125.00",CAPITAL PS (REGEN),CONSTRUCTION FEES,5902298029,1000060045
05.04.2018,HOUSING HRA,LAMBERT SMITH HAMPTON GROUP LTD,"2,125.00",CAPITAL PS (REGEN),CONSTRUCTION FEES,5902298025,1000060045
05.04.2018,HOUSING HRA,LEND LEASE (ELEPHANT & CASTLE) LTD,"446,598.68",CAPITAL PS (REGEN),CONSTRUCTION SITE COSTS,5902297752,1000072665
05.04.2018,HOUSING HRA,KENT COUNTY COUNCIL - LASER,"41,154.49",RESIDENT SERVICES BUSINESS SUPPORT,ELECTRICITY,6101825809,DIRECT DEBIT PAYMENT
05.04.2018,HOUSING STRATEGY AND OPTIONS,MALCOLM G SANKEY,420,HOMELESS & HOUSING OPTIONS MGT,LEGAL FEES & COURT COSTS,2102801210,1000057822
05.04.2018,HOUSING STRATEGY AND OPTIONS,ANNETTE CAFFERKEY,"3,850.00",HOMELESS & HOUSING OPTIONS MGT,LEGAL FEES & COURT COSTS,2102801186,1000067279
05.04.2018,LEISURE DIRECTORATE,RANDALL SHAW BILLINGHAM LTD,"7,605.00",ACCOMODATION,BUILDING R&M,5902297133,1000057014
05.04.2018,LEISURE DIRECTORATE,STANBURY BUILDING SERVICES LTD,545,CEMETERIES,OTHER R&M,5902297823,1000078207
05.04.2018,LEISURE DIRECTORATE,STANBURY BUILDING SERVICES LTD,545,CEMETERIES,OTHER R&M,5902297824,1000078207
05.04.2018,LEISURE DIRECTORATE,STANBURY BUILDING SERVICES LTD,545,CEMETERIES,OTHER R&M,5902297825,1000078207
05.04.2018,LEISURE DIRECTORATE,STANBURY BUILDING SERVICES LTD,545,CEMETERIES,OTHER R&M,5902297826,1000078207
05.04.2018,LEISURE DIRECTORATE,STANBURY BUILDING SERVICES LTD,850,CEMETERIES,OTHER R&M,5902297827,1000078207
05.04.2018,LEISURE DIRECTORATE,RANDALL SHAW BILLINGHAM LTD,"4,500.00",CREMATORIUM,BUILDING R&M,5902297129,1000057014
05.04.2018,LEISURE DIRECTORATE,WARWICK LANDSCAPING LTD,"117,461.55",CREMATORIUM,BUILDING R&M,2102801169,3000001705
05.04.2018,LEISURE DIRECTORATE,TELESHORE UK LTD,822,CREMATORIUM,MATERIALS,5902297828,1000075290
05.04.2018,LEISURE DIRECTORATE,HONOR OAK GROUP PRACTICE,"1,587.00",CREMATORIUM,PROFESSIONAL FEES,5902297443,1000047167
05.04.2018,LEISURE DIRECTORATE,HONOR OAK GROUP PRACTICE,"1,748.00",CREMATORIUM,PROFESSIONAL FEES,5902297446,1000047167
05.04.2018,LEISURE DIRECTORATE,KENT COUNTY COUNCIL - LASER,729.82,DULWICH AREA TEAM,ELECTRICITY,5902297786,1000012926
05.04.2018,LEISURE DIRECTORATE,KENT COUNTY COUNCIL - LASER,"1,035.93",DULWICH AREA TEAM,ELECTRICITY,5902297783,1000012926
05.04.2018,LEISURE DIRECTORATE,KENT COUNTY COUNCIL - LASER,"1,139.17",DULWICH AREA TEAM,ELECTRICITY,5902297800,1000012926
05.04.2018,LEISURE DIRECTORATE,KENT COUNTY COUNCIL - LASER,"1,195.18",DULWICH AREA TEAM,ELECTRICITY,5902297814,1000012926
05.04.2018,LEISURE DIRECTORATE,KENT COUNTY COUNCIL - LASER,"1,215.46",DULWICH AREA TEAM,ELECTRICITY,5902297935,1000012926
05.04.2018,LEISURE DIRECTORATE,KENT COUNTY COUNCIL - LASER,"1,250.29",DULWICH AREA TEAM,ELECTRICITY,5902297932,1000012926
05.04.2018,LEISURE DIRECTORATE,BENJAMIN OSWALD (UK) HOLDINGS LTD,270,EAST STREET LIBRARY,REMOVAL EXPENSES,5902297967,1000047994
05.04.2018,LEISURE DIRECTORATE,COMPLETE ECOLOGY LIMITED,550,HOMERSTALL ROAD SPORTS GROUND,GROUNDS MAINTENANCE,5902296995,1000062303
05.04.2018,LEISURE DIRECTORATE,STREET TREE CARE LTD,360,TREES PRINCIPAL ROADS,OTHER CONTRACTORS,5902298022,1000055901
05.04.2018,LEISURE DIRECTORATE,STREET TREE CARE LTD,460,TREES PRINCIPAL ROADS,OTHER CONTRACTORS,5902298024,1000055901
05.04.2018,MODERNISATION HGF,ANALYTICAL BUSINESS SOLUTIONS (UK),"2,970.00",IT MANAGEMENT,CONSULTANTS SERVICES,5902297148,1000037133
05.04.2018,MODERNISATION HGF,COMENSURA LTD,"2,260.38",MONTHLY ADMIN FEE,AGENCY STAFF,5902297913,1000051261
05.04.2018,MODERNISATION HGF,GOLDSMITHS COLLEGE,"46,668.00",STEP UP,GRANTS,5902297777,1034461
05.04.2018,MODERNISATION HGF,COMENSURA LTD,"322,242.54",WEEKLY PAYMENTS,AGENCY STAFF,5902297913,1000051261
05.04.2018,PECKHAM AND NUNHEAD COMMUNITY COUNCIL,PECKHAM VISION,"2,000.00",PECKHAM VISION TOWN CENTRE COMMUNITY HUBS PROJECT,GRANT,CHEQUE PAYMENT,CHEQUE PAYMENT
05.04.2018,PLANNING AND TRANSPORT,CONWAY AECOM LTD,"2,826.40",TRANSPORT POLICY AND PROGRAMS,CONSULTANTS SERVICES,5902298043,1000071205
05.04.2018,PLANNING AND TRANSPORT,CONWAY AECOM LTD,"3,170.35",TRANSPORT POLICY AND PROGRAMS,CONSULTANTS SERVICES,5902298044,1000071205
05.04.2018,PROPERTY SERVICES,AGY CONSULTANTS LTD,"69,249.96",GIS,PROFESSIONAL FEES,5902297070,1000002277
05.04.2018,PUBLIC HEALTH,QUALITY MEDICAL SOLUTIONS LTD (QMS),"7,457.00",NHS HEALTH CHECK,EXTERNAL AGENCIES AND BODIES,5902297450,1000072192
05.04.2018,REGENERATION,KERRY LEMON LTD,"1,000.00",MASTER PLAN-H/WAY & TRANS INTERCHANGE,PROFESSIONAL FEES,5902298013,1000080930
05.04.2018,RESIDENT SERVICES,LONDON TOOLS LIMITED,270,SHELTERED WARDENS,MATERIALS,5902297999,1000003017
05.04.2018,RESIDENT SERVICES,LONDON TOOLS LIMITED,270,SHELTERED WARDENS,MATERIALS,5902297999,1000003017
05.04.2018,RESIDENT SERVICES,LONDON TOOLS LIMITED,270,SHELTERED WARDENS,MATERIALS,5902297999,1000003017
05.04.2018,RESIDENT SERVICES,LONDON TOOLS LIMITED,344,SHELTERED WARDENS,MATERIALS,5902297999,1000003017
05.04.2018,RESIDENT SERVICES,KENT COUNTY COUNCIL - LASER,670.2,SUPPORTED HOSTELS,GAS,5902297946,1000012926
05.04.2018,RESIDENT SERVICES,KENT COUNTY COUNCIL - LASER,-342.8,TA HOSTELS,ELECTRICITY,5902297938,1000012926
05.04.2018,RESIDENT SERVICES,KENT COUNTY COUNCIL - LASER,256.45,TA HOSTELS,ELECTRICITY,5902297847,1000012926
05.04.2018,RESIDENT SERVICES,KENT COUNTY COUNCIL - LASER,257.25,TA HOSTELS,ELECTRICITY,5902297869,1000012926
05.04.2018,RESIDENT SERVICES,KENT COUNTY COUNCIL - LASER,273.81,TA HOSTELS,ELECTRICITY,5902298002,1000012926
05.04.2018,RESIDENT SERVICES,KENT COUNTY COUNCIL - LASER,292.43,TA HOSTELS,ELECTRICITY,5902297889,1000012926
05.04.2018,RESIDENT SERVICES,KENT COUNTY COUNCIL - LASER,342.78,TA HOSTELS,ELECTRICITY,5902297780,1000012926
05.04.2018,RESIDENT SERVICES,KENT COUNTY COUNCIL - LASER,344.64,TA HOSTELS,ELECTRICITY,5902297957,1000012926
05.04.2018,RESIDENT SERVICES,KENT COUNTY COUNCIL - LASER,379.21,TA HOSTELS,ELECTRICITY,5902297778,1000012926
05.04.2018,RESIDENT SERVICES,KENT COUNTY COUNCIL - LASER,432.24,TA HOSTELS,ELECTRICITY,5902297987,1000012926
05.04.2018,RESIDENT SERVICES,KENT COUNTY COUNCIL - LASER,916.88,TA HOSTELS,ELECTRICITY,5902297940,1000012926
05.04.2018,RESIDENT SERVICES,KENT COUNTY COUNCIL - LASER,"1,475.01",TA HOSTELS,ELECTRICITY,5902297895,1000012926
05.04.2018,RESIDENT SERVICES,LONDON TOOLS LIMITED,345,TA HOSTELS,MATERIALS,5902297908,1000003017
05.04.2018,RESIDENT SERVICES,A & M PROPERTY AND CONSTRUCTION LTD,665,TA PLACEMENTS,EXTERNAL AGENCIES AND BODIES,5902297781,1000014564
05.04.2018,RESIDENT SERVICES,SHUTTLEWORTH (UK) LTD,396,TA PLACEMENTS,EXTERNAL AGENCIES AND BODIES,5902298033,1000056468
05.04.2018,RESIDENT SERVICES,SHUTTLEWORTH (UK) LTD,"1,116.00",TA PLACEMENTS,EXTERNAL AGENCIES AND BODIES,5902298035,1000056468
05.04.2018,RESIDENT SERVICES,VENTURE HOUSING (LONDON) LTD,"1,444.50",TA PLACEMENTS,EXTERNAL AGENCIES AND BODIES,5902297958,1000056686
05.04.2018,RESIDENT SERVICES,VENTURE HOUSING (LONDON) LTD,"1,541.00",TA PLACEMENTS,EXTERNAL AGENCIES AND BODIES,5902298018,1000056686
05.04.2018,SOUTHWARK BUILDING SERVICES,NEW IMAGE WINDOWS LTD,"22,554.27",BUSINESS SUPPORT,OTHER CONTRACTORS,2102801165,3000000956
05.04.2018,SOUTHWARK BUILDING SERVICES,BUDMAX CONSTRUCTION LTD,"6,914.75",BUSINESS SUPPORT,OTHER CONTRACTORS,2102801164,3000001936
05.04.2018,SOUTHWARK BUILDING SERVICES,ORANGE PERSONAL COMMUNICATIONS,"5,100.00",ICT & COMMUNICATIONS,TELEPHONES (MOBILES),5902297640,11239402
05.04.2018,SOUTHWARK BUILDING SERVICES,LONDON TOOLS LIMITED,290,R & M OVERHEADS,MATERIALS,5902297982,1000003017
05.04.2018,SOUTHWARK BUILDING SERVICES,LONDON TOOLS LIMITED,324,ROOFERS,MATERIALS,5902297928,1000003017
06.04.2018,ADULT SOCIAL CARE,SOUTH LONDON & MAUDSLEY HOSPITAL,"10,848.06",LD/MH/SM MANAGEMENT,EXTERNAL AGENCIES AND BODIES,5902298116,1000013096
06.04.2018,ADULT SOCIAL CARE,METRO HOMECARE LTD,441.28,MEM LTS 65+,HOMECARE - SPOT,2102801395,1000070695
06.04.2018,ADULT SOCIAL CARE,CARE DIRECT UK LTD,289.59,MH LTS 18-64,HOMECARE - SPOT,2102801268,1000066322
06.04.2018,ADULT SOCIAL CARE,METRO HOMECARE LTD,999.78,MH LTS 18-64,HOMECARE - SPOT,2102801355,1000070695
06.04.2018,ADULT SOCIAL CARE,METRO HOMECARE LTD,434.39,MH LTS 65+,HOMECARE - SPOT,2102801391,1000070695
06.04.2018,ADULT SOCIAL CARE,METRO HOMECARE LTD,448.18,MH LTS 65+,HOMECARE - SPOT,2102801415,1000070695
06.04.2018,ADULT SOCIAL CARE,GS LAUNDRIES,378,OLDER PEOPLE MGMT,"CLOTHING, UNIFORMS & LAUNDRY",5902297305,1000050418
06.04.2018,ADULT SOCIAL CARE,METRO HOMECARE LTD,337.86,PHY LTS 18-64,HOMECARE - C&V,2102801421,1000070695
06.04.2018,ADULT SOCIAL CARE,METRO HOMECARE LTD,"1,130.78",PHY LTS 18-64,HOMECARE - C&V,2102801387,1000070695
06.04.2018,ADULT SOCIAL CARE,CARE DIRECT UK LTD,727.42,PHY LTS 18-64,HOMECARE - SPOT,2102801280,1000066322
06.04.2018,ADULT SOCIAL CARE,METRO HOMECARE LTD,275.8,PHY LTS 18-64,HOMECARE - SPOT,2102801361,1000070695
06.04.2018,ADULT SOCIAL CARE,METRO HOMECARE LTD,317.17,PHY LTS 18-64,HOMECARE - SPOT,2102801419,1000070695
06.04.2018,ADULT SOCIAL CARE,METRO HOMECARE LTD,358.54,PHY LTS 18-64,HOMECARE - SPOT,2102801333,1000070695
06.04.2018,ADULT SOCIAL CARE,METRO HOMECARE LTD,358.54,PHY LTS 18-64,HOMECARE - SPOT,2102801405,1000070695
06.04.2018,ADULT SOCIAL CARE,METRO HOMECARE LTD,386.12,PHY LTS 18-64,HOMECARE - SPOT,2102801417,1000070695
06.04.2018,ADULT SOCIAL CARE,METRO HOMECARE LTD,413.7,PHY LTS 18-64,HOMECARE - SPOT,2102801343,1000070695
06.04.2018,ADULT SOCIAL CARE,METRO HOMECARE LTD,427.49,PHY LTS 18-64,HOMECARE - SPOT,2102801365,1000070695
06.04.2018,ADULT SOCIAL CARE,METRO HOMECARE LTD,985.99,PHY LTS 18-64,HOMECARE - SPOT,2102801389,1000070695
06.04.2018,ADULT SOCIAL CARE,CARE DIRECT UK LTD,286.14,PHY LTS 65+,HOMECARE - C&V,2102801282,1000066322
06.04.2018,ADULT SOCIAL CARE,METRO HOMECARE LTD,289.59,PHY LTS 65+,HOMECARE - C&V,2102801403,1000070695
06.04.2018,ADULT SOCIAL CARE,METRO HOMECARE LTD,489.55,PHY LTS 65+,HOMECARE - C&V,2102801371,1000070695
06.04.2018,ADULT SOCIAL CARE,METRO HOMECARE LTD,820.51,PHY LTS 65+,HOMECARE - C&V,2102801339,1000070695
06.04.2018,ADULT SOCIAL CARE,CARE DIRECT UK LTD,251.67,PHY LTS 65+,HOMECARE - SPOT,2102801277,1000066322
06.04.2018,ADULT SOCIAL CARE,CARE DIRECT UK LTD,265.46,PHY LTS 65+,HOMECARE - SPOT,2102801257,1000066322
06.04.2018,ADULT SOCIAL CARE,CARE DIRECT UK LTD,279.25,PHY LTS 65+,HOMECARE - SPOT,2102801285,1000066322
06.04.2018,ADULT SOCIAL CARE,CARE DIRECT UK LTD,306.83,PHY LTS 65+,HOMECARE - SPOT,2102801245,1000066322
06.04.2018,ADULT SOCIAL CARE,CARE DIRECT UK LTD,334.41,PHY LTS 65+,HOMECARE - SPOT,2102801238,1000066322
06.04.2018,ADULT SOCIAL CARE,CARE DIRECT UK LTD,386.12,PHY LTS 65+,HOMECARE - SPOT,2102801290,1000066322
06.04.2018,ADULT SOCIAL CARE,CARE DIRECT UK LTD,472.31,PHY LTS 65+,HOMECARE - SPOT,2102801266,1000066322
06.04.2018,ADULT SOCIAL CARE,CARE DIRECT UK LTD,489.55,PHY LTS 65+,HOMECARE - SPOT,2102801262,1000066322
06.04.2018,ADULT SOCIAL CARE,CARE DIRECT UK LTD,723.98,PHY LTS 65+,HOMECARE - SPOT,2102801284,1000066322
06.04.2018,ADULT SOCIAL CARE,CARE DIRECT UK LTD,723.98,PHY LTS 65+,HOMECARE - SPOT,2102801311,1000066322
06.04.2018,ADULT SOCIAL CARE,METRO HOMECARE LTD,275.8,PHY LTS 65+,HOMECARE - SPOT,2102801399,1000070695
06.04.2018,ADULT SOCIAL CARE,METRO HOMECARE LTD,289.59,PHY LTS 65+,HOMECARE - SPOT,2102801381,1000070695
06.04.2018,ADULT SOCIAL CARE,METRO HOMECARE LTD,310.28,PHY LTS 65+,HOMECARE - SPOT,2102801323,1000070695
06.04.2018,ADULT SOCIAL CARE,METRO HOMECARE LTD,317.17,PHY LTS 65+,HOMECARE - SPOT,2102801321,1000070695
06.04.2018,ADULT SOCIAL CARE,METRO HOMECARE LTD,386.12,PHY LTS 65+,HOMECARE - SPOT,2102801329,1000070695
06.04.2018,ADULT SOCIAL CARE,METRO HOMECARE LTD,386.12,PHY LTS 65+,HOMECARE - SPOT,2102801331,1000070695
06.04.2018,ADULT SOCIAL CARE,METRO HOMECARE LTD,434.39,PHY LTS 65+,HOMECARE - SPOT,2102801357,1000070695
06.04.2018,ADULT SOCIAL CARE,METRO HOMECARE LTD,434.39,PHY LTS 65+,HOMECARE - SPOT,2102801363,1000070695
06.04.2018,ADULT SOCIAL CARE,METRO HOMECARE LTD,475.76,PHY LTS 65+,HOMECARE - SPOT,2102801327,1000070695
06.04.2018,ADULT SOCIAL CARE,METRO HOMECARE LTD,482.65,PHY LTS 65+,HOMECARE - SPOT,2102801347,1000070695
06.04.2018,ADULT SOCIAL CARE,METRO HOMECARE LTD,551.6,PHY LTS 65+,HOMECARE - SPOT,2102801315,1000070695
06.04.2018,ADULT SOCIAL CARE,METRO HOMECARE LTD,648.13,PHY LTS 65+,HOMECARE - SPOT,2102801383,1000070695
06.04.2018,ADULT SOCIAL CARE,METRO HOMECARE LTD,772.24,PHY LTS 65+,HOMECARE - SPOT,2102801349,1000070695
06.04.2018,ADULT SOCIAL CARE,METRO HOMECARE LTD,910.14,PHY LTS 65+,HOMECARE - SPOT,2102801411,1000070695
06.04.2018,ADULT SOCIAL CARE,METRO HOMECARE LTD,979.09,PHY LTS 65+,HOMECARE - SPOT,2102801345,1000070695
06.04.2018,ADULT SOCIAL CARE,METRO HOMECARE LTD,"1,061.83",PHY LTS 65+,HOMECARE - SPOT,2102801385,1000070695
06.04.2018,ADULT SOCIAL CARE,METRO HOMECARE LTD,"1,103.20",PHY LTS 65+,HOMECARE - SPOT,2102801377,1000070695
06.04.2018,ADULT SOCIAL CARE,METRO HOMECARE LTD,520.57,SOCIAL ISOLATION,HOMECARE - SPOT,2102801351,1000070695
06.04.2018,CENTRAL FUNCTIONS,GEMINI CONSULTANTS LTD,"1,995.00",HOME LOANS HRA,SUBSCRIPTIONS,5902298088,1384854
06.04.2018,CHILDREN'S SERVICES,REDACTED PERSONAL DATA,750,ADOPTION PLACEMENTS & INTER AGENCY,PAYMENTS TO CARERS,REDACTED,REDACTED
06.04.2018,CHILDREN'S SERVICES,REDACTED PERSONAL DATA,"1,179.91",ADOPTION PLACEMENTS & INTER AGENCY,PAYMENTS TO CARERS,REDACTED,REDACTED
06.04.2018,CHILDREN'S SERVICES,MONKEY PUZZLE DAY NURSERY STREATHAM,"1,593.75",AGENCY FOSTERING,EXTERNAL AGENCIES AND BODIES,5902298167,1000080140
06.04.2018,CHILDREN'S SERVICES,MEGGS COSTOYA ATTFIELD LTD,"1,463.15",CHILDRENS CENTRE,OTHER CONTRACTORS,5902298173,1000021574
06.04.2018,CHILDREN'S SERVICES,MEGGS COSTOYA ATTFIELD LTD,"2,032.55",CHILDRENS CENTRE,OTHER CONTRACTORS,5902298173,1000021574
06.04.2018,CHILDREN'S SERVICES,PEABODY TRUST,600,CHILDRENS CENTRE,OTHER SUBSISTENCE & CONFERENCE EXPENSES,5902298163,11275862
06.04.2018,CHILDREN'S SERVICES,DANDEVELOPMENT LONDON LTD,525,CHILDRENS CENTRE,OTHER SUBSISTENCE & CONFERENCE EXPENSES,5902298175,1000079390
06.04.2018,CHILDREN'S SERVICES,TAYLOR CONWAY LTD,"1,975.00",CLINICAL SERVICE,PROFESSIONAL FEES,5902298101,1000080955
06.04.2018,CHILDREN'S SERVICES,TAYLOR CONWAY LTD,"7,200.00",CLINICAL SERVICE,PROFESSIONAL FEES,5902298054,1000080955
06.04.2018,CHILDREN'S SERVICES,AVOCET SOCIAL CARE LTD,"3,450.00",DISABILITY & HIV,PROFESSIONAL FEES,5902298090,1000071940
06.04.2018,CUSTOMER EXPERIENCE HGF,SOLACE WOMEN'S AID,"7,448.00",NIGHTLY TA (NSC),EXTERNAL AGENCIES AND BODIES,5902298064,1000057231
06.04.2018,CUSTOMER EXPERIENCE HGF,TAAKSVALE HOUSING LTD,"3,500.00",NIGHTLY TA (NSC),EXTERNAL AGENCIES AND BODIES,5902298058,1000073665
06.04.2018,CUSTOMER EXPERIENCE HGF,TAAKSVALE HOUSING LTD,"3,500.00",NIGHTLY TA (NSC),EXTERNAL AGENCIES AND BODIES,5902298082,1000073665
06.04.2018,ENVIRONMENT AND LEISURE,BANKSIDE OPEN SPACES TRUST,"4,943.42",CAPITAL PS (LEISURE),CONST'N MAIN CONTRACT - NON CERTIFICATED,5902297106,1000018290
06.04.2018,ENVIRONMENT DIRECTORATE,WALWORTH GARDEN SERVICES,"5,563.42",MANAGEMENT TEAM,GROUNDS MAINTENANCE,5902298061,1000047083
06.04.2018,ENVIRONMENT DIRECTORATE,COMPLETE TREE CARE LTD,"1,671.84",NON HOUSING GROUNDS,AGENCY STAFF,5902298063,1000041410
06.04.2018,ENVIRONMENT DIRECTORATE,BARRETTINE ENVIRONMENTAL HEALTH,301.35,PEST CONTROL,MATERIALS,5902298069,1000050556
06.04.2018,ENVIRONMENT DIRECTORATE,BARRETTINE ENVIRONMENTAL HEALTH,"3,463.43",PEST CONTROL,MATERIALS,5902298067,1000050556
06.04.2018,ENVIRONMENT DIRECTORATE,BARRETTINE ENVIRONMENTAL HEALTH,907.11,PEST CONTROL-CDN A/C,MATERIALS,5902298070,1000050556
06.04.2018,F & C S EXCLUDING CORPORATE BUDGETS,NORTHGATE PUBLIC SERVICES (UK) LTD,"5,062.50",ADMINISTRATIVE SUPPORT,SOFTWARE,5902298162,1000037405
06.04.2018,F & C S EXCLUDING CORPORATE BUDGETS,BDO LLP,431.81,INTERNAL AUDIT CONTRACTS,PAYMENTS FOR FINANCIAL SERVICES,5902298111,1000057898
06.04.2018,F & C S EXCLUDING CORPORATE BUDGETS,BDO LLP,"21,618.44",INTERNAL AUDIT CONTRACTS,PAYMENTS FOR FINANCIAL SERVICES,5902298111,1000057898
06.04.2018,HOUSING HRA,CALFORD SEADEN LLP,"6,251.20",CAPITAL PS (HRA),CONSTRUCTION FEES  - EXTERNAL,5902298153,1061592
06.04.2018,HOUSING HRA,CALFORD SEADEN LLP,"18,688.20",CAPITAL PS (HRA),CONSTRUCTION FEES  - EXTERNAL,5902297299,1061592
06.04.2018,HOUSING HRA,SPOKEMEAD MAINTENANCE LTD,"137,384.65",PAYMENTS CONTROL ACCOUNT - SPOKEMEAD,MANUAL CREDITORS,5902297213,1000059211
06.04.2018,HOUSING STRATEGY AND OPTIONS,SOS OFFICE SUPPLIES LTD,796,HOMELESS & HOUSING OPTIONS MGT,STATIONERY,5902297382,1000027032
06.04.2018,LEISURE DIRECTORATE,CASTLE WATER LTD,270.38,BURGESS AREA TEAM,WATER,5902298103,1000078867
06.04.2018,LEISURE DIRECTORATE,NEWLINE (ESSEX) LTD,"2,275.25",CEMETERIES,OTHER CLEANING,5902297364,1000047169
06.04.2018,LEISURE DIRECTORATE,VIVEDIA LIMITED,"2,856.30",CREMATORIUM,OP LEASE/HIRE CHARGES:PLANT/EQUIP/FURNIT,5902297433,1000064867
06.04.2018,LEISURE DIRECTORATE,SPORTS AND LEISURE MANAGEMENT LTD,650,FACILITIES MAINTENANCE,BUILDING R&M,5902298147,1000077862
06.04.2018,LEISURE DIRECTORATE,SPORTS AND LEISURE MANAGEMENT LTD,989,FACILITIES MAINTENANCE,BUILDING R&M,5902298147,1000077862
06.04.2018,LEISURE DIRECTORATE,THE SALMON YOUTH CENTRE,"7,166.67",GRANTS COMMISSIONING,GRANTS,5902298075,1000040686
06.04.2018,LEISURE DIRECTORATE,THE SALMON YOUTH CENTRE,"7,166.67",GRANTS COMMISSIONING,GRANTS,5902298078,1000040686
06.04.2018,LEISURE DIRECTORATE,YOUTH FUTURES,"5,000.00",GRANTS COMMISSIONING,GRANTS,5902298079,1000068524
06.04.2018,LEISURE DIRECTORATE,YOUTH FUTURES,"5,000.00",GRANTS COMMISSIONING,GRANTS,5902298080,1000068524
06.04.2018,LEISURE DIRECTORATE,THE PONTOON & DOCK COMPANY LTD,"10,914.09",SDM BUDGET,OTHER R&M,5902298081,1000080919
06.04.2018,LEISURE DIRECTORATE,CONWAY AECOM LTD,"13,200.00",SDM BUDGET,PROFESSIONAL FEES,5902298065,1000071205
06.04.2018,LEISURE DIRECTORATE,QUADRON SERVICES LIMITED,405.12,SOUTHWARK AREA TEAM,GROUNDS MAINTENANCE,5902298130,1000066528
06.04.2018,LEISURE DIRECTORATE,COMPLETE TREE CARE LTD,513.86,TREES O'HEADS,CONSULTANTS SERVICES,5902298094,1000041410
06.04.2018,LEISURE DIRECTORATE,CSG USHERS LTD,"24,307.22",TREES PRINCIPAL ROADS,OTHER CONTRACTORS,5902298095,1000073203
06.04.2018,LEISURE DIRECTORATE,KEITON LTD,892,TREES PRINCIPAL ROADS,OTHER CONTRACTORS,5902298099,1000080780
06.04.2018,LEISURE DIRECTORATE,SNC FORESTRY LTD,"4,800.00",TREES PRINCIPAL ROADS,TREE MAINTENANCE,5902298098,1000080420
06.04.2018,LEISURE DIRECTORATE,SNC FORESTRY LTD,"8,620.00",TREES PRINCIPAL ROADS,TREE MAINTENANCE,5902298097,1000080420
06.04.2018,MODERNISATION HGF,TMP (UK) LIMITED,685,ADVERTISING,RECRUITMENT ADVERTISING,5902298134,1000041810
06.04.2018,MODERNISATION HGF,TMP (UK) LIMITED,"2,133.30",ADVERTISING,RECRUITMENT ADVERTISING,5902298136,1000041810
06.04.2018,MODERNISATION HGF,TMP (UK) LIMITED,"37,000.00",ADVERTISING,RECRUITMENT ADVERTISING,5902298131,1000041810
06.04.2018,MODERNISATION HGF,SIGNIS LTD,500,CSW - PROFESSIONAL DEVELOPMENT,TRAINING,5902298122,1000075765
06.04.2018,MODERNISATION HGF,WEB-LABS LTD,300,ORG TRANSFORMATION,TRAINING,5902297488,1000039819
06.04.2018,MODERNISATION HGF,WEB-LABS LTD,300,ORG TRANSFORMATION,TRAINING,5902297490,1000039819
06.04.2018,MODERNISATION HGF,LONDON SOUTH BANK UNIVERSITY,"2,766.67",SUPPORT SERVICES,TRAINING,5902298121,1000051012
06.04.2018,MODERNISATION HGF,LUMESSE LTD,"31,200.00",SYSTEMS,RECRUITMENT ADVERTISING,5902298126,1000069981
06.04.2018,MODERNISATION HGF,WEB-LABS LTD,"4,300.00",WEBSITE TEAM,SOFTWARE,5902298127,1000039819
06.04.2018,PLANNING AND TRANSPORT,BPS DORKING LTD,"4,400.00",SUPPORT SERVICES,PROFESSIONAL FEES,5902298084,1000077923
06.04.2018,PLANNING AND TRANSPORT,BPS DORKING LTD,"4,400.00",SUPPORT SERVICES,PROFESSIONAL FEES,5902298086,1000077923
06.04.2018,PLANNING AND TRANSPORT,BPS DORKING LTD,"4,400.00",SUPPORT SERVICES,PROFESSIONAL FEES,5902298087,1000077923
06.04.2018,PLANNING AND TRANSPORT,BPS DORKING LTD,"5,300.00",SUPPORT SERVICES,PROFESSIONAL FEES,5902298091,1000077923
06.04.2018,PUBLIC HEALTH,PUBLIC HEALTH ENGLAND,"41,143.00",PH SPECIALIST TEAMS,CENTRAL GOVERNMENT,5902298089,1000072146
06.04.2018,REGENERATION,RICHARD WELLS COMMUNICATIONS,"2,800.00",STAKEHOLDER ENGAGEMENT,MARKETING & PUBLICITY SERVICES,5902298128,1000075141
06.04.2018,RESIDENT SERVICES,RELIANCE HIGH-TECH LTD,357.02,OPERATIONS/OFFICES ACCOMMODATION,SECURITY EQUIPMENT F&F,5902298117,1000079374
06.04.2018,RESIDENT SERVICES,RELIANCE HIGH-TECH LTD,"1,220.82",OPERATIONS/OFFICES ACCOMMODATION,SECURITY EQUIPMENT F&F,5902298117,1000079374
06.04.2018,RESIDENT SERVICES,J & M OASIS LTD,580,TA PLACEMENTS,EXTERNAL AGENCIES AND BODIES,5902298124,1000072169
07.04.2018,CHILDREN'S SERVICES,INTEGRATED SERVICES PROGRAMME,276,AGENCY FOSTERING,OTHER PAYMENTS FOR CLIENTS,5902297420,1642068
07.04.2018,CHILDREN'S SERVICES,GUARANTEED TRAINING LTD,"1,440.00",CHILDRENS CENTRE,OTHER SUBSISTENCE & CONFERENCE EXPENSES,5902298157,1000066767
07.04.2018,CUSTOMER EXPERIENCE,SHELTER TRAINING LTD,"6,500.00",HOUSING NEEDS,OFFICE EXPENSES,5902297582,1000033177
07.04.2018,CUSTOMER EXPERIENCE HGF,JOANNE MCELROY,300,COMPLAINTS,PROFESSIONAL FEES,5902297378,1000030005
07.04.2018,CUSTOMER EXPERIENCE HGF,K3 PROPERTY MANAGEMENT LTD,"18,525.00",NIGHTLY TA (NSC),EXTERNAL AGENCIES AND BODIES,5902297507,1000068219
07.04.2018,ENVIRONMENT AND LEISURE,STREET TREE CARE LTD,350,CAPITAL PS (LEISURE),CONST'N MAIN CONTRACT - NON CERTIFICATED,5902297671,1000055901
07.04.2018,ENVIRONMENT AND LEISURE,STREET TREE CARE LTD,411.4,CAPITAL PS (LEISURE),CONST'N MAIN CONTRACT - NON CERTIFICATED,5902297671,1000055901
07.04.2018,ENVIRONMENT AND LEISURE,STREET TREE CARE LTD,"1,357.10",CAPITAL PS (LEISURE),CONST'N MAIN CONTRACT - NON CERTIFICATED,5902297671,1000055901
07.04.2018,ENVIRONMENT AND LEISURE,STREET TREE CARE LTD,"3,436.50",CAPITAL PS (LEISURE),CONST'N MAIN CONTRACT - NON CERTIFICATED,5902297671,1000055901
07.04.2018,ENVIRONMENT AND LEISURE,STREET TREE CARE LTD,"5,254.00",CAPITAL PS (LEISURE),CONSTRUCTION FEES  - EXTERNAL,5902298028,1000055901
07.04.2018,ENVIRONMENT AND LEISURE,TILHILL FORESTRY LTD,"26,391.94",CAPITAL PS (LEISURE),CONSTRUCTION FEES  - EXTERNAL,2102801170,3000001208
07.04.2018,ENVIRONMENT AND LEISURE,STREET TREE CARE LTD,"75,378.75",CAPITAL PS (LEISURE),CONSTRUCTION FEES - INTERNAL,5902298031,1000055901
07.04.2018,F & C S EXCLUDING CORPORATE BUDGETS,ARCUS GLOBAL LTD,"16,800.00",ADMINISTRATIVE SUPPORT,PROFESSIONAL FEES,5902297577,1000080110
07.04.2018,F & C S EXCLUDING CORPORATE BUDGETS,ARCUS GLOBAL LTD,"51,600.00",ADMINISTRATIVE SUPPORT,PROFESSIONAL FEES,5902297577,1000080110
07.04.2018,F & C S EXCLUDING CORPORATE BUDGETS,ARCUS GLOBAL LTD,"55,000.00",ADMINISTRATIVE SUPPORT,PROFESSIONAL FEES,5902297577,1000080110
07.04.2018,F & C S EXCLUDING CORPORATE BUDGETS,POLICY IN PRACTICE,"14,504.00",ADMINISTRATIVE SUPPORT,SOFTWARE,5902297492,1000079014
07.04.2018,HOUSING STRATEGY AND OPTIONS,REDACTED PERSONAL DATA,392,HOMELESS & HOUSING OPTIONS MGT,LEGAL FEES & COURT COSTS,REDACTED,REDACTED
07.04.2018,MODERNISATION HGF,RICHARD COOPER,500,HR PAYROLL COSTS,CONSULTANTS SERVICES,5902297509,1000080957
07.04.2018,MODERNISATION HGF,TABRIS LTD,"2,393.75",ILM COSTS,TRAINING,5902297413,1000080027
07.04.2018,MODERNISATION HGF,JOHN STATTERS ASSOCIATES,263,OCCUPATIONAL ASSESSMENT,CONSULTANTS SERVICES,5902297510,1000065600
07.04.2018,MODERNISATION HGF,JOHN STATTERS ASSOCIATES,662,OCCUPATIONAL ASSESSMENT,CONSULTANTS SERVICES,5902297510,1000065600
07.04.2018,MODERNISATION HGF,JOHN STATTERS ASSOCIATES,"4,300.00",OCCUPATIONAL ASSESSMENT,CONSULTANTS SERVICES,5902297510,1000065600
07.04.2018,MODERNISATION HGF,ITEC CONNECT LTD,275,TECHNOLOGY,PRINTING,5902297514,1000080418
08.04.2018,CHILDREN AND ADULT,HOLLY BRYAN ASSOCIATES LTD,"8,000.00",CAPITAL PS (STRAT SERV),ICT ACQUISITION,5902297511,1000077962
08.04.2018,CHILDREN'S SERVICES,SALTCO LTD T/A KELLY EXECUTIVE,"2,890.00",SUMMERHOUSE - EX416 - 5015232,HIRED VEHICLES,5902297747,1000000548
08.04.2018,ENVIRONMENT DIRECTORATE,R H  ENVIRONMENTAL LTD,356,RESIDENTIAL SERVICES,TRAINING,5902298083,1000070361
08.04.2018,F & C S EXCLUDING CORPORATE BUDGETS,VALUEADDING.COM LTD,324,PROJECTS,OTHER CONTRACTORS,5902298072,1000066730
08.04.2018,F & C S EXCLUDING CORPORATE BUDGETS,VALUEADDING.COM LTD,"4,668.00",PROJECTS,OTHER CONTRACTORS,5902298072,1000066730
08.04.2018,F & C S EXCLUDING CORPORATE BUDGETS,VALUEADDING.COM LTD,"5,637.50",PROJECTS,OTHER CONTRACTORS,5902298149,1000066730
08.04.2018,HOUSING HRA,MORGAN SINDALL PLC,"527,120.00",CAPITAL PS (HRA),CONSTRUCTION MAIN CONTRACT -CERTIFICATED,2102800865,3000001556
08.04.2018,HOUSING HRA,SMITH & BYFORD LTD,"388,412.94",SMITH AND BYFORD,MANUAL CREDITORS,5902297559,11212119
08.04.2018,LEISURE DIRECTORATE,CSG USHERS LTD,"31,425.00",TREES PRINCIPAL ROADS,OTHER CONTRACTORS,5902298096,1000073203
08.04.2018,MODERNISATION HGF,CHALLENGE CONSULTANCY LTD,800,ORG TRANSFORMATION,TRAINING,5902297661,1000048110
08.04.2018,MODERNISATION HGF,ELIESHA TRAINING LTD,595,ORG TRANSFORMATION,TRAINING,5902297647,1000079900
08.04.2018,PLANNING AND TRANSPORT,SOUTHWARK NEWSPAPER LTD,372,PLANNING POLICY TEAM,MISCELLANEOUS EXPENSES,5902297516,1556957
08.04.2018,PROPERTY SERVICES,STANBURY BUILDING SERVICES LTD,495,KENNINGTON WORKSHOPS,BUILDING R&M,5902297388,1000078207
08.04.2018,PROPERTY SERVICES,STANBURY BUILDING SERVICES LTD,850,KENNINGTON WORKSHOPS,BUILDING R&M,5902297390,1000078207
09.04.2018,ADULT SOCIAL CARE,REDACTED PERSONAL DATA,266.65,APPOINTEESHIPS,OTHER PAYMENTS FOR CLIENTS,REDACTED,REDACTED
09.04.2018,ADULT SOCIAL CARE,SOUTH LONDON & MAUDSLEY HOSPITAL,"1,244.48",DIR OF ASC,PROFESSIONAL FEES,5902298229,1000013096
09.04.2018,ADULT SOCIAL CARE,NATIONAL AUTISTIC SOCIETY CARE PACK,"3,614.16",LD LTS 18-64,DAYCARE,2102801670,1000020538
09.04.2018,ADULT SOCIAL CARE,LONDON CARE LTD,750.63,LD LTS 18-64,HOMECARE - C&V,2102801708,1000003398
09.04.2018,ADULT SOCIAL CARE,SWK DISABLEMENT ASSN,"2,122.56",LD LTS 18-64,HOMECARE - C&V,2102801700,1000011698
09.04.2018,ADULT SOCIAL CARE,MEDACS HOMECARE,289,LD LTS 18-64,HOMECARE - SPOT,2102801675,11287415
09.04.2018,ADULT SOCIAL CARE,MEDACS HOMECARE,346.8,LD LTS 18-64,HOMECARE - SPOT,2102801676,11287415
09.04.2018,ADULT SOCIAL CARE,MEDACS HOMECARE,"1,069.30",LD LTS 18-64,HOMECARE - SPOT,2102801672,11287415
09.04.2018,ADULT SOCIAL CARE,SWK DISABLEMENT ASSN,273.6,LD LTS 18-64,HOMECARE - SPOT,2102801693,1000011698
09.04.2018,ADULT SOCIAL CARE,HEALTH PERSONNEL LTD,"4,595.00",LD LTS 18-64,RESIDENTIAL CARE,2102801839,1000076377
09.04.2018,ADULT SOCIAL CARE,MEDACS HOMECARE,555.12,LD LTS 18-64,SUPPORTED LIVING,2102801674,11287415
09.04.2018,ADULT SOCIAL CARE,PROFAD CARE AGENCY,668.82,MEM LTS 65+,HOMECARE - C&V,2102801779,1000079032
09.04.2018,ADULT SOCIAL CARE,PROFAD CARE AGENCY,592.97,MEM LTS 65+,HOMECARE - SPOT,2102801780,1000079032
09.04.2018,ADULT SOCIAL CARE,PROFAD CARE AGENCY,634.34,MEM LTS 65+,HOMECARE - SPOT,2102801735,1000079032
09.04.2018,ADULT SOCIAL CARE,PROFAD CARE AGENCY,"2,261.56",MEM LTS 65+,HOMECARE - SPOT,2102801750,1000079032
09.04.2018,ADULT SOCIAL CARE,SWK DISABLEMENT ASSN,304,MH LTS 18-64,HOMECARE - SPOT,2102801695,1000011698
09.04.2018,ADULT SOCIAL CARE,SWK DISABLEMENT ASSN,364.8,MH LTS 18-64,HOMECARE - SPOT,2102801703,1000011698
09.04.2018,ADULT SOCIAL CARE,SWK DISABLEMENT ASSN,547.2,MH LTS 18-64,HOMECARE - SPOT,2102801706,1000011698
09.04.2018,ADULT SOCIAL CARE,SWK DISABLEMENT ASSN,881.6,MH LTS 18-64,HOMECARE - SPOT,2102801683,1000011698
09.04.2018,ADULT SOCIAL CARE,PROFAD CARE AGENCY,386.12,MH LTS 18-64,HOMECARE - SPOT,2102801754,1000079032
09.04.2018,ADULT SOCIAL CARE,PROFAD CARE AGENCY,606.76,MH LTS 18-64,HOMECARE - SPOT,2102801759,1000079032
09.04.2018,ADULT SOCIAL CARE,SWK DISABLEMENT ASSN,319.2,MH LTS 18-64,SUPPORTED LIVING,2102801679,1000011698
09.04.2018,ADULT SOCIAL CARE,PROFAD CARE AGENCY,324.11,MH STS 18-64,HOMECARE - IC,2102801775,1000079032
09.04.2018,ADULT SOCIAL CARE,PHOENIX HEALTHCARE & RECRUITMENT,391.36,PHY LTS 18-64,DAYCARE,2102801848,1000065636
09.04.2018,ADULT SOCIAL CARE,PHOENIX HEALTHCARE & RECRUITMENT,391.36,PHY LTS 18-64,DAYCARE,2102801849,1000065636
09.04.2018,ADULT SOCIAL CARE,PHOENIX HEALTHCARE & RECRUITMENT,391.36,PHY LTS 18-64,DAYCARE,2102801851,1000065636
09.04.2018,ADULT SOCIAL CARE,LONDON CARE LTD,256.47,PHY LTS 18-64,HOMECARE - C&V,2102801712,1000003398
09.04.2018,ADULT SOCIAL CARE,LONDON CARE LTD,269.09,PHY LTS 18-64,HOMECARE - C&V,2102801707,1000003398
09.04.2018,ADULT SOCIAL CARE,LONDON CARE LTD,689.44,PHY LTS 18-64,HOMECARE - C&V,2102801713,1000003398
09.04.2018,ADULT SOCIAL CARE,PROFAD CARE AGENCY,"2,247.77",PHY LTS 18-64,HOMECARE - C&V,2102801747,1000079032
09.04.2018,ADULT SOCIAL CARE,SWK DISABLEMENT ASSN,364.8,PHY LTS 18-64,HOMECARE - SPOT,2102801686,1000011698
09.04.2018,ADULT SOCIAL CARE,SWK DISABLEMENT ASSN,425.6,PHY LTS 18-64,HOMECARE - SPOT,2102801688,1000011698
09.04.2018,ADULT SOCIAL CARE,SWK DISABLEMENT ASSN,972.8,PHY LTS 18-64,HOMECARE - SPOT,2102801685,1000011698
09.04.2018,ADULT SOCIAL CARE,SWK DISABLEMENT ASSN,"1,611.20",PHY LTS 18-64,HOMECARE - SPOT,2102801684,1000011698
09.04.2018,ADULT SOCIAL CARE,METRO HOMECARE LTD,627.45,PHY LTS 18-64,HOMECARE - SPOT,2102801823,1000070695
09.04.2018,ADULT SOCIAL CARE,METRO HOMECARE LTD,772.24,PHY LTS 18-64,HOMECARE - SPOT,2102801812,1000070695
09.04.2018,ADULT SOCIAL CARE,PROFAD CARE AGENCY,441.28,PHY LTS 18-64,HOMECARE - SPOT,2102801762,1000079032
09.04.2018,ADULT SOCIAL CARE,PROFAD CARE AGENCY,634.34,PHY LTS 18-64,HOMECARE - SPOT,2102801740,1000079032
09.04.2018,ADULT SOCIAL CARE,PROFAD CARE AGENCY,772.24,PHY LTS 18-64,HOMECARE - SPOT,2102801724,1000079032
09.04.2018,ADULT SOCIAL CARE,PROFAD CARE AGENCY,"2,316.72",PHY LTS 18-64,HOMECARE - SPOT,2102801790,1000079032
09.04.2018,ADULT SOCIAL CARE,PROFAD CARE AGENCY,"3,088.96",PHY LTS 18-64,HOMECARE - SPOT,2102801785,1000079032
09.04.2018,ADULT SOCIAL CARE,MEDACS HOMECARE,578,PHY LTS 18-64,SUPPORTED LIVING,2102801677,11287415
09.04.2018,ADULT SOCIAL CARE,LONDON CARE LTD,550.6,PHY LTS 65+,HOMECARE - C&V,2102801714,1000003398
09.04.2018,ADULT SOCIAL CARE,LONDON CARE LTD,971.04,PHY LTS 65+,HOMECARE - C&V,2102801710,1000003398
09.04.2018,ADULT SOCIAL CARE,SWK DISABLEMENT ASSN,342,PHY LTS 65+,HOMECARE - C&V,2102801842,1000011698
09.04.2018,ADULT SOCIAL CARE,SWK DISABLEMENT ASSN,"1,087.72",PHY LTS 65+,HOMECARE - C&V,2102801841,1000011698
09.04.2018,ADULT SOCIAL CARE,METRO HOMECARE LTD,"1,241.10",PHY LTS 65+,HOMECARE - C&V,2102801817,1000070695
09.04.2018,ADULT SOCIAL CARE,PROFAD CARE AGENCY,"1,875.44",PHY LTS 65+,HOMECARE - C&V,2102801799,1000079032
09.04.2018,ADULT SOCIAL CARE,PROFAD CARE AGENCY,"2,123.66",PHY LTS 65+,HOMECARE - C&V,2102801744,1000079032
09.04.2018,ADULT SOCIAL CARE,SWK DISABLEMENT ASSN,874,PHY LTS 65+,HOMECARE - SPOT,2102801844,1000011698
09.04.2018,ADULT SOCIAL CARE,SWK DISABLEMENT ASSN,896.8,PHY LTS 65+,HOMECARE - SPOT,2102801845,1000011698
09.04.2018,ADULT SOCIAL CARE,SWK DISABLEMENT ASSN,918.72,PHY LTS 65+,HOMECARE - SPOT,2102801840,1000011698
09.04.2018,ADULT SOCIAL CARE,SWK DISABLEMENT ASSN,"1,995.84",PHY LTS 65+,HOMECARE - SPOT,2102801846,1000011698
09.04.2018,ADULT SOCIAL CARE,METRO HOMECARE LTD,268.91,PHY LTS 65+,HOMECARE - SPOT,2102801831,1000070695
09.04.2018,ADULT SOCIAL CARE,METRO HOMECARE LTD,317.17,PHY LTS 65+,HOMECARE - SPOT,2102801809,1000070695
09.04.2018,ADULT SOCIAL CARE,METRO HOMECARE LTD,375.78,PHY LTS 65+,HOMECARE - SPOT,2102801847,1000070695
09.04.2018,ADULT SOCIAL CARE,METRO HOMECARE LTD,379.23,PHY LTS 65+,HOMECARE - SPOT,2102801808,1000070695
09.04.2018,ADULT SOCIAL CARE,METRO HOMECARE LTD,393.02,PHY LTS 65+,HOMECARE - SPOT,2102801805,1000070695
09.04.2018,ADULT SOCIAL CARE,METRO HOMECARE LTD,420.6,PHY LTS 65+,HOMECARE - SPOT,2102801822,1000070695
09.04.2018,ADULT SOCIAL CARE,METRO HOMECARE LTD,461.97,PHY LTS 65+,HOMECARE - SPOT,2102801816,1000070695
09.04.2018,ADULT SOCIAL CARE,METRO HOMECARE LTD,482.65,PHY LTS 65+,HOMECARE - SPOT,2102801820,1000070695
09.04.2018,ADULT SOCIAL CARE,METRO HOMECARE LTD,537.81,PHY LTS 65+,HOMECARE - SPOT,2102801827,1000070695
09.04.2018,ADULT SOCIAL CARE,METRO HOMECARE LTD,551.6,PHY LTS 65+,HOMECARE - SPOT,2102801819,1000070695
09.04.2018,ADULT SOCIAL CARE,METRO HOMECARE LTD,592.97,PHY LTS 65+,HOMECARE - SPOT,2102801807,1000070695
09.04.2018,ADULT SOCIAL CARE,METRO HOMECARE LTD,"1,041.15",PHY LTS 65+,HOMECARE - SPOT,2102801810,1000070695
09.04.2018,ADULT SOCIAL CARE,METRO HOMECARE LTD,"1,061.83",PHY LTS 65+,HOMECARE - SPOT,2102801821,1000070695
09.04.2018,ADULT SOCIAL CARE,METRO HOMECARE LTD,"1,103.20",PHY LTS 65+,HOMECARE - SPOT,2102801814,1000070695
09.04.2018,ADULT SOCIAL CARE,METRO HOMECARE LTD,"1,116.99",PHY LTS 65+,HOMECARE - SPOT,2102801811,1000070695
09.04.2018,ADULT SOCIAL CARE,METRO HOMECARE LTD,"1,723.75",PHY LTS 65+,HOMECARE - SPOT,2102801813,1000070695
09.04.2018,ADULT SOCIAL CARE,PROFAD CARE AGENCY,330.96,PHY LTS 65+,HOMECARE - SPOT,2102801761,1000079032
09.04.2018,ADULT SOCIAL CARE,PROFAD CARE AGENCY,379.23,PHY LTS 65+,HOMECARE - SPOT,2102801766,1000079032
09.04.2018,ADULT SOCIAL CARE,PROFAD CARE AGENCY,386.12,PHY LTS 65+,HOMECARE - SPOT,2102801757,1000079032
09.04.2018,ADULT SOCIAL CARE,PROFAD CARE AGENCY,386.12,PHY LTS 65+,HOMECARE - SPOT,2102801758,1000079032
09.04.2018,ADULT SOCIAL CARE,PROFAD CARE AGENCY,399.91,PHY LTS 65+,HOMECARE - SPOT,2102801774,1000079032
09.04.2018,ADULT SOCIAL CARE,PROFAD CARE AGENCY,413.7,PHY LTS 65+,HOMECARE - SPOT,2102801741,1000079032
09.04.2018,ADULT SOCIAL CARE,PROFAD CARE AGENCY,441.28,PHY LTS 65+,HOMECARE - SPOT,2102801801,1000079032
09.04.2018,ADULT SOCIAL CARE,PROFAD CARE AGENCY,482.65,PHY LTS 65+,HOMECARE - SPOT,2102801773,1000079032
09.04.2018,ADULT SOCIAL CARE,PROFAD CARE AGENCY,520.57,PHY LTS 65+,HOMECARE - SPOT,2102801769,1000079032
09.04.2018,ADULT SOCIAL CARE,PROFAD CARE AGENCY,524.02,PHY LTS 65+,HOMECARE - SPOT,2102801752,1000079032
09.04.2018,ADULT SOCIAL CARE,PROFAD CARE AGENCY,551.6,PHY LTS 65+,HOMECARE - SPOT,2102801793,1000079032
09.04.2018,ADULT SOCIAL CARE,PROFAD CARE AGENCY,565.39,PHY LTS 65+,HOMECARE - SPOT,2102801742,1000079032
09.04.2018,ADULT SOCIAL CARE,PROFAD CARE AGENCY,592.97,PHY LTS 65+,HOMECARE - SPOT,2102801777,1000079032
09.04.2018,ADULT SOCIAL CARE,PROFAD CARE AGENCY,606.76,PHY LTS 65+,HOMECARE - SPOT,2102801803,1000079032
09.04.2018,ADULT SOCIAL CARE,PROFAD CARE AGENCY,634.34,PHY LTS 65+,HOMECARE - SPOT,2102801743,1000079032
09.04.2018,ADULT SOCIAL CARE,PROFAD CARE AGENCY,634.34,PHY LTS 65+,HOMECARE - SPOT,2102801770,1000079032
09.04.2018,ADULT SOCIAL CARE,PROFAD CARE AGENCY,648.13,PHY LTS 65+,HOMECARE - SPOT,2102801756,1000079032
09.04.2018,ADULT SOCIAL CARE,PROFAD CARE AGENCY,668.82,PHY LTS 65+,HOMECARE - SPOT,2102801748,1000079032
09.04.2018,ADULT SOCIAL CARE,PROFAD CARE AGENCY,696.4,PHY LTS 65+,HOMECARE - SPOT,2102801767,1000079032
09.04.2018,ADULT SOCIAL CARE,PROFAD CARE AGENCY,768.79,PHY LTS 65+,HOMECARE - SPOT,2102801768,1000079032
09.04.2018,ADULT SOCIAL CARE,PROFAD CARE AGENCY,775.69,PHY LTS 65+,HOMECARE - SPOT,2102801763,1000079032
09.04.2018,ADULT SOCIAL CARE,PROFAD CARE AGENCY,830.85,PHY LTS 65+,HOMECARE - SPOT,2102801730,1000079032
09.04.2018,ADULT SOCIAL CARE,PROFAD CARE AGENCY,841.19,PHY LTS 65+,HOMECARE - SPOT,2102801749,1000079032
09.04.2018,ADULT SOCIAL CARE,PROFAD CARE AGENCY,854.98,PHY LTS 65+,HOMECARE - SPOT,2102801804,1000079032
09.04.2018,ADULT SOCIAL CARE,PROFAD CARE AGENCY,868.77,PHY LTS 65+,HOMECARE - SPOT,2102801778,1000079032
09.04.2018,ADULT SOCIAL CARE,PROFAD CARE AGENCY,910.14,PHY LTS 65+,HOMECARE - SPOT,2102801746,1000079032
09.04.2018,ADULT SOCIAL CARE,PROFAD CARE AGENCY,910.14,PHY LTS 65+,HOMECARE - SPOT,2102801797,1000079032
09.04.2018,ADULT SOCIAL CARE,PROFAD CARE AGENCY,937.72,PHY LTS 65+,HOMECARE - SPOT,2102801732,1000079032
09.04.2018,ADULT SOCIAL CARE,PROFAD CARE AGENCY,951.51,PHY LTS 65+,HOMECARE - SPOT,2102801787,1000079032
09.04.2018,ADULT SOCIAL CARE,PROFAD CARE AGENCY,982.54,PHY LTS 65+,HOMECARE - SPOT,2102801788,1000079032
09.04.2018,ADULT SOCIAL CARE,PROFAD CARE AGENCY,"1,609.98",PHY LTS 65+,HOMECARE - SPOT,2102801733,1000079032
09.04.2018,ADULT SOCIAL CARE,PROFAD CARE AGENCY,"1,737.54",PHY LTS 65+,HOMECARE - SPOT,2102801726,1000079032
09.04.2018,ADULT SOCIAL CARE,PROFAD CARE AGENCY,"1,930.60",PHY LTS 65+,HOMECARE - SPOT,2102801796,1000079032
09.04.2018,ADULT SOCIAL CARE,PROFAD CARE AGENCY,"3,075.17",PHY LTS 65+,HOMECARE - SPOT,2102801731,1000079032
09.04.2018,ADULT SOCIAL CARE,PROFAD CARE AGENCY,"3,157.91",PHY LTS 65+,HOMECARE - SPOT,2102801789,1000079032
09.04.2018,ADULT SOCIAL CARE,PROFAD CARE AGENCY,789.48,SEN LTS 18-64,HOMECARE - SPOT,2102801792,1000079032
09.04.2018,ADULT SOCIAL CARE,PROFAD CARE AGENCY,758.45,SEN LTS 65+,HOMECARE - SPOT,2102801791,1000079032
09.04.2018,ADULT SOCIAL CARE,SWK DISABLEMENT ASSN,"1,552.32",SOCIAL ISOLATION,HOMECARE - SPOT,2102801701,1000011698
09.04.2018,ADULT SOCIAL CARE,METRO HOMECARE LTD,289.59,SOCIAL ISOLATION,HOMECARE - SPOT,2102801815,1000070695
09.04.2018,ADULT SOCIAL CARE,PROFAD CARE AGENCY,496.44,SOCIAL ISOLATION,HOMECARE - SPOT,2102801760,1000079032
09.04.2018,ADULT SOCIAL CARE,KAIROS COMMUNITY TRUST,"2,430.00",SUB LTS 18-64,DAYCARE,2102801837,1000025479
09.04.2018,ADULT SOCIAL CARE,KAIROS COMMUNITY TRUST,"3,240.00",SUB LTS 18-64,DAYCARE,2102801832,1000025479
09.04.2018,ADULT SOCIAL CARE,KAIROS COMMUNITY TRUST,"3,240.00",SUB LTS 18-64,DAYCARE,2102801835,1000025479
09.04.2018,ADULT SOCIAL CARE,HEBRON TRUST,"2,767.86",SUB LTS 18-64,PLACEMENTS - REHAB,2102801834,1000056819
09.04.2018,ADULT SOCIAL CARE,FOCUSED HEALTHCARE LTD,"7,005.00",TRANSITION 14 - 18 YEARS,SECTION 17 PAYMENTS TO AGENCIES/CARERS,5902298240,1000069262
09.04.2018,ASSET MANAGEMENT,T BROWN & SONS (HEATING) LTD,"4,000.00",ENG CONTRACTS (NORTH),PLANNED MAINTENANCE,5902298221,1000040191
09.04.2018,CENTRAL FUNCTIONS,VPS (UK) LTD,"18,707.13",AYLESBURY,SECURITY SERVICES,5902298318,1000040614
09.04.2018,CENTRAL FUNCTIONS,POTTER RAPER AND PARTNERS,"1,320.00",GARAGE REPAIRS,PROFESSIONAL FEES,5902298193,1009369
09.04.2018,CHIEF EXECUTIVE,INFINITY NETWORKS LTD,"3,804.00",CAPITAL PS (REGEN),CONSTRUCTION MAIN CONTRACT,5902298203,1000035571
09.04.2018,CHILDREN'S SERVICES,SUPPORTED FOSTERING SERVICES,"5,513.57",AGENCY FOSTERING,EXTERNAL AGENCIES AND BODIES,2102801855,1927554
09.04.2018,CHILDREN'S SERVICES,BY THE BRIDGE LTD,"4,364.71",AGENCY FOSTERING,EXTERNAL AGENCIES AND BODIES,2102801852,1000043961
09.04.2018,CHILDREN'S SERVICES,BY THE BRIDGE LTD,"4,570.02",AGENCY FOSTERING,EXTERNAL AGENCIES AND BODIES,2102801853,1000043961
09.04.2018,CHILDREN'S SERVICES,FOLLOWING WHISPERS FAMILY SERVICE LTD,"6,525.50",AGENCY FOSTERING,EXTERNAL AGENCIES AND BODIES,2102801854,1000065611
09.04.2018,CHILDREN'S SERVICES,FOLLOWING WHISPERS FAMILY SERVICE LTD,"6,864.33",AGENCY FOSTERING,EXTERNAL AGENCIES AND BODIES,2102801856,1000065611
09.04.2018,CHILDREN'S SERVICES,SWIIS FOSTER CARE LTD,697.97,AGENCY FOSTERING,EXTERNAL AGENCIES AND BODIES,2102801857,1000069633
09.04.2018,CHILDREN'S SERVICES,ALBION PRIMARY SCHOOL,"13,500.00",ALBION JMI,EARLY YEARS - 3 AND 4 YEAR OLDS,2102801894,5001000000
09.04.2018,CHILDREN'S SERVICES,ALBION PRIMARY SCHOOL,"229,416.00",ALBION JMI,SCHOOLS CAPITATION,2102801950,5001000000
09.04.2018,CHILDREN'S SERVICES,ALFRED SALTER PRIMARY SCHOOL,"16,362.00",ALFRED SALTER PRIMARY,EARLY YEARS - 3 AND 4 YEAR OLDS,2102801921,5001000005
09.04.2018,CHILDREN'S SERVICES,ALFRED SALTER PRIMARY SCHOOL,"247,834.00",ALFRED SALTER PRIMARY,SCHOOLS CAPITATION,2102801980,5001000005
09.04.2018,CHILDREN'S SERVICES,BELLENDEN PRIMARY SCHOOL,"10,640.00",BELLENDEN JMI,EARLY YEARS - 3 AND 4 YEAR OLDS,2102801895,5001000007
09.04.2018,CHILDREN'S SERVICES,BELLENDEN PRIMARY SCHOOL,"154,187.00",BELLENDEN JMI,SCHOOLS CAPITATION,2102801951,5001000007
09.04.2018,CHILDREN'S SERVICES,BEORMUND PRIMARY SCHOOL,"97,872.00",BEORMUND SCHOOL,HIGH NEEDS - TOP UP FUNDING,2102802020,5001000008
09.04.2018,CHILDREN'S SERVICES,BESSEMER GRANGE PRIMARY SCHOOL,"25,687.00",BESSEMER GRNGE PRIMARY,EARLY YEARS - 3 AND 4 YEAR OLDS,2102801923,5001000009
09.04.2018,CHILDREN'S SERVICES,BESSEMER GRANGE PRIMARY SCHOOL,"407,163.00",BESSEMER GRNGE PRIMARY,SCHOOLS CAPITATION,2102801982,5001000009
09.04.2018,CHILDREN'S SERVICES,BOUCHER C OF E PRIMARY SCHOOL,"126,949.00",BOUTCHER GRANGE JMI,SCHOOLS CAPITATION,2102801984,5001000011
09.04.2018,CHILDREN'S SERVICES,BRUNSWICK PARK PRIMARY SCHOOL,"12,396.00",BRUNSWICK PARK JM,EARLY YEARS - 3 AND 4 YEAR OLDS,2102801924,5001000013
09.04.2018,CHILDREN'S SERVICES,BRUNSWICK PARK PRIMARY SCHOOL,"30,573.00",BRUNSWICK PARK JM,HIGH NEEDS - TOP UP FUNDING SEN UNIT,2102802026,5001000013
09.04.2018,CHILDREN'S SERVICES,BRUNSWICK PARK PRIMARY SCHOOL,"284,635.00",BRUNSWICK PARK JM,SCHOOLS CAPITATION,2102801983,5001000013
09.04.2018,CHILDREN'S SERVICES,NPOWER LTD,598.35,CAMBERWELL GROVE EARLY YEARS CENTRE,ELECTRICITY,5902298337,1000078994
09.04.2018,CHILDREN'S SERVICES,CAMELOT PRIMARY SCHOOL,"14,216.00",CAMELOT JMI,EARLY YEARS - 3 AND 4 YEAR OLDS,2102801896,5001000014
09.04.2018,CHILDREN'S SERVICES,CAMELOT PRIMARY SCHOOL,"274,422.00",CAMELOT JMI,SCHOOLS CAPITATION,2102801952,5001000014
09.04.2018,CHILDREN'S SERVICES,REDACTED PERSONAL DATA,280,CARE PRACTICE GROUP SET C,OTHER PAYMENTS FOR CLIENTS,REDACTED,REDACTED
09.04.2018,CHILDREN'S SERVICES,REDACTED PERSONAL DATA,350,CARE PRACTICE GROUP SET C,OTHER PAYMENTS FOR CLIENTS,REDACTED,REDACTED
09.04.2018,CHILDREN'S SERVICES,REDACTED PERSONAL DATA,350,CARE PRACTICE GROUP SET C,OTHER PAYMENTS FOR CLIENTS,REDACTED,REDACTED
09.04.2018,CHILDREN'S SERVICES,REDACTED PERSONAL DATA,350,CARE PRACTICE GROUP SET C,OTHER PAYMENTS FOR CLIENTS,REDACTED,REDACTED
09.04.2018,CHILDREN'S SERVICES,REDACTED PERSONAL DATA,350,CARE PRACTICE GROUP SET C,OTHER PAYMENTS FOR CLIENTS,REDACTED,REDACTED
09.04.2018,CHILDREN'S SERVICES,REDACTED PERSONAL DATA,350,CARE PRACTICE GROUP SET C,OTHER PAYMENTS FOR CLIENTS,REDACTED,REDACTED
09.04.2018,CHILDREN'S SERVICES,REDACTED PERSONAL DATA,420,CARE PRACTICE GROUP SET C,OTHER PAYMENTS FOR CLIENTS,REDACTED,REDACTED
09.04.2018,CHILDREN'S SERVICES,CATHEDRAL SCHOOL OF ST SAVIOUR & MARY,"9,836.00",CATHDRL SCH OF ST,EARLY YEARS - 3 AND 4 YEAR OLDS,2102801936,5001000088
09.04.2018,CHILDREN'S SERVICES,CATHEDRAL SCHOOL OF ST SAVIOUR & MARY,"128,021.00",CATHDRL SCH OF ST,SCHOOLS CAPITATION,2102802002,5001000088
09.04.2018,CHILDREN'S SERVICES,DAVID LAWSON,"1,400.00",CENTRAL COSTS - SEN,LEGAL FEES & COURT COSTS,5902292603,1000074102
09.04.2018,CHILDREN'S SERVICES,REVIVAL,"1,100.00",CENTRAL SUPPORT,MEDICAL / HEALTH & SAFETY SERVICES,5902298357,1000027424
09.04.2018,CHILDREN'S SERVICES,CHARLES DICKENS PRIMARY SCHOOL,"14,859.00",CHARLES DICKENS JMI,EARLY YEARS - 3 AND 4 YEAR OLDS,2102801897,5001000015
09.04.2018,CHILDREN'S SERVICES,CHARLES DICKENS PRIMARY SCHOOL,"301,380.00",CHARLES DICKENS JMI,SCHOOLS CAPITATION,2102801953,5001000015
09.04.2018,CHILDREN'S SERVICES,CHARLOTTE  SHARMAN PRIMARY SCHOOL,"14,759.00",CHARLOTTE SHARMAN JMI,EARLY YEARS - 3 AND 4 YEAR OLDS,2102801942,5001000016
09.04.2018,CHILDREN'S SERVICES,CHARLOTTE  SHARMAN PRIMARY SCHOOL,"177,957.00",CHARLOTTE SHARMAN JMI,SCHOOLS CAPITATION,2102802010,5001000016
09.04.2018,CHILDREN'S SERVICES,CHERRY GARDEN SCHOOL,"334,806.00",CHERRY GARDEN,HIGH NEEDS - TOP UP FUNDING,2102802022,5001000020
09.04.2018,CHILDREN'S SERVICES,COBOURG PRIMARY SCHOOL,"11,260.00",COBURG JMI,EARLY YEARS - 3 AND 4 YEAR OLDS,2102801898,5001000021
09.04.2018,CHILDREN'S SERVICES,COBOURG PRIMARY SCHOOL,"231,517.00",COBURG JMI,SCHOOLS CAPITATION,2102801954,5001000021
09.04.2018,CHILDREN'S SERVICES,COMBER GROVE PRIMARY SCHOOL,"13,396.00",COMBER GROVE PRIMARY,EARLY YEARS - 3 AND 4 YEAR OLDS,2102801899,5001000022
09.04.2018,CHILDREN'S SERVICES,COMBER GROVE PRIMARY SCHOOL,"165,087.00",COMBER GROVE PRIMARY,SCHOOLS CAPITATION,2102801955,5001000022
09.04.2018,CHILDREN'S SERVICES,CRAMPTON PRIMARY SCHOOL,"120,551.00",CRAMPTON JMI,SCHOOLS CAPITATION,2102801956,5001000023
09.04.2018,CHILDREN'S SERVICES,CRAWFORD PRIMARY SCHOOL,"13,060.00",CRAWFORD JMI,EARLY YEARS - 3 AND 4 YEAR OLDS,2102801900,5001000024
09.04.2018,CHILDREN'S SERVICES,CRAWFORD PRIMARY SCHOOL,"302,121.00",CRAWFORD JMI,SCHOOLS CAPITATION,2102801957,5001000024
09.04.2018,CHILDREN'S SERVICES,DULWICH WOOD CHILDRENS CENTRE,"137,350.00",D.WOOD - CENTRAL,EARLY YEARS - 3 AND 4 YEAR OLDS,2102801946,5001000099
09.04.2018,CHILDREN'S SERVICES,DOG KENNEL HILL PRIMARY SCHOOL,"15,467.00",DOG KENNEL HILL JMI,EARLY YEARS - 3 AND 4 YEAR OLDS,2102801901,5001000025
09.04.2018,CHILDREN'S SERVICES,DOG KENNEL HILL PRIMARY SCHOOL,"227,919.00",DOG KENNEL HILL JMI,SCHOOLS CAPITATION,2102801958,5001000025
09.04.2018,CHILDREN'S SERVICES,DULWICH VILLAGE CE INFANTS SCHOOL,"162,469.00",DULWICH VILLAGE I,SCHOOLS CAPITATION,2102801985,5001000027
09.04.2018,CHILDREN'S SERVICES,ENGLISH MARTYRS RC PRIMARY SCHOOL,"11,607.00",ENGLISH MARTYRS JMI,EARLY YEARS - 3 AND 4 YEAR OLDS,2102801925,5001000030
09.04.2018,CHILDREN'S SERVICES,ENGLISH MARTYRS RC PRIMARY SCHOOL,"207,914.00",ENGLISH MARTYRS JMI,SCHOOLS CAPITATION,2102801986,5001000030
09.04.2018,CHILDREN'S SERVICES,EVELINA HOSPITAL SCHOOL,"116,757.00",EVELINA HOSPITAL SCHOOL,HIGH NEEDS - TOP UP FUNDING,2102802017,5001000031
09.04.2018,CHILDREN'S SERVICES,PHOENIX PRIMARY SCHOOL,"12,847.00",EVELINE LOWE JMI,EARLY YEARS - 3 AND 4 YEAR OLDS,2102801919,5001000032
09.04.2018,CHILDREN'S SERVICES,PHOENIX PRIMARY SCHOOL,"303,288.00",EVELINE LOWE JMI,SCHOOLS CAPITATION,2102801978,5001000032
09.04.2018,CHILDREN'S SERVICES,DAYBREAK FAMILY GROUP CONFERENCES,"8,775.00",FAMILY GROUP CONFERENCES,EXTERNAL AGENCIES AND BODIES,5902298241,1000072832
09.04.2018,CHILDREN'S SERVICES,FRIARS PRIMARY SCHOOL,"8,787.00",FRIARS SCHOOL,EARLY YEARS - 3 AND 4 YEAR OLDS,2102801941,5001000033
09.04.2018,CHILDREN'S SERVICES,FRIARS PRIMARY SCHOOL,"169,483.00",FRIARS SCHOOL,SCHOOLS CAPITATION,2102802009,5001000033
09.04.2018,CHILDREN'S SERVICES,GOODRICH PRIMARY SCHOOL,"18,543.00",GOODRICH JMI,EARLY YEARS - 3 AND 4 YEAR OLDS,2102801902,5001000028
09.04.2018,CHILDREN'S SERVICES,GOODRICH PRIMARY SCHOOL,"311,970.00",GOODRICH JMI,SCHOOLS CAPITATION,2102801959,5001000028
09.04.2018,CHILDREN'S SERVICES,GRANGE PRIMARY SCHOOL,"8,854.00",GRANGE JMI,EARLY YEARS - 3 AND 4 YEAR OLDS,2102801903,5001000029
09.04.2018,CHILDREN'S SERVICES,GRANGE PRIMARY SCHOOL,"241,001.00",GRANGE JMI,SCHOOLS CAPITATION,2102801960,5001000029
09.04.2018,CHILDREN'S SERVICES,THE GROVE CHILDRENS CENTRE,"67,187.00",GROVE - CENTRAL,EARLY YEARS - 3 AND 4 YEAR OLDS,2102801948,5001000090
09.04.2018,CHILDREN'S SERVICES,HAYMERLE SCHOOL,"290,716.00",HAYMERLE SCH,HIGH NEEDS - TOP UP FUNDING,2102802019,5001000045
09.04.2018,CHILDREN'S SERVICES,HEBER PRIMARY SCHOOL,"13,585.00",HEBER JMI,EARLY YEARS - 3 AND 4 YEAR OLDS,2102801904,5001000035
09.04.2018,CHILDREN'S SERVICES,HEBER PRIMARY SCHOOL,"257,330.00",HEBER JMI,SCHOOLS CAPITATION,2102801961,5001000035
09.04.2018,CHILDREN'S SERVICES,HIGHSHORE SCHOOL,"446,534.00",HIGHSHORE,HIGH NEEDS - TOP UP FUNDING,2102802015,5001000046
09.04.2018,CHILDREN'S SERVICES,HOLLYDALE PRIMARY SCHOOL,"156,255.00",HOLLYDALE JMI,SCHOOLS CAPITATION,2102801962,5001000036
09.04.2018,CHILDREN'S SERVICES,ILDERTON PRIMARY SCHOOL,"10,868.00",ILDERTON JMI,EARLY YEARS - 3 AND 4 YEAR OLDS,2102801905,5001000037
09.04.2018,CHILDREN'S SERVICES,ILDERTON PRIMARY SCHOOL,"267,991.00",ILDERTON JMI,SCHOOLS CAPITATION,2102801963,5001000037
09.04.2018,CHILDREN'S SERVICES,IVYDALE PRIMARY SCHOOL,"13,546.00",IVYDALE JMI,EARLY YEARS - 3 AND 4 YEAR OLDS,2102801906,5001000038
09.04.2018,CHILDREN'S SERVICES,IVYDALE PRIMARY SCHOOL,"276,799.00",IVYDALE JMI,SCHOOLS CAPITATION,2102801964,5001000038
09.04.2018,CHILDREN'S SERVICES,JOHN RUSKIN PRIMARY SCHOOL,"24,942.00",JOHN RUSKIN JMI,EARLY YEARS - 3 AND 4 YEAR OLDS,2102801907,5001000040
09.04.2018,CHILDREN'S SERVICES,JOHN RUSKIN PRIMARY SCHOOL,"22,813.00",JOHN RUSKIN JMI,HIGH NEEDS - TOP UP FUNDING SEN UNIT,2102802023,5001000040
09.04.2018,CHILDREN'S SERVICES,JOHN RUSKIN PRIMARY SCHOOL,"310,384.00",JOHN RUSKIN JMI,SCHOOLS CAPITATION,2102801965,5001000040
09.04.2018,CHILDREN'S SERVICES,KEYWORTH PRIMARY SCHOOL,"12,618.00",KEYWORTH JMI,EARLY YEARS - 3 AND 4 YEAR OLDS,2102801908,5001000041
09.04.2018,CHILDREN'S SERVICES,KEYWORTH PRIMARY SCHOOL,"217,369.00",KEYWORTH JMI,SCHOOLS CAPITATION,2102801966,5001000041
09.04.2018,CHILDREN'S SERVICES,KINTORE WAY CHILDRENS CENTRE,"141,188.00",KINTORE WAY CENTRAL,EARLY YEARS - 3 AND 4 YEAR OLDS,2102801944,5001000047
09.04.2018,CHILDREN'S SERVICES,DULWICH WOOD PRIMARY SCHOOL,"199,003.00",LANGBOURNE JMI,SCHOOLS CAPITATION,2102801967,5001000042
09.04.2018,CHILDREN'S SERVICES,LYNDHURST PRIMARY SCHOOL,"12,654.00",LYNDHURST JMI,EARLY YEARS - 3 AND 4 YEAR OLDS,2102801909,5001000043
09.04.2018,CHILDREN'S SERVICES,LYNDHURST PRIMARY SCHOOL,"11,667.00",LYNDHURST JMI,HIGH NEEDS - TOP UP FUNDING SEN UNIT,2102802024,5001000043
09.04.2018,CHILDREN'S SERVICES,LYNDHURST PRIMARY SCHOOL,"257,131.00",LYNDHURST JMI,SCHOOLS CAPITATION,2102801968,5001000043
09.04.2018,CHILDREN'S SERVICES,BETHLEM & MAUDSLEY HOSPITAL SCHOOL,"178,995.00",MAUDSLEY & BETHLEM,HIGH NEEDS - TOP UP FUNDING,2102802018,5001000010
09.04.2018,CHILDREN'S SERVICES,MICHAEL FARADAY PRIMARY SCHOOL,"15,274.00",MICHAEL FARADAY JMI,EARLY YEARS - 3 AND 4 YEAR OLDS,2102801910,5001000048
09.04.2018,CHILDREN'S SERVICES,MICHAEL FARADAY PRIMARY SCHOOL,"237,664.00",MICHAEL FARADAY JMI,SCHOOLS CAPITATION,2102801969,5001000048
09.04.2018,CHILDREN'S SERVICES,NELL GWYNN NURSERY SCHOOL,"102,790.00",N.GWYNN - CENTRAL,EARLY YEARS - 3 AND 4 YEAR OLDS,2102801947,5001000049
09.04.2018,CHILDREN'S SERVICES,NOTRE DAME RC GIRLS SCHOOL,"553,472.00",NOTRE DAME SCHOOL,SCHOOLS CAPITATION,2102802014,5001000050
09.04.2018,CHILDREN'S SERVICES,OLIVER GOLDSMITH PRIMARY SCHOOL,"13,453.00",OLIVER GOLDSMITH JM,EARLY YEARS - 3 AND 4 YEAR OLDS,2102801922,5001000051
09.04.2018,CHILDREN'S SERVICES,OLIVER GOLDSMITH PRIMARY SCHOOL,"248,478.00",OLIVER GOLDSMITH JM,SCHOOLS CAPITATION,2102801981,5001000051
09.04.2018,CHILDREN'S SERVICES,PETER HILLS CE SCHOOL,"7,794.00",PETER HILLS JMI,EARLY YEARS - 3 AND 4 YEAR OLDS,2102801933,5001000053
09.04.2018,CHILDREN'S SERVICES,PETER HILLS CE SCHOOL,"128,719.00",PETER HILLS JMI,SCHOOLS CAPITATION,2102801999,5001000053
09.04.2018,CHILDREN'S SERVICES,PILGRIM'S WAY PRIMARY SCHOOL,"11,327.00",PILGRIMS WAY JMI,EARLY YEARS - 3 AND 4 YEAR OLDS,2102801920,5001000054
09.04.2018,CHILDREN'S SERVICES,PILGRIM'S WAY PRIMARY SCHOOL,"131,839.00",PILGRIMS WAY JMI,SCHOOLS CAPITATION,2102801979,5001000054
09.04.2018,CHILDREN'S SERVICES,THE DRIVE CARE HOMES LTD,"13,176.24",RESIDENTIAL,RESIDENTIAL CARE,2102801718,1000003889
09.04.2018,CHILDREN'S SERVICES,CAMBIAN CHILDCARE LTD,"2,571.36",RESIDENTIAL,RESIDENTIAL CARE,5902298239,1000075351
09.04.2018,CHILDREN'S SERVICES,CAMBIAN CHILDCARE LTD,"3,321.34",RESIDENTIAL,RESIDENTIAL CARE,5902298237,1000075351
09.04.2018,CHILDREN'S SERVICES,INMIND CHILDRENS SERVICES LTD,"22,673.70",RESIDENTIAL,RESIDENTIAL CARE,2102801717,1000078280
09.04.2018,CHILDREN'S SERVICES,INMIND CHILDRENS SERVICES LTD,"23,429.49",RESIDENTIAL,RESIDENTIAL CARE,2102801721,1000078280
09.04.2018,CHILDREN'S SERVICES,STONELAKE LONDON LTD,"22,176.00",RESIDENTIAL,RESIDENTIAL CARE,2102801719,1000080075
09.04.2018,CHILDREN'S SERVICES,STONELAKE LONDON LTD,"24,552.00",RESIDENTIAL,RESIDENTIAL CARE,2102801715,1000080075
09.04.2018,CHILDREN'S SERVICES,STONELAKE LONDON LTD,"24,792.00",RESIDENTIAL,RESIDENTIAL CARE,2102801716,1000080075
09.04.2018,CHILDREN'S SERVICES,KARTIKEYA SOLUTIONS LTD,"19,463.66",RESIDENTIAL,RESIDENTIAL CARE,2102801720,1000080483
09.04.2018,CHILDREN'S SERVICES,RIVERSIDE PRIMARY SCHOOL,"6,358.00",RIVERSIDE JMI,EARLY YEARS - 3 AND 4 YEAR OLDS,2102801911,5001000056
09.04.2018,CHILDREN'S SERVICES,RIVERSIDE PRIMARY SCHOOL,"356,507.00",RIVERSIDE JMI,SCHOOLS CAPITATION,2102801970,5001000056
09.04.2018,CHILDREN'S SERVICES,ROBERT BROWNING PRIMARY SCHOOL,"10,098.00",ROBERT BROWNING JMI,EARLY YEARS - 3 AND 4 YEAR OLDS,2102801912,5001000057
09.04.2018,CHILDREN'S SERVICES,ROBERT BROWNING PRIMARY SCHOOL,"183,613.00",ROBERT BROWNING JMI,SCHOOLS CAPITATION,2102801971,5001000057
09.04.2018,CHILDREN'S SERVICES,ROTHERHITHE PRIMARY SCHOOL,"19,704.00",ROTHERHITHE JMI,EARLY YEARS - 3 AND 4 YEAR OLDS,2102801913,5001000058
09.04.2018,CHILDREN'S SERVICES,ROTHERHITHE PRIMARY SCHOOL,"206,720.00",ROTHERHITHE JMI,SCHOOLS CAPITATION,2102801972,5001000058
09.04.2018,CHILDREN'S SERVICES,RYE OAK PRIMARY SCHOOL,"24,411.00",RYE OAK SCHOOL DFES NO. 2462,EARLY YEARS - 3 AND 4 YEAR OLDS,2102801938,5001000059
09.04.2018,CHILDREN'S SERVICES,RYE OAK PRIMARY SCHOOL,"28,907.00",RYE OAK SCHOOL DFES NO. 2462,HIGH NEEDS - TOP UP FUNDING SEN UNIT,2102802028,5001000059
09.04.2018,CHILDREN'S SERVICES,RYE OAK PRIMARY SCHOOL,"325,400.00",RYE OAK SCHOOL DFES NO. 2462,SCHOOLS CAPITATION,2102802004,5001000059
09.04.2018,CHILDREN'S SERVICES,STEP AHEAD SERVICES LTD,"1,682.99",S24 CLA,EXTERNAL AGENCIES AND BODIES,2102801874,1000036544
09.04.2018,CHILDREN'S SERVICES,STEP AHEAD SERVICES LTD,"2,081.34",S24 CLA,EXTERNAL AGENCIES AND BODIES,2102801873,1000036544
09.04.2018,CHILDREN'S SERVICES,TLK PROPERTY & INVESTMENT LTD,"1,116.00",S24 CLA,EXTERNAL AGENCIES AND BODIES,2102801878,1000065661
09.04.2018,CHILDREN'S SERVICES,FINEFAIR LTD,690.25,S24 CLA,EXTERNAL AGENCIES AND BODIES,2102801872,1000075570
09.04.2018,CHILDREN'S SERVICES,FINEFAIR LTD,"1,485.12",S24 CLA,EXTERNAL AGENCIES AND BODIES,2102801866,1000075570
09.04.2018,CHILDREN'S SERVICES,FINEFAIR LTD,"1,687.33",S24 CLA,EXTERNAL AGENCIES AND BODIES,2102801865,1000075570
09.04.2018,CHILDREN'S SERVICES,FINEFAIR LTD,"1,687.33",S24 CLA,EXTERNAL AGENCIES AND BODIES,2102801867,1000075570
09.04.2018,CHILDREN'S SERVICES,FINEFAIR LTD,"1,687.33",S24 CLA,EXTERNAL AGENCIES AND BODIES,2102801876,1000075570
09.04.2018,CHILDREN'S SERVICES,FINEFAIR LTD,"1,687.33",S24 CLA,EXTERNAL AGENCIES AND BODIES,2102801879,1000075570
09.04.2018,CHILDREN'S SERVICES,FINEFAIR LTD,"1,734.18",S24 CLA,EXTERNAL AGENCIES AND BODIES,2102801871,1000075570
09.04.2018,CHILDREN'S SERVICES,RED R DESIGN,800,SCHOLARSHIPS AND WRL,MARKETING & PUBLICITY SERVICES,5902298341,1000035984
09.04.2018,CHILDREN'S SERVICES,STEP AHEAD SERVICES LTD,"2,040.00",SEMI INDEPENDENT,EXTERNAL AGENCIES AND BODIES,2102801862,1000036544
09.04.2018,CHILDREN'S SERVICES,STEP AHEAD SERVICES LTD,"4,517.14",SEMI INDEPENDENT,EXTERNAL AGENCIES AND BODIES,2102801859,1000036544
09.04.2018,CHILDREN'S SERVICES,STEP AHEAD SERVICES LTD,"4,517.14",SEMI INDEPENDENT,EXTERNAL AGENCIES AND BODIES,2102801861,1000036544
09.04.2018,CHILDREN'S SERVICES,FRESH START SUPPORT LTD,"14,171.43",SEMI INDEPENDENT,EXTERNAL AGENCIES AND BODIES,2102801863,1000070537
09.04.2018,CHILDREN'S SERVICES,SILVER BIRCH CARE LTD,300,SEMI INDEPENDENT,EXTERNAL AGENCIES AND BODIES,2102801880,1000076525
09.04.2018,CHILDREN'S SERVICES,SOUTHWARK INCLUSIVE LEARNING SERVICE,"233,333.00",SILS KS3,EARLY YEARS - 3 AND 4 YEAR OLDS,2102801949,5001000105
09.04.2018,CHILDREN'S SERVICES,SNOWSFIELDS PRIMARY SCHOOL,"6,985.00",SNOWSFIELD JMI,EARLY YEARS - 3 AND 4 YEAR OLDS,2102801914,5001000061
09.04.2018,CHILDREN'S SERVICES,SNOWSFIELDS PRIMARY SCHOOL,"23,835.00",SNOWSFIELD JMI,HIGH NEEDS - TOP UP FUNDING SEN UNIT,2102802025,5001000061
09.04.2018,CHILDREN'S SERVICES,SNOWSFIELDS PRIMARY SCHOOL,"143,906.00",SNOWSFIELD JMI,SCHOOLS CAPITATION,2102801973,5001000061
09.04.2018,CHILDREN'S SERVICES,SOUTHWARK PARK PRIMARY SCHOOL,"23,394.00",SOUTHWARK PARK JMI,EARLY YEARS - 3 AND 4 YEAR OLDS,2102801915,5001000062
09.04.2018,CHILDREN'S SERVICES,SOUTHWARK PARK PRIMARY SCHOOL,"310,034.00",SOUTHWARK PARK JMI,SCHOOLS CAPITATION,2102801974,5001000062
09.04.2018,CHILDREN'S SERVICES,SPA SCHOOL,"354,505.00",SPA SCHOOL,HIGH NEEDS - TOP UP FUNDING,2102802016,5001000063
09.04.2018,CHILDREN'S SERVICES,ST ANTHONYS RC SCHOOL,"13,363.00",ST ANTHONY'S RC SCHOOL,EARLY YEARS - 3 AND 4 YEAR OLDS,2102801940,5001000064
09.04.2018,CHILDREN'S SERVICES,ST ANTHONYS RC SCHOOL,"223,448.00",ST ANTHONY'S RC SCHOOL,SCHOOLS CAPITATION,2102802006,5001000064
09.04.2018,CHILDREN'S SERVICES,ST FRANCESCA CABRINI PRIMARY SCHOOL,"13,151.00",ST FRANCESCA CABRINI RC SCHOOL,EARLY YEARS - 3 AND 4 YEAR OLDS,2102801939,5001000065
09.04.2018,CHILDREN'S SERVICES,ST FRANCESCA CABRINI PRIMARY SCHOOL,"206,275.00",ST FRANCESCA CABRINI RC SCHOOL,SCHOOLS CAPITATION,2102802005,5001000065
09.04.2018,CHILDREN'S SERVICES,ST FRANCIS'S RC PRIMARY SCHOOL,"7,998.00",ST FRANCIS JM,EARLY YEARS - 3 AND 4 YEAR OLDS,2102801927,5001000067
09.04.2018,CHILDREN'S SERVICES,ST FRANCIS'S RC PRIMARY SCHOOL,"235,822.00",ST FRANCIS JM,SCHOOLS CAPITATION,2102801988,5001000067
09.04.2018,CHILDREN'S SERVICES,ST GEORGES CE SCHOOL,"89,588.00",ST GEORGES JMI 043,SCHOOLS CAPITATION,2102801989,5001000069
09.04.2018,CHILDREN'S SERVICES,ST GEORGES RC SCHOOL,"8,167.00",ST GEORGES JMI 340,EARLY YEARS - 3 AND 4 YEAR OLDS,2102801928,5001000068
09.04.2018,CHILDREN'S SERVICES,ST GEORGES RC SCHOOL,"170,437.00",ST GEORGES JMI 340,SCHOOLS CAPITATION,2102801990,5001000068
09.04.2018,CHILDREN'S SERVICES,ST JAMES CE SCHOOL,"31,300.00",ST JAMES JMI,EARLY YEARS - 3 AND 4 YEAR OLDS,2102801929,5001000070
09.04.2018,CHILDREN'S SERVICES,ST JAMES CE SCHOOL,"477,344.00",ST JAMES JMI,SCHOOLS CAPITATION,2102801991,5001000070
09.04.2018,CHILDREN'S SERVICES,ST JAMES THE GREAT RC SCHOOL,"11,993.00",ST JAMES RC(ST ALBANS),EARLY YEARS - 3 AND 4 YEAR OLDS,2102801926,5001000071
09.04.2018,CHILDREN'S SERVICES,ST JAMES THE GREAT RC SCHOOL,"164,159.00",ST JAMES RC(ST ALBANS),SCHOOLS CAPITATION,2102801987,5001000071
09.04.2018,CHILDREN'S SERVICES,ST JOHNS & ST CLEMENTS CE SCHOOL,"23,105.00",ST JOHNS & ST CLEMENTS,HIGH NEEDS - TOP UP FUNDING SEN UNIT,2102802027,5001000073
09.04.2018,CHILDREN'S SERVICES,ST JOHNS & ST CLEMENTS CE SCHOOL,"275,710.00",ST JOHNS & ST CLEMENTS,SCHOOLS CAPITATION,2102801992,5001000073
09.04.2018,CHILDREN'S SERVICES,ST JOHNS RC PRIMARY SCHOOL,"11,659.00",ST JOHNS (ELMO ROAD),EARLY YEARS - 3 AND 4 YEAR OLDS,2102801937,5001000075
09.04.2018,CHILDREN'S SERVICES,ST JOHNS RC PRIMARY SCHOOL,"143,421.00",ST JOHNS (ELMO ROAD),SCHOOLS CAPITATION,2102802003,5001000075
09.04.2018,CHILDREN'S SERVICES,ST JOHNS WALWORTH CE SCHOOL,"135,287.00",ST JOHNS WALWORTH J,SCHOOLS CAPITATION,2102801993,5001000072
09.04.2018,CHILDREN'S SERVICES,ST JOSEPHS RC PRIMARY SCHOOL,"9,125.00",ST JOSEPHS JMI 014B,EARLY YEARS - 3 AND 4 YEAR OLDS,2102801930,5001000077
09.04.2018,CHILDREN'S SERVICES,ST JOSEPHS RC PRIMARY SCHOOL,"180,006.00",ST JOSEPHS JMI 014B,SCHOOLS CAPITATION,2102801994,5001000077
09.04.2018,CHILDREN'S SERVICES,ST JOSEPHS CATHOLIC PRIMARY SCHOOL,"15,439.00",ST JOSEPHS JMI 026,EARLY YEARS - 3 AND 4 YEAR OLDS,2102801931,5001000078
09.04.2018,CHILDREN'S SERVICES,ST JOSEPHS CATHOLIC PRIMARY SCHOOL,"129,607.00",ST JOSEPHS JMI 026,SCHOOLS CAPITATION,2102801995,5001000078
09.04.2018,CHILDREN'S SERVICES,ST JOSEPHS CATHOLIC SCHOOL,"11,737.00",ST JOSEPHS JMI 0339,EARLY YEARS - 3 AND 4 YEAR OLDS,2102801932,5001000076
09.04.2018,CHILDREN'S SERVICES,ST JOSEPHS CATHOLIC SCHOOL,"125,531.00",ST JOSEPHS JMI 0339,SCHOOLS CAPITATION,2102801996,5001000076
09.04.2018,CHILDREN'S SERVICES,ST JUDES CHURCH OF ENGLAND PRIMARY,"91,793.00",ST JUDES SOUTHWARK,SCHOOLS CAPITATION,2102801997,5001000019
09.04.2018,CHILDREN'S SERVICES,ST MARY MAGDALENE CE SCHOOL,"131,253.00",ST MARY MAGDALENE JMI,SCHOOLS CAPITATION,2102801998,5001000080
09.04.2018,CHILDREN'S SERVICES,ST PAULS CE SCHOOL,"12,643.00",ST PAULS WALWORTH JMI,EARLY YEARS - 3 AND 4 YEAR OLDS,2102801934,5001000082
09.04.2018,CHILDREN'S SERVICES,ST PAULS CE SCHOOL,"173,945.00",ST PAULS WALWORTH JMI,SCHOOLS CAPITATION,2102802000,5001000082
09.04.2018,CHILDREN'S SERVICES,ST PETERS CE SCHOOL,"9,792.00",ST PETERS WALWORTH JMI,EARLY YEARS - 3 AND 4 YEAR OLDS,2102801935,5001000083
09.04.2018,CHILDREN'S SERVICES,ST PETERS CE SCHOOL,"122,555.00",ST PETERS WALWORTH JMI,SCHOOLS CAPITATION,2102802001,5001000083
09.04.2018,CHILDREN'S SERVICES,ST SAVIOURS & ST OLAVES SCHOOL,"537,108.00",ST SAVIOURS & ST OLAVE,SCHOOLS CAPITATION,2102802012,5001000084
09.04.2018,CHILDREN'S SERVICES,ST JOSEPHS CATHOLIC INFANTS SCHOOL,"97,541.00",STJOSEPH'S RC CAMBERWELL INFANTS SCHOOL,SCHOOLS CAPITATION,2102802008,5001000018
09.04.2018,CHILDREN'S SERVICES,ST JOSEPHS RC JUNIOR  SCHOOL,"150,820.00",STJOSEPH'S RC CAMBERWELL JUNIOR SCHOOL,SCHOOLS CAPITATION,2102802007,5001000017
09.04.2018,CHILDREN'S SERVICES,ANN BERNADT NURSERY SCHOOL,"140,300.00",SUMNER NURSERY SCHOOL,EARLY YEARS - 3 AND 4 YEAR OLDS,2102801945,5001000085
09.04.2018,CHILDREN'S SERVICES,SURREY SQUARE JUNIOR SCHOOL,"14,710.00",SURREY SQUARE JUNIOR SCHOOL,EARLY YEARS - 3 AND 4 YEAR OLDS,2102801943,5001000087
09.04.2018,CHILDREN'S SERVICES,SURREY SQUARE JUNIOR SCHOOL,"282,086.00",SURREY SQUARE JUNIOR SCHOOL,SCHOOLS CAPITATION,2102802011,5001000087
09.04.2018,CHILDREN'S SERVICES,THE ST THOMAS THE APOSTLE COLLEGE,"645,200.00",THE ST THOMAS THE APOSTLE COLLEGE,SCHOOLS CAPITATION,2102802013,5001000074
09.04.2018,CHILDREN'S SERVICES,TOWER BRIDGE PRIMARY SCHOOL,"7,186.00",TOWER BRIDGE JMI,EARLY YEARS - 3 AND 4 YEAR OLDS,2102801916,5001000095
09.04.2018,CHILDREN'S SERVICES,TOWER BRIDGE PRIMARY SCHOOL,"132,319.00",TOWER BRIDGE JMI,SCHOOLS CAPITATION,2102801975,5001000095
09.04.2018,CHILDREN'S SERVICES,TOWNSEND PRIMARY SCHOOL,"8,986.00",TOWNSEND JMI,EARLY YEARS - 3 AND 4 YEAR OLDS,2102801917,5001000096
09.04.2018,CHILDREN'S SERVICES,TOWNSEND PRIMARY SCHOOL,"129,696.00",TOWNSEND JMI,SCHOOLS CAPITATION,2102801976,5001000096
09.04.2018,CHILDREN'S SERVICES,TUKE SCHOOL,"399,831.00",TUKE SCHOOL,HIGH NEEDS - TOP UP FUNDING,2102802021,5001000097
09.04.2018,CHILDREN'S SERVICES,STEP AHEAD SERVICES LTD,"1,628.70",UASC SECTION 24,EXTERNAL AGENCIES AND BODIES,2102801868,1000036544
09.04.2018,CHILDREN'S SERVICES,STEP AHEAD SERVICES LTD,"1,682.99",UASC SECTION 24,EXTERNAL AGENCIES AND BODIES,2102801875,1000036544
09.04.2018,CHILDREN'S SERVICES,STEP AHEAD SERVICES LTD,"1,682.99",UASC SECTION 24,EXTERNAL AGENCIES AND BODIES,2102801877,1000036544
09.04.2018,CHILDREN'S SERVICES,VICTORY SCHOOL,"2,419.00",VICTORY JMI,EARLY YEARS - 3 AND 4 YEAR OLDS,2102801918,5001000098
09.04.2018,CHILDREN'S SERVICES,VICTORY SCHOOL,"104,428.00",VICTORY JMI,SCHOOLS CAPITATION,2102801977,5001000098
09.04.2018,CHILDREN'S SERVICES,REVIVAL,495,YOS SUPPORT,MEDICAL / HEALTH & SAFETY SERVICES,5902298359,1000027424
09.04.2018,COMMUNITIES,REDACTED PERSONAL DATA,"9,827.00",NO RECOURSE TO PUBLIC FUNDS,ACCOMMODATION CHARGES,REDACTED,REDACTED
09.04.2018,COMMUNITIES,ZFA LTD,"15,500.00",NO RECOURSE TO PUBLIC FUNDS,ACCOMMODATION CHARGES,5902298345,1000074420
09.04.2018,COMMUNITIES,DENHAN INTERNATIONAL LTD,"1,610.00",NO RECOURSE TO PUBLIC FUNDS,ACCOMMODATION CHARGES,5902298348,1000075567
09.04.2018,COMMUNITIES,LOVE WALK HOSTEL FOR DISABLED,"3,280.00",NO RECOURSE TO PUBLIC FUNDS,NATIONAL ASSISTANCE,2102801850,1008978
09.04.2018,COMMUNITIES,PROFAD CARE AGENCY,"2,351.20",NO RECOURSE TO PUBLIC FUNDS,NATIONAL ASSISTANCE,2102801784,1000079032
09.04.2018,COMMUNITIES,SOUTHWARK GROUP OF TENANTS ORGANISATION,"58,187.00",TENANTS FUND,EXTERNAL AGENCIES AND BODIES,5902298248,1479419
09.04.2018,COMMUNITIES,SOUTHWARK PENSIONERS CENTRE,"28,355.25",VCS GRANTS,GRANTS,5902298249,1000027831
09.04.2018,COMMUNITIES,THE MANNA CENTRE,"13,750.00",VCS GRANTS,GRANTS,5902298250,1000048508
09.04.2018,CUSTOMER EXPERIENCE HGF,HOMELY HOUSING LETS LTD,"1,386.50",NIGHTLY TA (NSC),EXTERNAL AGENCIES AND BODIES,5902298222,1000050013
09.04.2018,CUSTOMER EXPERIENCE HGF,HOMELY HOUSING LETS LTD,"2,224.00",NIGHTLY TA (NSC),EXTERNAL AGENCIES AND BODIES,5902298222,1000050013
09.04.2018,CUSTOMER EXPERIENCE HGF,TLK PROPERTY & INVESTMENT LTD,354,NIGHTLY TA (NSC),EXTERNAL AGENCIES AND BODIES,5902298192,1000065661
09.04.2018,CUSTOMER EXPERIENCE HGF,ELIANA PENN,"2,000.00",PRIVATE SECTOR LEASING,EXTERNAL AGENCIES AND BODIES,2102801882,1000080776
09.04.2018,CUSTOMER EXPERIENCE HGF,ELIANA PENN,"4,700.00",PRIVATE SECTOR LEASING,EXTERNAL AGENCIES AND BODIES,2102801881,1000080776
09.04.2018,ENVIRONMENT AND LEISURE,STREET TREE CARE LTD,"1,357.10",CAPITAL PS (LEISURE),CONST'N MAIN CONTRACT - NON CERTIFICATED,5902298228,1000055901
09.04.2018,ENVIRONMENT AND LEISURE,CONWAY AECOM LTD,"6,800.00",CAPITAL PS (LEISURE),CONSTR'N SUB CONTRACT - NON CERTIFICATED,5902298329,1000071205
09.04.2018,ENVIRONMENT AND LEISURE,CONWAY AECOM LTD,"1,518.91",CAPITAL PS (LEISURE),CONSTRUCTION,5902298201,1000071205
09.04.2018,ENVIRONMENT AND LEISURE,CONWAY AECOM LTD,"21,519.98",CAPITAL PS (LEISURE),CONSTRUCTION,5902298204,1000071205
09.04.2018,ENVIRONMENT DIRECTORATE,ARNOLD CLARK VEHICLE MANAGEMENT,254.65,CAR LEASING CTRL A/C,VEHICLE LEASING CHARGES,5902298274,1000079116
09.04.2018,ENVIRONMENT DIRECTORATE,LOOKERS LEASING LTD,360.42,CAR LEASING CTRL A/C,VEHICLE LEASING CHARGES,5902298334,1000079286
09.04.2018,ENVIRONMENT DIRECTORATE,LOOKERS LEASING LTD,368.16,CAR LEASING CTRL A/C,VEHICLE LEASING CHARGES,5902298334,1000079286
09.04.2018,ENVIRONMENT DIRECTORATE,TRANSPORT FOR LONDON,"5,623.00",COMMERCIAL VEH CTRL A/C,CONGESTION CHARGE,5902298268,1000023986
09.04.2018,ENVIRONMENT DIRECTORATE,LONDON HIRE LIMITED,292,COMMERCIAL VEH CTRL A/C,HIRED VEHICLES,5902298217,1383812
09.04.2018,ENVIRONMENT DIRECTORATE,LONDON HIRE LIMITED,548,COMMERCIAL VEH CTRL A/C,HIRED VEHICLES,5902298220,1383812
09.04.2018,ENVIRONMENT DIRECTORATE,LONDON HIRE LIMITED,580,COMMERCIAL VEH CTRL A/C,HIRED VEHICLES,5902298219,1383812
09.04.2018,ENVIRONMENT DIRECTORATE,LONDON HIRE LIMITED,645,COMMERCIAL VEH CTRL A/C,HIRED VEHICLES,5902298254,1383812
09.04.2018,ENVIRONMENT DIRECTORATE,LONDON HIRE LIMITED,675,COMMERCIAL VEH CTRL A/C,HIRED VEHICLES,5902298255,1383812
09.04.2018,ENVIRONMENT DIRECTORATE,LONDON HIRE LIMITED,679,COMMERCIAL VEH CTRL A/C,HIRED VEHICLES,5902298216,1383812
09.04.2018,ENVIRONMENT DIRECTORATE,LONDON HIRE LIMITED,"1,068.51",COMMERCIAL VEH CTRL A/C,HIRED VEHICLES,5902298260,1383812
09.04.2018,ENVIRONMENT DIRECTORATE,LONDON HIRE LIMITED,"1,600.00",COMMERCIAL VEH CTRL A/C,HIRED VEHICLES,5902298213,1383812
09.04.2018,ENVIRONMENT DIRECTORATE,LONDON HIRE LIMITED,"1,910.00",COMMERCIAL VEH CTRL A/C,HIRED VEHICLES,5902298253,1383812
09.04.2018,ENVIRONMENT DIRECTORATE,LONDON HIRE LIMITED,"2,578.02",COMMERCIAL VEH CTRL A/C,HIRED VEHICLES,5902298262,1383812
09.04.2018,ENVIRONMENT DIRECTORATE,LONDON HIRE LIMITED,"5,019.50",COMMERCIAL VEH CTRL A/C,HIRED VEHICLES,5902298256,1383812
09.04.2018,ENVIRONMENT DIRECTORATE,LONDON HIRE LIMITED,"17,526.50",COMMERCIAL VEH CTRL A/C,HIRED VEHICLES,5902298267,1383812
09.04.2018,ENVIRONMENT DIRECTORATE,LONDON HIRE LIMITED,"28,881.45",COMMERCIAL VEH CTRL A/C,HIRED VEHICLES,5902298266,1383812
09.04.2018,ENVIRONMENT DIRECTORATE,SCOT GROUP LIMITED,319.44,COMMERCIAL VEH CTRL A/C,HIRED VEHICLES,5902298320,1709512
09.04.2018,ENVIRONMENT DIRECTORATE,SCOT GROUP LIMITED,336.56,COMMERCIAL VEH CTRL A/C,HIRED VEHICLES,5902298322,1709512
09.04.2018,ENVIRONMENT DIRECTORATE,SCOT GROUP LIMITED,364,COMMERCIAL VEH CTRL A/C,HIRED VEHICLES,5902298313,1709512
09.04.2018,ENVIRONMENT DIRECTORATE,FIVEWAYS MUNICIPAL VEHICLE HIRE LTD,725,COMMERCIAL VEH CTRL A/C,HIRED VEHICLES,5902298198,1000023985
09.04.2018,ENVIRONMENT DIRECTORATE,FIVEWAYS MUNICIPAL VEHICLE HIRE LTD,725,COMMERCIAL VEH CTRL A/C,HIRED VEHICLES,5902298200,1000023985
09.04.2018,ENVIRONMENT DIRECTORATE,FIVEWAYS MUNICIPAL VEHICLE HIRE LTD,725,COMMERCIAL VEH CTRL A/C,HIRED VEHICLES,5902298202,1000023985
09.04.2018,ENVIRONMENT DIRECTORATE,FIVEWAYS MUNICIPAL VEHICLE HIRE LTD,725,COMMERCIAL VEH CTRL A/C,HIRED VEHICLES,5902298205,1000023985
09.04.2018,ENVIRONMENT DIRECTORATE,FIVEWAYS MUNICIPAL VEHICLE HIRE LTD,725,COMMERCIAL VEH CTRL A/C,HIRED VEHICLES,5902298207,1000023985
09.04.2018,ENVIRONMENT DIRECTORATE,FIVEWAYS MUNICIPAL VEHICLE HIRE LTD,725,COMMERCIAL VEH CTRL A/C,HIRED VEHICLES,5902298208,1000023985
09.04.2018,ENVIRONMENT DIRECTORATE,DAWSON RENTALS SWEEPERS,"2,200.00",COMMERCIAL VEH CTRL A/C,HIRED VEHICLES,5902298272,1000068168
09.04.2018,ENVIRONMENT DIRECTORATE,DAWSON RENTALS SWEEPERS,"2,200.00",COMMERCIAL VEH CTRL A/C,HIRED VEHICLES,5902298273,1000068168
09.04.2018,ENVIRONMENT DIRECTORATE,DAWSON RENTALS SWEEPERS,"2,200.00",COMMERCIAL VEH CTRL A/C,HIRED VEHICLES,5902298275,1000068168
09.04.2018,ENVIRONMENT DIRECTORATE,CLOSE BROTHERS VEHICLE HIRE LTD,268.4,COMMERCIAL VEH CTRL A/C,HIRED VEHICLES,5902298292,1000074394
09.04.2018,ENVIRONMENT DIRECTORATE,CLOSE BROTHERS VEHICLE HIRE LTD,268.4,COMMERCIAL VEH CTRL A/C,HIRED VEHICLES,5902298333,1000074394
09.04.2018,ENVIRONMENT DIRECTORATE,CLOSE BROTHERS VEHICLE HIRE LTD,303.6,COMMERCIAL VEH CTRL A/C,HIRED VEHICLES,5902298328,1000074394
09.04.2018,ENVIRONMENT DIRECTORATE,CLOSE BROTHERS VEHICLE HIRE LTD,316.8,COMMERCIAL VEH CTRL A/C,HIRED VEHICLES,5902298283,1000074394
09.04.2018,ENVIRONMENT DIRECTORATE,CLOSE BROTHERS VEHICLE HIRE LTD,316.8,COMMERCIAL VEH CTRL A/C,HIRED VEHICLES,5902298286,1000074394
09.04.2018,ENVIRONMENT DIRECTORATE,CLOSE BROTHERS VEHICLE HIRE LTD,316.8,COMMERCIAL VEH CTRL A/C,HIRED VEHICLES,5902298288,1000074394
09.04.2018,ENVIRONMENT DIRECTORATE,CLOSE BROTHERS VEHICLE HIRE LTD,316.8,COMMERCIAL VEH CTRL A/C,HIRED VEHICLES,5902298303,1000074394
09.04.2018,ENVIRONMENT DIRECTORATE,CLOSE BROTHERS VEHICLE HIRE LTD,368.5,COMMERCIAL VEH CTRL A/C,HIRED VEHICLES,5902298280,1000074394
09.04.2018,ENVIRONMENT DIRECTORATE,CLOSE BROTHERS VEHICLE HIRE LTD,494.56,COMMERCIAL VEH CTRL A/C,HIRED VEHICLES,5902298331,1000074394
09.04.2018,ENVIRONMENT DIRECTORATE,R J MOTORS LIMITED,740.92,COMMERCIAL VEH CTRL A/C,VEHICLE REPAIRS & MAINTENANCE,5902298194,1000047106
09.04.2018,ENVIRONMENT DIRECTORATE,PERFORMANCE CHEMICALS LTD,"1,142.40",ESTATE CLEANING-GENERAL,MATERIALS,5902298360,1000037129
09.04.2018,ENVIRONMENT DIRECTORATE,FREIGHT TRANSPORT ASSOCIATION,260,FLEET SERVICES MANAGEMENT,BOOKS & PUBLICATIONS,5902298265,1990797
09.04.2018,ENVIRONMENT DIRECTORATE,SPALDINGS (UK) LTD,252.7,GROUNDS MAINTENANCE - GENERAL,MATERIALS,5902298356,1907384
09.04.2018,ENVIRONMENT DIRECTORATE,CERTSURE LLP,455,PUBLIC LIGHTING,PRINTING,5902298233,1706379
09.04.2018,ENVIRONMENT DIRECTORATE,FLEETSHIELD,620,SIGN SHOP,OTHER CONTRACTORS,5902298226,1000080852
09.04.2018,ENVIRONMENT DIRECTORATE,FLEETSHIELD,920,SIGN SHOP,OTHER CONTRACTORS,5902298226,1000080852
09.04.2018,ENVIRONMENT DIRECTORATE,PROJECT CENTRE LTD,"5,632.00",TRANSPORT PROJECTS,CONSULTANTS SERVICES,5902298214,1000072621
09.04.2018,ENVIRONMENT DIRECTORATE,PROJECT CENTRE LTD,"7,040.00",TRANSPORT PROJECTS,CONSULTANTS SERVICES,5902298211,1000072621
09.04.2018,F & C S EXCLUDING CORPORATE BUDGETS,HAMMICKS,337,LEGAL SVCES MANAGEMENT,SUBSCRIPTIONS,5902298269,1000011419
09.04.2018,HOUSING HRA,CALFORD SEADEN LLP,"1,291.57",CAPITAL PS (HRA),CONSTRUCTION FEES  - EXTERNAL,5902298347,1061592
09.04.2018,HOUSING HRA,CALFORD SEADEN LLP,"4,379.84",CAPITAL PS (HRA),CONSTRUCTION FEES  - EXTERNAL,5902298196,1061592
09.04.2018,HOUSING HRA,SCCI ALPHATRACK LTD,"44,675.70",SCCI ALPHATRACK,MANUAL CREDITORS,5902298308,1000071955
09.04.2018,LEISURE DIRECTORATE,SIMPLY HIRE LTD,"1,033.16",FACILITIES MAINTENANCE,BUILDING R&M,5902298351,1000018354
09.04.2018,LEISURE DIRECTORATE,EDF ENERGY PLC,857.27,GROVE VALE LIBRARY,ELECTRICITY,5902298212,1008746
09.04.2018,LEISURE DIRECTORATE,ASKEWS & HOLTS LIBRARY SERVICES LTD,324.95,STOCK SERVICES,BOOKS & PUBLICATIONS,5902298316,1494168
09.04.2018,LEISURE DIRECTORATE,ASKEWS & HOLTS LIBRARY SERVICES LTD,971.28,STOCK SERVICES,BOOKS & PUBLICATIONS,5902298311,1494168
09.04.2018,LEISURE DIRECTORATE,ASKEWS & HOLTS LIBRARY SERVICES LTD,"3,340.15",STOCK SERVICES,BOOKS & PUBLICATIONS,5902298306,1494168
09.04.2018,LEISURE DIRECTORATE,ASKEWS & HOLTS LIBRARY SERVICES LTD,"4,028.15",STOCK SERVICES,BOOKS & PUBLICATIONS,5902298340,1494168
09.04.2018,MODERNISATION HGF,SHERRIDAN HUGHES,300,OCCUPATIONAL ASSESSMENT,CONSULTANTS SERVICES,5902298123,1000074250
09.04.2018,PLANNING AND TRANSPORT,THE CAMDEN SOCIETY (CATERING),300,PLANNING POLICY TEAM,CATERING MATERIALS & SUPPLIES,5902298235,1000075365
09.04.2018,PLANNING AND TRANSPORT,RED R DESIGN,400,PLANNING PROJECTS,MARKETING & PUBLICITY SERVICES,5902298206,1000035984
09.04.2018,PUBLIC HEALTH,KENT COMMUNITY HEALTH NHS TRUST,284.58,SEXUAL HEALTH - STI,EXTERNAL AGENCIES AND BODIES,5902298344,1000073298
09.04.2018,RESIDENT SERVICES,CARLISLE SECURITY SERVICES LTD,"3,137.83",CAMBERWELL,SECURITY SERVICES,5902298330,11212342
09.04.2018,RESIDENT SERVICES,CARLISLE SECURITY SERVICES LTD,"8,121.73",CAMBERWELL,SECURITY SERVICES,5902298330,11212342
09.04.2018,RESIDENT SERVICES,ARGYLL,"1,152.30",OPERATIONS/OFFICES ACCOMMODATION,DATA COMMUNICATIONS,5902298232,1000068697
09.04.2018,RESIDENT SERVICES,ARGYLL,"1,186.80",OPERATIONS/OFFICES ACCOMMODATION,DATA COMMUNICATIONS,5902298230,1000068697
09.04.2018,RESIDENT SERVICES,EDF ENERGY PLC,393.51,SUPPORTED HOSTELS,ELECTRICITY,5902297449,1008746
09.04.2018,RESIDENT SERVICES,KENT COUNTY COUNCIL - LASER,262.29,TA HOSTELS,ELECTRICITY,5902298215,1000012926
09.04.2018,RESIDENT SERVICES,KENT COUNTY COUNCIL - LASER,529.98,TA HOSTELS,ELECTRICITY,5902298195,1000012926
09.04.2018,RESIDENT SERVICES,KENT COUNTY COUNCIL - LASER,556.49,TA HOSTELS,ELECTRICITY,5902298218,1000012926
09.04.2018,RESIDENT SERVICES,KENT COUNTY COUNCIL - LASER,"1,018.76",TA HOSTELS,ELECTRICITY,5902298197,1000012926
09.04.2018,RESIDENT SERVICES,CITYGLEN LTD,945,TA PLACEMENTS,EXTERNAL AGENCIES AND BODIES,5902298358,1000026239
10.04.2018,ADULT SOCIAL CARE,SHUTTLEWORTH (UK) LTD,359,ASC TEMPORARY ACCOMMODATION,EXTERNAL AGENCIES AND BODIES,5902298438,1000056468
10.04.2018,ADULT SOCIAL CARE,SHUTTLEWORTH (UK) LTD,912,ASC TEMPORARY ACCOMMODATION,EXTERNAL AGENCIES AND BODIES,5902298438,1000056468
10.04.2018,ADULT SOCIAL CARE,BEDE CAFE PROJECT,"-1,300.00",LD LTS 18-64,DAYCARE,2102802368,1553877
10.04.2018,ADULT SOCIAL CARE,BEDE CAFE PROJECT,260,LD LTS 18-64,DAYCARE,2102802360,1553877
10.04.2018,ADULT SOCIAL CARE,BEDE CAFE PROJECT,260,LD LTS 18-64,DAYCARE,2102802373,1553877
10.04.2018,ADULT SOCIAL CARE,BEDE CAFE PROJECT,260,LD LTS 18-64,DAYCARE,2102802374,1553877
10.04.2018,ADULT SOCIAL CARE,BEDE CAFE PROJECT,267,LD LTS 18-64,DAYCARE,2102802362,1553877
10.04.2018,ADULT SOCIAL CARE,BEDE CAFE PROJECT,326.93,LD LTS 18-64,DAYCARE,2102802381,1553877
10.04.2018,ADULT SOCIAL CARE,BEDE CAFE PROJECT,455.85,LD LTS 18-64,DAYCARE,2102802355,1553877
10.04.2018,ADULT SOCIAL CARE,BEDE CAFE PROJECT,520,LD LTS 18-64,DAYCARE,2102802352,1553877
10.04.2018,ADULT SOCIAL CARE,BEDE CAFE PROJECT,520,LD LTS 18-64,DAYCARE,2102802354,1553877
10.04.2018,ADULT SOCIAL CARE,BEDE CAFE PROJECT,520,LD LTS 18-64,DAYCARE,2102802359,1553877
10.04.2018,ADULT SOCIAL CARE,BEDE CAFE PROJECT,520,LD LTS 18-64,DAYCARE,2102802378,1553877
10.04.2018,ADULT SOCIAL CARE,BEDE CAFE PROJECT,590,LD LTS 18-64,DAYCARE,2102802372,1553877
10.04.2018,ADULT SOCIAL CARE,BEDE CAFE PROJECT,632,LD LTS 18-64,DAYCARE,2102802377,1553877
10.04.2018,ADULT SOCIAL CARE,BEDE CAFE PROJECT,712,LD LTS 18-64,DAYCARE,2102802379,1553877
10.04.2018,ADULT SOCIAL CARE,BEDE CAFE PROJECT,780,LD LTS 18-64,DAYCARE,2102802357,1553877
10.04.2018,ADULT SOCIAL CARE,BEDE CAFE PROJECT,780,LD LTS 18-64,DAYCARE,2102802358,1553877
10.04.2018,ADULT SOCIAL CARE,BEDE CAFE PROJECT,960,LD LTS 18-64,DAYCARE,2102802363,1553877
10.04.2018,ADULT SOCIAL CARE,BEDE CAFE PROJECT,"1,020.00",LD LTS 18-64,DAYCARE,2102802380,1553877
10.04.2018,ADULT SOCIAL CARE,BEDE CAFE PROJECT,"1,020.00",LD LTS 18-64,DAYCARE,2102802382,1553877
10.04.2018,ADULT SOCIAL CARE,BEDE CAFE PROJECT,"1,040.00",LD LTS 18-64,DAYCARE,2102802364,1553877
10.04.2018,ADULT SOCIAL CARE,BEDE CAFE PROJECT,"1,040.00",LD LTS 18-64,DAYCARE,2102802367,1553877
10.04.2018,ADULT SOCIAL CARE,BEDE CAFE PROJECT,"1,040.00",LD LTS 18-64,DAYCARE,2102802369,1553877
10.04.2018,ADULT SOCIAL CARE,BEDE CAFE PROJECT,"1,040.00",LD LTS 18-64,DAYCARE,2102802375,1553877
10.04.2018,ADULT SOCIAL CARE,BEDE CAFE PROJECT,"1,180.00",LD LTS 18-64,DAYCARE,2102802361,1553877
10.04.2018,ADULT SOCIAL CARE,BEDE CAFE PROJECT,"1,200.00",LD LTS 18-64,DAYCARE,2102802370,1553877
10.04.2018,ADULT SOCIAL CARE,BEDE CAFE PROJECT,"1,264.00",LD LTS 18-64,DAYCARE,2102802353,1553877
10.04.2018,ADULT SOCIAL CARE,BEDE CAFE PROJECT,"1,442.48",LD LTS 18-64,DAYCARE,2102802376,1553877
10.04.2018,ADULT SOCIAL CARE,BEDE CAFE PROJECT,"1,580.00",LD LTS 18-64,DAYCARE,2102802383,1553877
10.04.2018,ADULT SOCIAL CARE,BEDE CAFE PROJECT,"1,752.00",LD LTS 18-64,DAYCARE,2102802384,1553877
10.04.2018,ADULT SOCIAL CARE,BEDE CAFE PROJECT,"2,920.00",LD LTS 18-64,DAYCARE,2102802365,1553877
10.04.2018,ADULT SOCIAL CARE,BEDE CAFE PROJECT,"2,920.00",LD LTS 18-64,DAYCARE,2102802366,1553877
10.04.2018,ADULT SOCIAL CARE,SURREY DOCKS FARM PROVIDENT SOCIETY,675,LD LTS 18-64,DAYCARE,2102802351,1000000958
10.04.2018,ADULT SOCIAL CARE,SURREY DOCKS FARM PROVIDENT SOCIETY,720,LD LTS 18-64,DAYCARE,2102802349,1000000958
10.04.2018,ADULT SOCIAL CARE,LAMBETH MENCAP,"1,701.00",LD LTS 18-64,SUPPORTED LIVING,2102802285,1000005477
10.04.2018,ADULT SOCIAL CARE,THREE C'S SUPPORT,360.2,LD LTS 18-64,SUPPORTED LIVING,2102802286,1000033865
10.04.2018,ADULT SOCIAL CARE,THREE C'S SUPPORT,411.6,LD LTS 18-64,SUPPORTED LIVING,2102802279,1000033865
10.04.2018,ADULT SOCIAL CARE,THREE C'S SUPPORT,411.6,LD LTS 18-64,SUPPORTED LIVING,2102802282,1000033865
10.04.2018,ADULT SOCIAL CARE,THREE C'S SUPPORT,562.29,LD LTS 18-64,SUPPORTED LIVING,2102802277,1000033865
10.04.2018,ADULT SOCIAL CARE,THREE C'S SUPPORT,954.2,LD LTS 65+,SUPPORTED LIVING,2102802287,1000033865
10.04.2018,ADULT SOCIAL CARE,LONDON CARE LTD,546.57,MEM LTS 18-64,HOMECARE - C&V,2102802229,1000003398
10.04.2018,ADULT SOCIAL CARE,LONDON CARE LTD,756.6,MEM LTS 18-64,HOMECARE - C&V,2102802157,1000003398
10.04.2018,ADULT SOCIAL CARE,LONDON CARE LTD,571.84,MEM LTS 65+,HOMECARE - C&V,2102802103,1000003398
10.04.2018,ADULT SOCIAL CARE,LONDON CARE LTD,"1,235.95",MEM LTS 65+,HOMECARE - C&V,2102802185,1000003398
10.04.2018,ADULT SOCIAL CARE,LONDON CARE LTD,"2,354.24",MEM LTS 65+,HOMECARE - C&V,2102802139,1000003398
10.04.2018,ADULT SOCIAL CARE,LONDON CARE LTD,344.77,MH LTS 65+,HOMECARE - C&V,2102802151,1000003398
10.04.2018,ADULT SOCIAL CARE,LONDON CARE LTD,588.56,MH LTS 65+,HOMECARE - C&V,2102802149,1000003398
10.04.2018,ADULT SOCIAL CARE,LONDON CARE LTD,252.2,PHY LTS 18-64,HOMECARE - C&V,2102802131,1000003398
10.04.2018,ADULT SOCIAL CARE,LONDON CARE LTD,302.72,PHY LTS 18-64,HOMECARE - C&V,2102802256,1000003398
10.04.2018,ADULT SOCIAL CARE,LONDON CARE LTD,336.36,PHY LTS 18-64,HOMECARE - C&V,2102802170,1000003398
10.04.2018,ADULT SOCIAL CARE,LONDON CARE LTD,353.04,PHY LTS 18-64,HOMECARE - C&V,2102802227,1000003398
10.04.2018,ADULT SOCIAL CARE,LONDON CARE LTD,353.08,PHY LTS 18-64,HOMECARE - C&V,2102802202,1000003398
10.04.2018,ADULT SOCIAL CARE,LONDON CARE LTD,369.92,PHY LTS 18-64,HOMECARE - C&V,2102802211,1000003398
10.04.2018,ADULT SOCIAL CARE,LONDON CARE LTD,371.86,PHY LTS 18-64,HOMECARE - C&V,2102802261,1000003398
10.04.2018,ADULT SOCIAL CARE,LONDON CARE LTD,428.72,PHY LTS 18-64,HOMECARE - C&V,2102802165,1000003398
10.04.2018,ADULT SOCIAL CARE,LONDON CARE LTD,462.34,PHY LTS 18-64,HOMECARE - C&V,2102802117,1000003398
10.04.2018,ADULT SOCIAL CARE,LONDON CARE LTD,487.52,PHY LTS 18-64,HOMECARE - C&V,2102802146,1000003398
10.04.2018,ADULT SOCIAL CARE,LONDON CARE LTD,521.39,PHY LTS 18-64,HOMECARE - C&V,2102802251,1000003398
10.04.2018,ADULT SOCIAL CARE,LONDON CARE LTD,538.2,PHY LTS 18-64,HOMECARE - C&V,2102802116,1000003398
10.04.2018,ADULT SOCIAL CARE,LONDON CARE LTD,588.56,PHY LTS 18-64,HOMECARE - C&V,2102802128,1000003398
10.04.2018,ADULT SOCIAL CARE,LONDON CARE LTD,605.28,PHY LTS 18-64,HOMECARE - C&V,2102802239,1000003398
10.04.2018,ADULT SOCIAL CARE,LONDON CARE LTD,605.36,PHY LTS 18-64,HOMECARE - C&V,2102802169,1000003398
10.04.2018,ADULT SOCIAL CARE,LONDON CARE LTD,622.2,PHY LTS 18-64,HOMECARE - C&V,2102802191,1000003398
10.04.2018,ADULT SOCIAL CARE,LONDON CARE LTD,655.8,PHY LTS 18-64,HOMECARE - C&V,2102802126,1000003398
10.04.2018,ADULT SOCIAL CARE,LONDON CARE LTD,672.4,PHY LTS 18-64,HOMECARE - C&V,2102802193,1000003398
10.04.2018,ADULT SOCIAL CARE,LONDON CARE LTD,672.52,PHY LTS 18-64,HOMECARE - C&V,2102802222,1000003398
10.04.2018,ADULT SOCIAL CARE,LONDON CARE LTD,689.44,PHY LTS 18-64,HOMECARE - C&V,2102802237,1000003398
10.04.2018,ADULT SOCIAL CARE,LONDON CARE LTD,706.16,PHY LTS 18-64,HOMECARE - C&V,2102802070,1000003398
10.04.2018,ADULT SOCIAL CARE,LONDON CARE LTD,706.28,PHY LTS 18-64,HOMECARE - C&V,2102802136,1000003398
10.04.2018,ADULT SOCIAL CARE,LONDON CARE LTD,739.8,PHY LTS 18-64,HOMECARE - C&V,2102802097,1000003398
10.04.2018,ADULT SOCIAL CARE,LONDON CARE LTD,811.23,PHY LTS 18-64,HOMECARE - C&V,2102802112,1000003398
10.04.2018,ADULT SOCIAL CARE,LONDON CARE LTD,878.77,PHY LTS 18-64,HOMECARE - C&V,2102802264,1000003398
10.04.2018,ADULT SOCIAL CARE,LONDON CARE LTD,924.92,PHY LTS 18-64,HOMECARE - C&V,2102802132,1000003398
10.04.2018,ADULT SOCIAL CARE,LONDON CARE LTD,933.07,PHY LTS 18-64,HOMECARE - C&V,2102802090,1000003398
10.04.2018,ADULT SOCIAL CARE,LONDON CARE LTD,941.6,PHY LTS 18-64,HOMECARE - C&V,2102802082,1000003398
10.04.2018,ADULT SOCIAL CARE,LONDON CARE LTD,941.64,PHY LTS 18-64,HOMECARE - C&V,2102802180,1000003398
10.04.2018,ADULT SOCIAL CARE,LONDON CARE LTD,945.84,PHY LTS 18-64,HOMECARE - C&V,2102802228,1000003398
10.04.2018,ADULT SOCIAL CARE,LONDON CARE LTD,991.88,PHY LTS 18-64,HOMECARE - C&V,2102802080,1000003398
10.04.2018,ADULT SOCIAL CARE,LONDON CARE LTD,"1,395.58",PHY LTS 18-64,HOMECARE - C&V,2102802181,1000003398
10.04.2018,ADULT SOCIAL CARE,LONDON CARE LTD,"1,479.43",PHY LTS 18-64,HOMECARE - C&V,2102802110,1000003398
10.04.2018,ADULT SOCIAL CARE,LONDON CARE LTD,"2,354.24",PHY LTS 18-64,HOMECARE - C&V,2102802182,1000003398
10.04.2018,ADULT SOCIAL CARE,LONDON CARE LTD,"3,185.74",PHY LTS 18-64,HOMECARE - C&V,2102802088,1000003398
10.04.2018,ADULT SOCIAL CARE,CARE DIRECT UK LTD,641.24,PHY LTS 18-64,HOMECARE - C&V,2102802288,1000066322
10.04.2018,ADULT SOCIAL CARE,LONDON CARE LTD,647.05,PHY LTS 18-64,HOMECARE - SPOT,2102802161,1000003398
10.04.2018,ADULT SOCIAL CARE,CARE DIRECT UK LTD,317.17,PHY LTS 18-64,HOMECARE - SPOT,2102802318,1000066322
10.04.2018,ADULT SOCIAL CARE,LONDON CARE LTD,252.12,PHY LTS 65+,HOMECARE - C&V,2102802196,1000003398
10.04.2018,ADULT SOCIAL CARE,LONDON CARE LTD,302.64,PHY LTS 65+,HOMECARE - C&V,2102802138,1000003398
10.04.2018,ADULT SOCIAL CARE,LONDON CARE LTD,302.71,PHY LTS 65+,HOMECARE - C&V,2102802203,1000003398
10.04.2018,ADULT SOCIAL CARE,LONDON CARE LTD,315.28,PHY LTS 65+,HOMECARE - C&V,2102802247,1000003398
10.04.2018,ADULT SOCIAL CARE,LONDON CARE LTD,319.52,PHY LTS 65+,HOMECARE - C&V,2102802147,1000003398
10.04.2018,ADULT SOCIAL CARE,LONDON CARE LTD,336.2,PHY LTS 65+,HOMECARE - C&V,2102802173,1000003398
10.04.2018,ADULT SOCIAL CARE,LONDON CARE LTD,336.4,PHY LTS 65+,HOMECARE - C&V,2102802220,1000003398
10.04.2018,ADULT SOCIAL CARE,LONDON CARE LTD,340.47,PHY LTS 65+,HOMECARE - C&V,2102802255,1000003398
10.04.2018,ADULT SOCIAL CARE,LONDON CARE LTD,353.08,PHY LTS 65+,HOMECARE - C&V,2102802168,1000003398
10.04.2018,ADULT SOCIAL CARE,LONDON CARE LTD,353.08,PHY LTS 65+,HOMECARE - C&V,2102802186,1000003398
10.04.2018,ADULT SOCIAL CARE,LONDON CARE LTD,353.08,PHY LTS 65+,HOMECARE - C&V,2102802213,1000003398
10.04.2018,ADULT SOCIAL CARE,LONDON CARE LTD,353.08,PHY LTS 65+,HOMECARE - C&V,2102802215,1000003398
10.04.2018,ADULT SOCIAL CARE,LONDON CARE LTD,353.08,PHY LTS 65+,HOMECARE - C&V,2102802258,1000003398
10.04.2018,ADULT SOCIAL CARE,LONDON CARE LTD,382.57,PHY LTS 65+,HOMECARE - C&V,2102802268,1000003398
10.04.2018,ADULT SOCIAL CARE,LONDON CARE LTD,390.97,PHY LTS 65+,HOMECARE - C&V,2102802102,1000003398
10.04.2018,ADULT SOCIAL CARE,LONDON CARE LTD,403.6,PHY LTS 65+,HOMECARE - C&V,2102802164,1000003398
10.04.2018,ADULT SOCIAL CARE,LONDON CARE LTD,412.09,PHY LTS 65+,HOMECARE - C&V,2102802183,1000003398
10.04.2018,ADULT SOCIAL CARE,LONDON CARE LTD,420.4,PHY LTS 65+,HOMECARE - C&V,2102802113,1000003398
10.04.2018,ADULT SOCIAL CARE,LONDON CARE LTD,462.55,PHY LTS 65+,HOMECARE - C&V,2102802172,1000003398
10.04.2018,ADULT SOCIAL CARE,LONDON CARE LTD,466.64,PHY LTS 65+,HOMECARE - C&V,2102802231,1000003398
10.04.2018,ADULT SOCIAL CARE,LONDON CARE LTD,470.68,PHY LTS 65+,HOMECARE - C&V,2102802174,1000003398
10.04.2018,ADULT SOCIAL CARE,LONDON CARE LTD,470.96,PHY LTS 65+,HOMECARE - C&V,2102802086,1000003398
10.04.2018,ADULT SOCIAL CARE,LONDON CARE LTD,470.96,PHY LTS 65+,HOMECARE - C&V,2102802209,1000003398
10.04.2018,ADULT SOCIAL CARE,LONDON CARE LTD,470.96,PHY LTS 65+,HOMECARE - C&V,2102802244,1000003398
10.04.2018,ADULT SOCIAL CARE,LONDON CARE LTD,479.18,PHY LTS 65+,HOMECARE - C&V,2102802224,1000003398
10.04.2018,ADULT SOCIAL CARE,LONDON CARE LTD,487.56,PHY LTS 65+,HOMECARE - C&V,2102802171,1000003398
10.04.2018,ADULT SOCIAL CARE,LONDON CARE LTD,491.74,PHY LTS 65+,HOMECARE - C&V,2102802195,1000003398
10.04.2018,ADULT SOCIAL CARE,LONDON CARE LTD,521.11,PHY LTS 65+,HOMECARE - C&V,2102802216,1000003398
10.04.2018,ADULT SOCIAL CARE,LONDON CARE LTD,529.79,PHY LTS 65+,HOMECARE - C&V,2102802192,1000003398
10.04.2018,ADULT SOCIAL CARE,LONDON CARE LTD,533.91,PHY LTS 65+,HOMECARE - C&V,2102802099,1000003398
10.04.2018,ADULT SOCIAL CARE,LONDON CARE LTD,538.2,PHY LTS 65+,HOMECARE - C&V,2102802137,1000003398
10.04.2018,ADULT SOCIAL CARE,LONDON CARE LTD,538.2,PHY LTS 65+,HOMECARE - C&V,2102802187,1000003398
10.04.2018,ADULT SOCIAL CARE,LONDON CARE LTD,571.84,PHY LTS 65+,HOMECARE - C&V,2102802197,1000003398
10.04.2018,ADULT SOCIAL CARE,LONDON CARE LTD,580.11,PHY LTS 65+,HOMECARE - C&V,2102802083,1000003398
10.04.2018,ADULT SOCIAL CARE,LONDON CARE LTD,588.56,PHY LTS 65+,HOMECARE - C&V,2102802087,1000003398
10.04.2018,ADULT SOCIAL CARE,LONDON CARE LTD,588.56,PHY LTS 65+,HOMECARE - C&V,2102802204,1000003398
10.04.2018,ADULT SOCIAL CARE,LONDON CARE LTD,588.56,PHY LTS 65+,HOMECARE - C&V,2102802221,1000003398
10.04.2018,ADULT SOCIAL CARE,LONDON CARE LTD,588.56,PHY LTS 65+,HOMECARE - C&V,2102802266,1000003398
10.04.2018,ADULT SOCIAL CARE,LONDON CARE LTD,598.94,PHY LTS 65+,HOMECARE - C&V,2102802236,1000003398
10.04.2018,ADULT SOCIAL CARE,LONDON CARE LTD,601.16,PHY LTS 65+,HOMECARE - C&V,2102802106,1000003398
10.04.2018,ADULT SOCIAL CARE,LONDON CARE LTD,605.16,PHY LTS 65+,HOMECARE - C&V,2102802179,1000003398
10.04.2018,ADULT SOCIAL CARE,LONDON CARE LTD,605.16,PHY LTS 65+,HOMECARE - C&V,2102802206,1000003398
10.04.2018,ADULT SOCIAL CARE,LONDON CARE LTD,605.44,PHY LTS 65+,HOMECARE - C&V,2102802163,1000003398
10.04.2018,ADULT SOCIAL CARE,LONDON CARE LTD,639,PHY LTS 65+,HOMECARE - C&V,2102802134,1000003398
10.04.2018,ADULT SOCIAL CARE,LONDON CARE LTD,655.72,PHY LTS 65+,HOMECARE - C&V,2102802235,1000003398
10.04.2018,ADULT SOCIAL CARE,LONDON CARE LTD,655.8,PHY LTS 65+,HOMECARE - C&V,2102802076,1000003398
10.04.2018,ADULT SOCIAL CARE,LONDON CARE LTD,655.8,PHY LTS 65+,HOMECARE - C&V,2102802253,1000003398
10.04.2018,ADULT SOCIAL CARE,LONDON CARE LTD,672.52,PHY LTS 65+,HOMECARE - C&V,2102802219,1000003398
10.04.2018,ADULT SOCIAL CARE,LONDON CARE LTD,698.03,PHY LTS 65+,HOMECARE - C&V,2102802271,1000003398
10.04.2018,ADULT SOCIAL CARE,LONDON CARE LTD,714.61,PHY LTS 65+,HOMECARE - C&V,2102802230,1000003398
10.04.2018,ADULT SOCIAL CARE,LONDON CARE LTD,730.64,PHY LTS 65+,HOMECARE - C&V,2102802092,1000003398
10.04.2018,ADULT SOCIAL CARE,LONDON CARE LTD,773.4,PHY LTS 65+,HOMECARE - C&V,2102802208,1000003398
10.04.2018,ADULT SOCIAL CARE,LONDON CARE LTD,790.2,PHY LTS 65+,HOMECARE - C&V,2102802079,1000003398
10.04.2018,ADULT SOCIAL CARE,LONDON CARE LTD,807.02,PHY LTS 65+,HOMECARE - C&V,2102802119,1000003398
10.04.2018,ADULT SOCIAL CARE,LONDON CARE LTD,807.04,PHY LTS 65+,HOMECARE - C&V,2102802246,1000003398
10.04.2018,ADULT SOCIAL CARE,LONDON CARE LTD,807.3,PHY LTS 65+,HOMECARE - C&V,2102802096,1000003398
10.04.2018,ADULT SOCIAL CARE,LONDON CARE LTD,823.76,PHY LTS 65+,HOMECARE - C&V,2102802249,1000003398
10.04.2018,ADULT SOCIAL CARE,LONDON CARE LTD,823.84,PHY LTS 65+,HOMECARE - C&V,2102802153,1000003398
10.04.2018,ADULT SOCIAL CARE,LONDON CARE LTD,840.84,PHY LTS 65+,HOMECARE - C&V,2102802272,1000003398
10.04.2018,ADULT SOCIAL CARE,LONDON CARE LTD,841.99,PHY LTS 65+,HOMECARE - C&V,2102802093,1000003398
10.04.2018,ADULT SOCIAL CARE,LONDON CARE LTD,866.07,PHY LTS 65+,HOMECARE - C&V,2102802108,1000003398
10.04.2018,ADULT SOCIAL CARE,LONDON CARE LTD,874.43,PHY LTS 65+,HOMECARE - C&V,2102802091,1000003398
10.04.2018,ADULT SOCIAL CARE,LONDON CARE LTD,891.28,PHY LTS 65+,HOMECARE - C&V,2102802159,1000003398
10.04.2018,ADULT SOCIAL CARE,LONDON CARE LTD,908.15,PHY LTS 65+,HOMECARE - C&V,2102802071,1000003398
10.04.2018,ADULT SOCIAL CARE,LONDON CARE LTD,912.31,PHY LTS 65+,HOMECARE - C&V,2102802156,1000003398
10.04.2018,ADULT SOCIAL CARE,LONDON CARE LTD,924.84,PHY LTS 65+,HOMECARE - C&V,2102802233,1000003398
10.04.2018,ADULT SOCIAL CARE,LONDON CARE LTD,924.92,PHY LTS 65+,HOMECARE - C&V,2102802166,1000003398
10.04.2018,ADULT SOCIAL CARE,LONDON CARE LTD,924.92,PHY LTS 65+,HOMECARE - C&V,2102802178,1000003398
10.04.2018,ADULT SOCIAL CARE,LONDON CARE LTD,924.92,PHY LTS 65+,HOMECARE - C&V,2102802201,1000003398
10.04.2018,ADULT SOCIAL CARE,LONDON CARE LTD,937.52,PHY LTS 65+,HOMECARE - C&V,2102802129,1000003398
10.04.2018,ADULT SOCIAL CARE,LONDON CARE LTD,941.36,PHY LTS 65+,HOMECARE - C&V,2102802098,1000003398
10.04.2018,ADULT SOCIAL CARE,LONDON CARE LTD,941.64,PHY LTS 65+,HOMECARE - C&V,2102802100,1000003398
10.04.2018,ADULT SOCIAL CARE,LONDON CARE LTD,941.64,PHY LTS 65+,HOMECARE - C&V,2102802133,1000003398
10.04.2018,ADULT SOCIAL CARE,LONDON CARE LTD,941.92,PHY LTS 65+,HOMECARE - C&V,2102802198,1000003398
10.04.2018,ADULT SOCIAL CARE,LONDON CARE LTD,950.1,PHY LTS 65+,HOMECARE - C&V,2102802148,1000003398
10.04.2018,ADULT SOCIAL CARE,LONDON CARE LTD,966.95,PHY LTS 65+,HOMECARE - C&V,2102802267,1000003398
10.04.2018,ADULT SOCIAL CARE,LONDON CARE LTD,975.24,PHY LTS 65+,HOMECARE - C&V,2102802177,1000003398
10.04.2018,ADULT SOCIAL CARE,LONDON CARE LTD,991.88,PHY LTS 65+,HOMECARE - C&V,2102802232,1000003398
10.04.2018,ADULT SOCIAL CARE,LONDON CARE LTD,"1,046.88",PHY LTS 65+,HOMECARE - C&V,2102802245,1000003398
10.04.2018,ADULT SOCIAL CARE,LONDON CARE LTD,"1,059.52",PHY LTS 65+,HOMECARE - C&V,2102802109,1000003398
10.04.2018,ADULT SOCIAL CARE,LONDON CARE LTD,"1,059.52",PHY LTS 65+,HOMECARE - C&V,2102802257,1000003398
10.04.2018,ADULT SOCIAL CARE,LONDON CARE LTD,"1,109.76",PHY LTS 65+,HOMECARE - C&V,2102802085,1000003398
10.04.2018,ADULT SOCIAL CARE,LONDON CARE LTD,"1,109.76",PHY LTS 65+,HOMECARE - C&V,2102802217,1000003398
10.04.2018,ADULT SOCIAL CARE,LONDON CARE LTD,"1,135.04",PHY LTS 65+,HOMECARE - C&V,2102802069,1000003398
10.04.2018,ADULT SOCIAL CARE,LONDON CARE LTD,"1,192.96",PHY LTS 65+,HOMECARE - C&V,2102802094,1000003398
10.04.2018,ADULT SOCIAL CARE,LONDON CARE LTD,"1,210.76",PHY LTS 65+,HOMECARE - C&V,2102802127,1000003398
10.04.2018,ADULT SOCIAL CARE,LONDON CARE LTD,"1,269.58",PHY LTS 65+,HOMECARE - C&V,2102802176,1000003398
10.04.2018,ADULT SOCIAL CARE,LONDON CARE LTD,"1,278.00",PHY LTS 65+,HOMECARE - C&V,2102802160,1000003398
10.04.2018,ADULT SOCIAL CARE,LONDON CARE LTD,"1,294.72",PHY LTS 65+,HOMECARE - C&V,2102802207,1000003398
10.04.2018,ADULT SOCIAL CARE,LONDON CARE LTD,"1,328.42",PHY LTS 65+,HOMECARE - C&V,2102802238,1000003398
10.04.2018,ADULT SOCIAL CARE,LONDON CARE LTD,"1,361.96",PHY LTS 65+,HOMECARE - C&V,2102802194,1000003398
10.04.2018,ADULT SOCIAL CARE,LONDON CARE LTD,"1,378.60",PHY LTS 65+,HOMECARE - C&V,2102802240,1000003398
10.04.2018,ADULT SOCIAL CARE,LONDON CARE LTD,"1,378.84",PHY LTS 65+,HOMECARE - C&V,2102802218,1000003398
10.04.2018,ADULT SOCIAL CARE,LONDON CARE LTD,"1,529.92",PHY LTS 65+,HOMECARE - C&V,2102802259,1000003398
10.04.2018,ADULT SOCIAL CARE,LONDON CARE LTD,"1,681.68",PHY LTS 65+,HOMECARE - C&V,2102802145,1000003398
10.04.2018,ADULT SOCIAL CARE,LONDON CARE LTD,"1,883.28",PHY LTS 65+,HOMECARE - C&V,2102802104,1000003398
10.04.2018,ADULT SOCIAL CARE,LONDON CARE LTD,"2,000.88",PHY LTS 65+,HOMECARE - C&V,2102802067,1000003398
10.04.2018,ADULT SOCIAL CARE,LONDON CARE LTD,"2,030.22",PHY LTS 65+,HOMECARE - C&V,2102802188,1000003398
10.04.2018,ADULT SOCIAL CARE,LONDON CARE LTD,"2,156.85",PHY LTS 65+,HOMECARE - C&V,2102802073,1000003398
10.04.2018,ADULT SOCIAL CARE,LONDON CARE LTD,"2,341.63",PHY LTS 65+,HOMECARE - C&V,2102802175,1000003398
10.04.2018,ADULT SOCIAL CARE,LONDON CARE LTD,"2,455.12",PHY LTS 65+,HOMECARE - C&V,2102802150,1000003398
10.04.2018,ADULT SOCIAL CARE,LONDON CARE LTD,"2,471.84",PHY LTS 65+,HOMECARE - C&V,2102802068,1000003398
10.04.2018,ADULT SOCIAL CARE,LONDON CARE LTD,"2,807.68",PHY LTS 65+,HOMECARE - C&V,2102802155,1000003398
10.04.2018,ADULT SOCIAL CARE,LONDON CARE LTD,"2,841.52",PHY LTS 65+,HOMECARE - C&V,2102802121,1000003398
10.04.2018,ADULT SOCIAL CARE,LONDON CARE LTD,"3,295.04",PHY LTS 65+,HOMECARE - C&V,2102802254,1000003398
10.04.2018,ADULT SOCIAL CARE,LONDON CARE LTD,"3,345.47",PHY LTS 65+,HOMECARE - C&V,2102802125,1000003398
10.04.2018,ADULT SOCIAL CARE,LONDON CARE LTD,269.08,PHY LTS 65+,HOMECARE - SPOT,2102802107,1000003398
10.04.2018,ADULT SOCIAL CARE,LONDON CARE LTD,437.12,PHY LTS 65+,HOMECARE - SPOT,2102802077,1000003398
10.04.2018,ADULT SOCIAL CARE,LONDON CARE LTD,"1,008.88",PHY LTS 65+,HOMECARE - SPOT,2102802105,1000003398
10.04.2018,ADULT SOCIAL CARE,CARE DIRECT UK LTD,255.11,PHY LTS 65+,HOMECARE - SPOT,2102802280,1000066322
10.04.2018,ADULT SOCIAL CARE,CARE DIRECT UK LTD,255.11,PHY LTS 65+,HOMECARE - SPOT,2102802284,1000066322
10.04.2018,ADULT SOCIAL CARE,CARE DIRECT UK LTD,265.46,PHY LTS 65+,HOMECARE - SPOT,2102802275,1000066322
10.04.2018,ADULT SOCIAL CARE,CARE DIRECT UK LTD,265.46,PHY LTS 65+,HOMECARE - SPOT,2102802308,1000066322
10.04.2018,ADULT SOCIAL CARE,CARE DIRECT UK LTD,265.46,PHY LTS 65+,HOMECARE - SPOT,2102802328,1000066322
10.04.2018,ADULT SOCIAL CARE,CARE DIRECT UK LTD,268.91,PHY LTS 65+,HOMECARE - SPOT,2102802338,1000066322
10.04.2018,ADULT SOCIAL CARE,CARE DIRECT UK LTD,286.14,PHY LTS 65+,HOMECARE - SPOT,2102802341,1000066322
10.04.2018,ADULT SOCIAL CARE,CARE DIRECT UK LTD,337.86,PHY LTS 65+,HOMECARE - SPOT,2102802325,1000066322
10.04.2018,ADULT SOCIAL CARE,CARE DIRECT UK LTD,427.49,PHY LTS 65+,HOMECARE - SPOT,2102802283,1000066322
10.04.2018,ADULT SOCIAL CARE,CARE DIRECT UK LTD,434.39,PHY LTS 65+,HOMECARE - SPOT,2102802322,1000066322
10.04.2018,ADULT SOCIAL CARE,CARE DIRECT UK LTD,475.76,PHY LTS 65+,HOMECARE - SPOT,2102802309,1000066322
10.04.2018,ADULT SOCIAL CARE,LONDON CARE LTD,344.72,PHY STS 65+,HOMECARE - IC,2102802265,1000003398
10.04.2018,ADULT SOCIAL CARE,BEDE CAFE PROJECT,"1,168.00",SOCIAL ISOLATION,DAYCARE,2102802371,1553877
10.04.2018,ADULT SOCIAL CARE,SURREY DOCKS FARM PROVIDENT SOCIETY,500,SOCIAL ISOLATION,DAYCARE,2102802350,1000000958
10.04.2018,ADULT SOCIAL CARE,LONDON CARE LTD,348.88,SOCIAL ISOLATION,HOMECARE - C&V,2102802081,1000003398
10.04.2018,ADULT SOCIAL CARE,LONDON CARE LTD,353.08,SOCIAL ISOLATION,HOMECARE - C&V,2102802075,1000003398
10.04.2018,ADULT SOCIAL CARE,LONDON CARE LTD,403.52,SOCIAL ISOLATION,HOMECARE - C&V,2102802263,1000003398
10.04.2018,ADULT SOCIAL CARE,LONDON CARE LTD,527.66,SOCIAL ISOLATION,HOMECARE - C&V,2102802262,1000003398
10.04.2018,ADULT SOCIAL CARE,LONDON CARE LTD,777.79,SOCIAL ISOLATION,HOMECARE - C&V,2102802074,1000003398
10.04.2018,ADULT SOCIAL CARE,LONDON CARE LTD,912.32,SOCIAL ISOLATION,HOMECARE - C&V,2102802078,1000003398
10.04.2018,ADULT SOCIAL CARE,LONDON CARE LTD,"2,341.07",SOCIAL ISOLATION,HOMECARE - SPOT,2102802158,1000003398
10.04.2018,ADULT SOCIAL CARE,CARE DIRECT UK LTD,268.91,SOCIAL ISOLATION,HOMECARE - SPOT,2102802292,1000066322
10.04.2018,ASSET MANAGEMENT,TOTAL HYGIENE LTD,265,ADAPTATIONS,BUILDING R&M,5902298429,1793628
10.04.2018,ASSET MANAGEMENT,TOTAL HYGIENE LTD,400,ADAPTATIONS,BUILDING R&M,5902298428,1793628
10.04.2018,ASSET MANAGEMENT,C&C BUILDERS LTD,"5,505.00",ADAPTATIONS,BUILDING R&M,2102802431,3000001986
10.04.2018,ASSET MANAGEMENT,C&C BUILDERS LTD,"5,760.00",ADAPTATIONS,BUILDING R&M,2102802430,3000001986
10.04.2018,ASSET MANAGEMENT,C&C BUILDERS LTD,"7,154.05",ADAPTATIONS,BUILDING R&M,2102802429,3000001986
10.04.2018,ASSET MANAGEMENT,GAS ADVISORY SERVICES LIMITED,"2,193.00",ENG CONTRACTS (NORTH),HEATING -DISTRICT SERVICE (CONTRACT SUM),5902298415,1000064649
10.04.2018,ASSET MANAGEMENT,GAS ADVISORY SERVICES LIMITED,"7,165.50",ENG CONTRACTS (NORTH),HEATING -DISTRICT SERVICE (CONTRACT SUM),5902298409,1000064649
10.04.2018,ASSET MANAGEMENT,AVONLINE PLC,"1,087.45",ENG CONTRACTS (NORTH),TV AERIALS R&M,5902298478,1000068672
10.04.2018,ASSET MANAGEMENT,METRO DIGITAL TELEVISION LTD,300,ENG CONTRACTS (NORTH),TV AERIALS R&M,5902298498,1000070713
10.04.2018,ASSET MANAGEMENT,SCCI ALPHATRACK LTD,608.72,ENG CONTRACTS (NORTH),TV AERIALS R&M,5902298518,1000071955
10.04.2018,ASSET MANAGEMENT,ELROY'S BUILDING SERVICES UK LTD,"6,986.83",VOIDS (SOUTH),BUILDING R&M,2102802419,3000001656
10.04.2018,ASSET MANAGEMENT,BUILDTRUST LTD,394.96,VOIDS (SOUTH),BUILDING R&M,2102802427,3000002010
10.04.2018,ASSET MANAGEMENT,BUILDTRUST LTD,"1,446.63",VOIDS (SOUTH),BUILDING R&M,2102802428,3000002010
10.04.2018,ASSET MANAGEMENT,BUILDTRUST LTD,"14,188.79",VOIDS (SOUTH),BUILDING R&M,2102802413,3000002010
10.04.2018,CENTRAL FUNCTIONS,CLEANOVATION,494.33,COMMERCIAL PROPERTIES,PREMISES CLEANING,5902298010,1000000539
10.04.2018,CENTRAL FUNCTIONS,BROCKBANKS SOLICITORS,"2,898.00",HOME OWNERSHIP INCOME,HOUSING RESIDENTIAL RENTS,2102802401,1000080991
10.04.2018,CHIEF EXECUTIVE,HANNAH MAULE-FFINCH,"4,050.00",CAPITAL PS (REGEN),CONSTRUCTION FEES  - EXTERNAL,5902298439,1000034725
10.04.2018,CHIEF EXECUTIVE,STREET TREE CARE LTD,"3,200.00",CAPITAL PS (REGEN),CONSTRUCTION FEES  - EXTERNAL,5902298393,1000055901
10.04.2018,CHIEF EXECUTIVE'S OFFICE,J C CONSULTANT SERVICES LTD,"8,000.00",CHIEF EXEC'S OFFICE,GRANTS,5902298495,1000042476
10.04.2018,CHIEF EXECUTIVE'S OFFICE,J C CONSULTANT SERVICES LTD,"8,500.00",CHIEF EXEC'S OFFICE,GRANTS,5902298487,1000042476
10.04.2018,CHILDREN AND ADULT,KIER CONSTRUCTION LTD,"1,710,704.16",CAPITAL PS (EDUCATION),CONSTRUCTION,2102802420,3000001970
10.04.2018,CHILDREN AND ADULT,GLEEDS ADVISORY LTD,"1,500.00",CAPITAL PS (EDUCATION),CONSTRUCTION FEES  - EXTERNAL,5902298464,1000076155
10.04.2018,CHILDREN AND ADULT,GLEEDS ADVISORY LTD,"1,797.00",CAPITAL PS (EDUCATION),CONSTRUCTION FEES  - EXTERNAL,5902298463,1000076155
10.04.2018,CHILDREN AND ADULT,DAISY COMMUNICATIONS LTD,"5,000.00",CAPITAL PS (STRAT SERV),ICT ACQUISITION,5902298392,1000075666
10.04.2018,CHILDREN'S SERVICES,AIDHOUR LIMITED,"5,120.00",CATCH 22 INNOVATION GRANT,PROFESSIONAL FEES,5902297767,1000057345
10.04.2018,CHILDREN'S SERVICES,REVIVAL,825,CENTRAL SUPPORT,OTHER PAYMENTS FOR CLIENTS,5902298457,1000027424
10.04.2018,CHILDREN'S SERVICES,REDACTED PERSONAL DATA,"2,103.13",SEMI INDEPENDENT,OTHER PAYMENTS FOR CLIENTS,REDACTED,REDACTED
10.04.2018,CHILDREN'S SERVICES,PULSE HEALTHCARE LTD,388.7,SEN TRANSPORT,STATEMENTED FEES,5902298405,1000035063
10.04.2018,CHILDREN'S SERVICES,PULSE HEALTHCARE LTD,388.7,SEN TRANSPORT,STATEMENTED FEES,5902298406,1000035063
10.04.2018,CHILDREN'S SERVICES,PULSE HEALTHCARE LTD,583.05,SEN TRANSPORT,STATEMENTED FEES,5902298410,1000035063
10.04.2018,CHILDREN'S SERVICES,PULSE HEALTHCARE LTD,583.05,SEN TRANSPORT,STATEMENTED FEES,5902298413,1000035063
10.04.2018,COMMUNITIES,RELAKS LTD,"4,116.00",NO RECOURSE TO PUBLIC FUNDS,ACCOMMODATION CHARGES,5902298389,1000054151
10.04.2018,COMMUNITIES,NORBURY PROPERTY SERVICES,"3,131.00",NO RECOURSE TO PUBLIC FUNDS,ACCOMMODATION CHARGES,5902298385,1000075566
10.04.2018,COMMUNITIES,LONDON CARE LTD,"1,294.72",NO RECOURSE TO PUBLIC FUNDS,NATIONAL ASSISTANCE,2102802089,1000003398
10.04.2018,CUSTOMER EXPERIENCE HGF,SOUTHSIDE REHABILITATION ASSN,787.5,CITIZENSHIP,CATERING MATERIALS & SUPPLIES,5902298452,1000017031
10.04.2018,CUSTOMER EXPERIENCE HGF,FRAMA (UK) LTD,700,CORONER'S,POSTAGES,5902298388,1000046489
10.04.2018,CUSTOMER EXPERIENCE HGF,SG PATH LTD,415.8,CORONER'S,PROFESSIONAL FEES,5902298513,1000077883
10.04.2018,CUSTOMER EXPERIENCE HGF,SG PATH LTD,415.8,CORONER'S,PROFESSIONAL FEES,5902298515,1000077883
10.04.2018,CUSTOMER EXPERIENCE HGF,SG PATH LTD,415.8,CORONER'S,PROFESSIONAL FEES,5902298516,1000077883
10.04.2018,CUSTOMER EXPERIENCE HGF,IMPERIAL COLLEGE PROJECTS LTD,408,CORONER'S,PROFESSIONAL FEES,5902298454,1000080106
10.04.2018,CUSTOMER EXPERIENCE HGF,IMPERIAL COLLEGE PROJECTS LTD,484,CORONER'S,PROFESSIONAL FEES,5902298461,1000080106
10.04.2018,CUSTOMER EXPERIENCE HGF,S & G PROPERTIES,"2,232.00",NIGHTLY TA (NSC),EXTERNAL AGENCIES AND BODIES,5902297963,1000005082
10.04.2018,CUSTOMER EXPERIENCE HGF,SOLACE WOMEN'S AID,"6,587.50",NIGHTLY TA (NSC),EXTERNAL AGENCIES AND BODIES,5902298062,1000057231
10.04.2018,CUSTOMER EXPERIENCE HGF,MSR HOUSING,"2,433.50",NIGHTLY TA (NSC),EXTERNAL AGENCIES AND BODIES,5902298437,1000079359
10.04.2018,CUSTOMER EXPERIENCE HGF,RICHARD & DANIELLE PAYNE,"1,060.00",PSL (SOCIAL LETTINGS),EXTERNAL AGENCIES AND BODIES,2102802432,1000080323
10.04.2018,CUSTOMER EXPERIENCE HGF,RICHARD & DANIELLE PAYNE,"3,000.00",PSL (SOCIAL LETTINGS),EXTERNAL AGENCIES AND BODIES,2102802433,1000080323
10.04.2018,ENVIRONMENT AND LEISURE,CONWAY AECOM LTD,"4,062.80",CAPITAL PS (LEISURE),CONSTR'N SUB CONTRACT - NON CERTIFICATED,5902298377,1000071205
10.04.2018,ENVIRONMENT AND LEISURE,CONWAY AECOM LTD,"4,459.78",CAPITAL PS (LEISURE),CONSTR'N SUB CONTRACT - NON CERTIFICATED,5902298370,1000071205
10.04.2018,ENVIRONMENT AND LEISURE,CONWAY AECOM LTD,"33,059.25",CAPITAL PS (LEISURE),CONSTR'N SUB CONTRACT - NON CERTIFICATED,2102802414,3000001595
10.04.2018,ENVIRONMENT AND LEISURE,VALLEY PROVINCIAL GROUP LLP,"24,495.00",CAPITAL PS (LEISURE),CONSTRUCTION FEES  - EXTERNAL,2102802425,3000001895
10.04.2018,ENVIRONMENT DIRECTORATE,C L ROADMARKINGS LTD,"11,159.65",ENGINEERING CRAFTS,OTHER CONTRACTORS,2102802416,3000000825
10.04.2018,ENVIRONMENT DIRECTORATE,IMPERIAL JANITORIAL SUPPLIES LTD,279.58,ESTATE CLEANING-GENERAL,MATERIALS,5902298449,1000038126
10.04.2018,ENVIRONMENT DIRECTORATE,THE T.P. PARTNERSHIP,445,ESTATE CLEANING-GENERAL,OTHER CONTRACTORS,5902298444,1000045906
10.04.2018,ENVIRONMENT DIRECTORATE,LCV HIRE SOLUTIONS LTD,379.5,FLEET INSURANCE WORKS,TRANSPORT INSURANCE COSTS,5902298369,1000071973
10.04.2018,ENVIRONMENT DIRECTORATE,CONWAY AECOM LTD,"2,994.00",FLOOD RISK MANAGEMENT,OTHER CONTRACTORS,5902298384,1000071205
10.04.2018,ENVIRONMENT DIRECTORATE,AGENTIS WORKWEAR LTD,265.5,MANAGEMENT TEAM,"CLOTHING, UNIFORMS & LAUNDRY",5902298400,1000065561
10.04.2018,ENVIRONMENT DIRECTORATE,ELLIOT ENVIRONMENTAL LTD,400,STREET CLEANING-GENERAL,OTHER CONTRACTORS,5902298398,1000047392
10.04.2018,ENVIRONMENT DIRECTORATE,SOUTHWARK NEWSPAPER LTD,264,STREET WORKS OVERHEADS,MARKETING & PUBLICITY SERVICES,5902298383,1556957
10.04.2018,ENVIRONMENT DIRECTORATE,SOUTHWARK NEWSPAPER LTD,276,STREET WORKS OVERHEADS,MARKETING & PUBLICITY SERVICES,5902298381,1556957
10.04.2018,ENVIRONMENT DIRECTORATE,SOUTHWARK NEWSPAPER LTD,276,STREET WORKS OVERHEADS,MARKETING & PUBLICITY SERVICES,5902298382,1556957
10.04.2018,ENVIRONMENT DIRECTORATE,SOUTHWARK NEWSPAPER LTD,312,STREET WORKS OVERHEADS,MARKETING & PUBLICITY SERVICES,5902298379,1556957
10.04.2018,ENVIRONMENT DIRECTORATE,SOUTHWARK NEWSPAPER LTD,396,STREET WORKS OVERHEADS,MARKETING & PUBLICITY SERVICES,5902298380,1556957
10.04.2018,ENVIRONMENT DIRECTORATE,SOUTHWARK NEWSPAPER LTD,408,STREET WORKS OVERHEADS,MARKETING & PUBLICITY SERVICES,5902298386,1556957
10.04.2018,ENVIRONMENT DIRECTORATE,SOUTHWARK NEWSPAPER LTD,408,STREET WORKS OVERHEADS,MARKETING & PUBLICITY SERVICES,5902298387,1556957
10.04.2018,EXTERNAL AFFAIRS,WHATEVER DESIGN LTD,"3,370.00",SOUTHWARK LIFE,MARKETING & PUBLICITY SERVICES,5902298499,1000036500
10.04.2018,EXTERNAL AFFAIRS,LONDON LETTERBOX MARKETING,"8,952.69",SOUTHWARK LIFE,MARKETING & PUBLICITY SERVICES,5902298505,1000044844
10.04.2018,F & C S EXCLUDING CORPORATE BUDGETS,DSI BILLING SERVICES LTD,"1,537.01",ADMINISTRATIVE SUPPORT,POSTAGES,5902298421,1000058640
10.04.2018,F & C S EXCLUDING CORPORATE BUDGETS,MILLMOLL LTD,"1,112.58",CONSTITUTIONAL TEAM,EQUIPMENT PURCHASE & REPAIR,5902298458,1000064335
10.04.2018,F & C S EXCLUDING CORPORATE BUDGETS,AUDITEL RENTAL & SERVICE LTD,"2,605.00",CONSTITUTIONAL TEAM,OP LEASE/HIRE CHARGES:PLANT/EQUIP/FURNIT,5902298462,1000026622
10.04.2018,F & C S EXCLUDING CORPORATE BUDGETS,PURE SOLUTIONS LTD,"4,479.69",CONSTITUTIONAL TEAM,OP LEASE/HIRE CHARGES:PLANT/EQUIP/FURNIT,5902298460,1000043817
10.04.2018,F & C S EXCLUDING CORPORATE BUDGETS,THE CAMDEN SOCIETY (CATERING),498,CONSTITUTIONAL TEAM,REFRESHMENTS FOR MEETINGS,5902298512,1000075365
10.04.2018,FINANCE & GOVERNANCE,STAFFINO,"1,500.00",ADMINISTRATION SUPPORT,SOFTWARE,6101826634,INTERNATIONAL PAYMENT
10.04.2018,HOUSING GENERAL FUND,C & C BUILDERS LTD,410,CAPITAL PS (HOUSING GF),CAPITAL GRANTS,5902298468,1000079100
10.04.2018,HOUSING GENERAL FUND,C & C BUILDERS LTD,410,CAPITAL PS (HOUSING GF),CAPITAL GRANTS,5902298473,1000079100
10.04.2018,HOUSING GENERAL FUND,C & C BUILDERS LTD,410,CAPITAL PS (HOUSING GF),CAPITAL GRANTS,5902298481,1000079100
10.04.2018,HOUSING GENERAL FUND,C & C BUILDERS LTD,410,CAPITAL PS (HOUSING GF),CAPITAL GRANTS,5902298486,1000079100
10.04.2018,HOUSING GENERAL FUND,C & C BUILDERS LTD,"6,785.00",CAPITAL PS (HOUSING GF),CAPITAL GRANTS,5902298468,1000079100
10.04.2018,HOUSING GENERAL FUND,C & C BUILDERS LTD,"7,305.00",CAPITAL PS (HOUSING GF),CAPITAL GRANTS,5902298481,1000079100
10.04.2018,HOUSING GENERAL FUND,C & C BUILDERS LTD,"7,805.00",CAPITAL PS (HOUSING GF),CAPITAL GRANTS,5902298473,1000079100
10.04.2018,HOUSING GENERAL FUND,C & C BUILDERS LTD,"7,890.00",CAPITAL PS (HOUSING GF),CAPITAL GRANTS,5902298486,1000079100
10.04.2018,HOUSING GENERAL FUND,SAFESTORE LTD,565.87,CAPITAL PS (HOUSING GF),CONSTRUCTION,5902298483,1000057677
10.04.2018,HOUSING HRA,M C TECHNICIANS LTD,"3,114.00",CAPITAL PS (HRA),CONST'N MAIN CONTRACT - NON CERTIFICATED,2102802421,3000001164
10.04.2018,HOUSING HRA,CALFORD SEADEN LLP,"8,844.42",CAPITAL PS (HRA),CONSTRUCTION FEES  - EXTERNAL,5902298420,1061592
10.04.2018,HOUSING HRA,HINDWOODS LTD,"1,200.00",CAPITAL PS (HRA),CONSTRUCTION FEES  - EXTERNAL,5902298366,1000044989
10.04.2018,HOUSING HRA,JOHN BURKE ASSOCIATES,"1,280.00",CAPITAL PS (HRA),CONSTRUCTION FEES - INTERNAL,5902298447,1000026411
10.04.2018,HOUSING HRA,JOHN BURKE ASSOCIATES,"2,208.00",CAPITAL PS (HRA),CONSTRUCTION FEES - INTERNAL,5902298446,1000026411
10.04.2018,HOUSING HRA,ENGIE REGENERATION (APOLLO) LTD,"42,994.08",CAPITAL PS (HRA),CONSTRUCTION MAIN CONTRACT -CERTIFICATED,2102802418,4000449
10.04.2018,HOUSING HRA,ENGIE REGENERATION (APOLLO) LTD,"326,393.00",CAPITAL PS (HRA),CONSTRUCTION MAIN CONTRACT -CERTIFICATED,2102802417,4000449
10.04.2018,HOUSING HRA,STANDAGE & CO LTD,"5,870.81",CAPITAL PS (HRA),CONSTRUCTION MAIN CONTRACT -CERTIFICATED,2102802426,4002817
10.04.2018,HOUSING HRA,STANDAGE & CO LTD,"40,462.29",CAPITAL PS (HRA),CONSTRUCTION MAIN CONTRACT -CERTIFICATED,2102802426,4002817
10.04.2018,HOUSING HRA,MORGAN SINDALL PLC,"18,608.00",CAPITAL PS (HRA),CONSTRUCTION MAIN CONTRACT -CERTIFICATED,2102802422,3000001556
10.04.2018,HOUSING HRA,GAS ADVISORY SERVICES LIMITED,"9,267.81",PHOENIX,MANUAL CREDITORS,5902298407,1000064649
10.04.2018,HOUSING HRA,PRB ESTATES LTD,"163,658.81",PRBE,MANUAL CREDITORS,2102802423,3000001691
10.04.2018,HOUSING STRATEGY AND OPTIONS,BRICK BY BRICK,"3,000.00",HOMELESS PROJECTS,GRANTS,5902298364,1000041907
10.04.2018,HOUSING STRATEGY AND OPTIONS,CARIDON LANLORD SOLUTIONS LTD,"1,884.34",HOMELESS PROJECTS,GRANTS,5902298391,1000080555
10.04.2018,HOUSING STRATEGY AND OPTIONS,REDACTED PERSONAL DATA,798.72,HOMELESS PROJECTS,GRANTS,REDACTED,REDACTED
10.04.2018,HOUSING STRATEGY AND OPTIONS,REDACTED PERSONAL DATA,798.72,HOMELESS PROJECTS,GRANTS,REDACTED,REDACTED
10.04.2018,LEISURE DIRECTORATE,BANKSIDE OPEN SPACES TRUST,"11,503.25",ENVIRONMENT & LEISURE GRANTS,OTHER CONTRACTORS,5902298135,1000018290
10.04.2018,LEISURE DIRECTORATE,LONDON WILDLIFE TRUST,"7,619.85",ENVIRONMENT & LEISURE GRANTS,OTHER CONTRACTORS,5902298436,1000031606
10.04.2018,LEISURE DIRECTORATE,THE CONSERVATION VOLUNTEERS,570,PARKS SERVICES DEVELOPMENT,OTHER R&M,5902298419,1872821
10.04.2018,LEISURE DIRECTORATE,THE CONSERVATION VOLUNTEERS,620,PARKS SERVICES DEVELOPMENT,OTHER R&M,5902298419,1872821
10.04.2018,LEISURE DIRECTORATE,THE CONSERVATION VOLUNTEERS,670,PARKS SERVICES DEVELOPMENT,OTHER R&M,5902298419,1872821
10.04.2018,LEISURE DIRECTORATE,PRELUDE PROPERTY SERVICES LTD,"14,590.00",SDM BUDGET,BUILDING R&M,2102802424,4010855
10.04.2018,PUBLIC HEALTH,BELLS GARDEN COMMUNITY CENTRE,600,PHYSICAL ACTIVITY - ADULTS,EXTERNAL AGENCIES AND BODIES,5902298371,1443396
10.04.2018,RESIDENT SERVICES,APCOA PARKING (UK) LTD,"13,071.25",PARKING CONTROL,OTHER CONTRACTORS,5902298402,1718645
10.04.2018,RESIDENT SERVICES,APCOA PARKING (UK) LTD,"43,752.69",PARKING CONTROL,OTHER CONTRACTORS,5902298403,1718645
10.04.2018,RESIDENT SERVICES,KENT COUNTY COUNCIL - LASER,271.87,TA HOSTELS,ELECTRICITY,5902298514,1000012926
10.04.2018,RESIDENT SERVICES,KENT COUNTY COUNCIL - LASER,298.18,TA HOSTELS,ELECTRICITY,5902298503,1000012926
10.04.2018,RESIDENT SERVICES,KENT COUNTY COUNCIL - LASER,462.87,TA HOSTELS,ELECTRICITY,5902298501,1000012926
10.04.2018,RESIDENT SERVICES,KENT COUNTY COUNCIL - LASER,525.13,TA HOSTELS,ELECTRICITY,5902298521,1000012926
10.04.2018,RESIDENT SERVICES,CITYGLEN LTD,490,TA PLACEMENTS,EXTERNAL AGENCIES AND BODIES,5902298394,1000026239
10.04.2018,RESIDENT SERVICES,RS REAL ESTATE LTD,"1,085.00",TA PLACEMENTS,EXTERNAL AGENCIES AND BODIES,5902298390,1000072485
10.04.2018,RESIDENT SERVICES,TAAKSVALE HOUSING LTD,"2,790.00",TA PLACEMENTS,EXTERNAL AGENCIES AND BODIES,5902298373,1000073665
10.04.2018,SOUTHWARK BUILDING SERVICES,INTL FIRE CONSULTANTS LTD,"1,060.00",DEPOT COSTS,PROFESSIONAL FEES,5902298504,1000069495
10.04.2018,SOUTHWARK BUILDING SERVICES,INTL FIRE CONSULTANTS LTD,"1,500.00",DEPOT COSTS,PROFESSIONAL FEES,5902298504,1000069495
10.04.2018,SOUTHWARK BUILDING SERVICES,INTL FIRE CONSULTANTS LTD,"2,650.00",DEPOT COSTS,PROFESSIONAL FEES,5902298506,1000069495
11.04.2018,ADULT SOCIAL CARE,LONDON CARE LTD,470.68,LD LTS 18-64,HOMECARE - C&V,2102803235,1000003398
11.04.2018,ADULT SOCIAL CARE,DARETHEALTHCARE UK LTD,579.18,LD LTS 18-64,HOMECARE - SPOT,2102803333,1000059149
11.04.2018,ADULT SOCIAL CARE,LIFECARE CONSULTING LTD,"2,592.52",LD LTS 65+,HOMECARE - C&V,2102803258,1000061613
11.04.2018,ADULT SOCIAL CARE,LIFECARE CONSULTING LTD,689.5,MEM LTS 18-64,HOMECARE - SPOT,2102803243,1000061613
11.04.2018,ADULT SOCIAL CARE,HUMBLE HEALTH CARE LTD,"2,268.00",MEM LTS 65+,HOMECARE - C&V,2102803226,1000079270
11.04.2018,ADULT SOCIAL CARE,LIFECARE CONSULTING LTD,524.02,MEM LTS 65+,HOMECARE - SPOT,2102803251,1000061613
11.04.2018,ADULT SOCIAL CARE,HUMBLE HEALTH CARE LTD,661.52,MEM LTS 65+,HOMECARE - SPOT,2102803214,1000079270
11.04.2018,ADULT SOCIAL CARE,HUMBLE HEALTH CARE LTD,"1,701.00",MEM LTS 65+,HOMECARE - SPOT,2102803211,1000079270
11.04.2018,ADULT SOCIAL CARE,MIHOMECARE LTD,272.32,MH LTS 18-64,HOMECARE - C&V,2102803324,1000042594
11.04.2018,ADULT SOCIAL CARE,MIHOMECARE LTD,578.68,MH LTS 18-64,HOMECARE - C&V,2102803317,1000042594
11.04.2018,ADULT SOCIAL CARE,MIHOMECARE LTD,953.12,MH LTS 18-64,HOMECARE - C&V,2102803327,1000042594
11.04.2018,ADULT SOCIAL CARE,DARETHEALTHCARE UK LTD,"1,282.62",MH LTS 18-64,HOMECARE - SPOT,2102803341,1000059149
11.04.2018,ADULT SOCIAL CARE,MIHOMECARE LTD,272.32,MH LTS 65+,HOMECARE - C&V,2102803328,1000042594
11.04.2018,ADULT SOCIAL CARE,MIHOMECARE LTD,357.42,MH LTS 65+,HOMECARE - C&V,2102803319,1000042594
11.04.2018,ADULT SOCIAL CARE,MIHOMECARE LTD,510.6,MH LTS 65+,HOMECARE - C&V,2102803323,1000042594
11.04.2018,ADULT SOCIAL CARE,MIHOMECARE LTD,851,MH LTS 65+,HOMECARE - C&V,2102803321,1000042594
11.04.2018,ADULT SOCIAL CARE,MIHOMECARE LTD,"1,327.56",MH LTS 65+,HOMECARE - C&V,2102803326,1000042594
11.04.2018,ADULT SOCIAL CARE,MIHOMECARE LTD,476.56,PHY LTS 18-64,HOMECARE - C&V,2102803320,1000042594
11.04.2018,ADULT SOCIAL CARE,MIHOMECARE LTD,476.56,PHY LTS 18-64,HOMECARE - C&V,2102803325,1000042594
11.04.2018,ADULT SOCIAL CARE,MIHOMECARE LTD,544.64,PHY LTS 18-64,HOMECARE - C&V,2102803322,1000042594
11.04.2018,ADULT SOCIAL CARE,DARETHEALTHCARE UK LTD,341.49,PHY LTS 18-64,HOMECARE - SPOT,2102803338,1000059149
11.04.2018,ADULT SOCIAL CARE,DARETHEALTHCARE UK LTD,"1,303.61",PHY LTS 18-64,HOMECARE - SPOT,2102803339,1000059149
11.04.2018,ADULT SOCIAL CARE,LIFECARE CONSULTING LTD,286.14,PHY LTS 18-64,HOMECARE - SPOT,2102803241,1000061613
11.04.2018,ADULT SOCIAL CARE,LIFECARE CONSULTING LTD,289.59,PHY LTS 18-64,HOMECARE - SPOT,2102803247,1000061613
11.04.2018,ADULT SOCIAL CARE,LIFECARE CONSULTING LTD,361.99,PHY LTS 18-64,HOMECARE - SPOT,2102803276,1000061613
11.04.2018,ADULT SOCIAL CARE,LIFECARE CONSULTING LTD,379.23,PHY LTS 18-64,HOMECARE - SPOT,2102803262,1000061613
11.04.2018,ADULT SOCIAL CARE,LIFECARE CONSULTING LTD,386.12,PHY LTS 18-64,HOMECARE - SPOT,2102803253,1000061613
11.04.2018,ADULT SOCIAL CARE,LIFECARE CONSULTING LTD,455.07,PHY LTS 18-64,HOMECARE - SPOT,2102803281,1000061613
11.04.2018,ADULT SOCIAL CARE,HUMBLE HEALTH CARE LTD,459,PHY LTS 18-64,HOMECARE - SPOT,2102803231,1000079270
11.04.2018,ADULT SOCIAL CARE,HUMBLE HEALTH CARE LTD,580.52,PHY LTS 18-64,HOMECARE - SPOT,2102803216,1000079270
11.04.2018,ADULT SOCIAL CARE,HUMBLE HEALTH CARE LTD,904.52,PHY LTS 18-64,HOMECARE - SPOT,2102803220,1000079270
11.04.2018,ADULT SOCIAL CARE,GREENWRITE HEALTHCARE LTD,330.96,PHY LTS 18-64,HOMECARE - SPOT,2102803302,1000080718
11.04.2018,ADULT SOCIAL CARE,GREENWRITE HEALTHCARE LTD,703.29,PHY LTS 18-64,HOMECARE - SPOT,2102803303,1000080718
11.04.2018,ADULT SOCIAL CARE,GREENWRITE HEALTHCARE LTD,917.03,PHY LTS 18-64,HOMECARE - SPOT,2102803309,1000080718
11.04.2018,ADULT SOCIAL CARE,GREENWRITE HEALTHCARE LTD,"1,868.55",PHY LTS 18-64,HOMECARE - SPOT,2102803304,1000080718
11.04.2018,ADULT SOCIAL CARE,MIHOMECARE LTD,748.88,PHY LTS 65+,HOMECARE - C&V,2102803313,1000042594
11.04.2018,ADULT SOCIAL CARE,MIHOMECARE LTD,885.04,PHY LTS 65+,HOMECARE - C&V,2102803312,1000042594
11.04.2018,ADULT SOCIAL CARE,DARETHEALTHCARE UK LTD,544.97,PHY LTS 65+,HOMECARE - C&V,2102803334,1000059149
11.04.2018,ADULT SOCIAL CARE,LIFECARE CONSULTING LTD,393.02,PHY LTS 65+,HOMECARE - C&V,2102803252,1000061613
11.04.2018,ADULT SOCIAL CARE,LIFECARE CONSULTING LTD,923.93,PHY LTS 65+,HOMECARE - C&V,2102803238,1000061613
11.04.2018,ADULT SOCIAL CARE,HUMBLE HEALTH CARE LTD,"2,187.00",PHY LTS 65+,HOMECARE - C&V,2102803233,1000079270
11.04.2018,ADULT SOCIAL CARE,DARETHEALTHCARE UK LTD,262.16,PHY LTS 65+,HOMECARE - SPOT,2102803332,1000059149
11.04.2018,ADULT SOCIAL CARE,DARETHEALTHCARE UK LTD,586.5,PHY LTS 65+,HOMECARE - SPOT,2102803342,1000059149
11.04.2018,ADULT SOCIAL CARE,DARETHEALTHCARE UK LTD,"1,579.51",PHY LTS 65+,HOMECARE - SPOT,2102803336,1000059149
11.04.2018,ADULT SOCIAL CARE,LIFECARE CONSULTING LTD,275.8,PHY LTS 65+,HOMECARE - SPOT,2102803257,1000061613
11.04.2018,ADULT SOCIAL CARE,LIFECARE CONSULTING LTD,275.8,PHY LTS 65+,HOMECARE - SPOT,2102803278,1000061613
11.04.2018,ADULT SOCIAL CARE,LIFECARE CONSULTING LTD,289.59,PHY LTS 65+,HOMECARE - SPOT,2102803254,1000061613
11.04.2018,ADULT SOCIAL CARE,LIFECARE CONSULTING LTD,337.86,PHY LTS 65+,HOMECARE - SPOT,2102803256,1000061613
11.04.2018,ADULT SOCIAL CARE,LIFECARE CONSULTING LTD,337.86,PHY LTS 65+,HOMECARE - SPOT,2102803269,1000061613
11.04.2018,ADULT SOCIAL CARE,LIFECARE CONSULTING LTD,413.7,PHY LTS 65+,HOMECARE - SPOT,2102803280,1000061613
11.04.2018,ADULT SOCIAL CARE,LIFECARE CONSULTING LTD,489.55,PHY LTS 65+,HOMECARE - SPOT,2102803271,1000061613
11.04.2018,ADULT SOCIAL CARE,LIFECARE CONSULTING LTD,896.35,PHY LTS 65+,HOMECARE - SPOT,2102803263,1000061613
11.04.2018,ADULT SOCIAL CARE,LIFECARE CONSULTING LTD,923.93,PHY LTS 65+,HOMECARE - SPOT,2102803277,1000061613
11.04.2018,ADULT SOCIAL CARE,LIFECARE CONSULTING LTD,"1,096.31",PHY LTS 65+,HOMECARE - SPOT,2102803267,1000061613
11.04.2018,ADULT SOCIAL CARE,LIFECARE CONSULTING LTD,"1,110.10",PHY LTS 65+,HOMECARE - SPOT,2102803272,1000061613
11.04.2018,ADULT SOCIAL CARE,CULTURE CARE AGENCY,367.5,PHY LTS 65+,HOMECARE - SPOT,2102803223,1000062127
11.04.2018,ADULT SOCIAL CARE,HUMBLE HEALTH CARE LTD,283.52,PHY LTS 65+,HOMECARE - SPOT,2102803222,1000079270
11.04.2018,ADULT SOCIAL CARE,HUMBLE HEALTH CARE LTD,567,PHY LTS 65+,HOMECARE - SPOT,2102803234,1000079270
11.04.2018,ADULT SOCIAL CARE,HUMBLE HEALTH CARE LTD,661.52,PHY LTS 65+,HOMECARE - SPOT,2102803209,1000079270
11.04.2018,ADULT SOCIAL CARE,HUMBLE HEALTH CARE LTD,661.52,PHY LTS 65+,HOMECARE - SPOT,2102803218,1000079270
11.04.2018,ADULT SOCIAL CARE,HUMBLE HEALTH CARE LTD,837,PHY LTS 65+,HOMECARE - SPOT,2102803224,1000079270
11.04.2018,ADULT SOCIAL CARE,HUMBLE HEALTH CARE LTD,850.52,PHY LTS 65+,HOMECARE - SPOT,2102803219,1000079270
11.04.2018,ADULT SOCIAL CARE,HUMBLE HEALTH CARE LTD,864,PHY LTS 65+,HOMECARE - SPOT,2102803227,1000079270
11.04.2018,ADULT SOCIAL CARE,HUMBLE HEALTH CARE LTD,"1,309.52",PHY LTS 65+,HOMECARE - SPOT,2102803225,1000079270
11.04.2018,ADULT SOCIAL CARE,HUMBLE HEALTH CARE LTD,"1,701.00",PHY LTS 65+,HOMECARE - SPOT,2102803210,1000079270
11.04.2018,ADULT SOCIAL CARE,HUMBLE HEALTH CARE LTD,"1,701.00",PHY LTS 65+,HOMECARE - SPOT,2102803212,1000079270
11.04.2018,ADULT SOCIAL CARE,HUMBLE HEALTH CARE LTD,"1,701.00",PHY LTS 65+,HOMECARE - SPOT,2102803228,1000079270
11.04.2018,ADULT SOCIAL CARE,HUMBLE HEALTH CARE LTD,"1,755.00",PHY LTS 65+,HOMECARE - SPOT,2102803221,1000079270
11.04.2018,ADULT SOCIAL CARE,HUMBLE HEALTH CARE LTD,"1,795.52",PHY LTS 65+,HOMECARE - SPOT,2102803232,1000079270
11.04.2018,ADULT SOCIAL CARE,HUMBLE HEALTH CARE LTD,"1,802.25",PHY LTS 65+,HOMECARE - SPOT,2102803215,1000079270
11.04.2018,ADULT SOCIAL CARE,HUMBLE HEALTH CARE LTD,"2,160.00",PHY LTS 65+,HOMECARE - SPOT,2102803229,1000079270
11.04.2018,ADULT SOCIAL CARE,GREENWRITE HEALTHCARE LTD,586.07,PHY LTS 65+,HOMECARE - SPOT,2102803300,1000080718
11.04.2018,ADULT SOCIAL CARE,GREENWRITE HEALTHCARE LTD,603.31,PHY LTS 65+,HOMECARE - SPOT,2102803301,1000080718
11.04.2018,ADULT SOCIAL CARE,GREENWRITE HEALTHCARE LTD,"1,175.60",PHY LTS 65+,HOMECARE - SPOT,2102803305,1000080718
11.04.2018,ADULT SOCIAL CARE,GREENWRITE HEALTHCARE LTD,"1,282.47",PHY LTS 65+,HOMECARE - SPOT,2102803308,1000080718
11.04.2018,ADULT SOCIAL CARE,GREENWRITE HEALTHCARE LTD,"1,785.81",PHY LTS 65+,HOMECARE - SPOT,2102803306,1000080718
11.04.2018,ADULT SOCIAL CARE,BUPA CARE HOMES (CHURCH FARM),-917.57,PHY LTS 65+,RESIDENTIAL CARE,2102794933,1000073228
11.04.2018,ADULT SOCIAL CARE,HUMBLE HEALTH CARE LTD,"2,308.52",SOCIAL ISOLATION,HOMECARE - C&V,2102803217,1000079270
11.04.2018,ADULT SOCIAL CARE,LIFECARE CONSULTING LTD,262.01,SOCIAL ISOLATION,HOMECARE - SPOT,2102803274,1000061613
11.04.2018,ADULT SOCIAL CARE,HILL-ROM LTD,"2,965.30",SOUTHWARK RESOURCE CENTRE,EQUIPMENT PURCHASE & REPAIR,5902298609,1000061621
11.04.2018,ADULT SOCIAL CARE,FOCUSED HEALTHCARE LTD,"1,025.28",SPECIALIST CARE,SECTION 17 PAYMENTS TO AGENCIES/CARERS,2102803181,1000069262
11.04.2018,ADULT SOCIAL CARE,FOCUSED HEALTHCARE LTD,"2,209.20",SPECIALIST CARE,SECTION 17 PAYMENTS TO AGENCIES/CARERS,2102803184,1000069262
11.04.2018,ADULT SOCIAL CARE,HOPE HOUSE(SOMERSET),-784,SUB LTS 18-64,PLACEMENTS - REHAB,2102803482,1000035930
11.04.2018,ADULT SOCIAL CARE,HOPE HOUSE(SOMERSET),784,SUB LTS 18-64,PLACEMENTS - REHAB,2102799961,1000035930
11.04.2018,ASSET MANAGEMENT,CERTSURE LLP,455,ENG CONTRACTS,SUBSCRIPTIONS,5902297673,1706379
11.04.2018,ASSET MANAGEMENT,SCS TECHNOLOGIES LTD,"1,533.61",ENG CONTRACTS (NORTH),TV AERIALS R&M,5902298525,1000069919
11.04.2018,CENTRAL FUNCTIONS,THE DULWICH ESTATE,631.22,COMMERCIAL PROPERTIES,SERVICE CHARGES,2102803348,3000036
11.04.2018,CENTRAL FUNCTIONS,EDF ENERGY PLC,368.78,HEATING ACCOUNT,ELECTRICITY,5902298674,1008746
11.04.2018,CENTRAL FUNCTIONS,ELIZABETH SUSAN SINGLETON T/A SINGLELAW,703.33,HOME OWNERSHIP,SUBSCRIPTIONS,5902298637,1000073993
11.04.2018,CHIEF EXECUTIVE,CONWAY AECOM LTD,"10,299.84",CAPITAL PS (REGEN),CONSTR'N SUB CONTRACT - NON CERTIFICATED,5902298619,1000071205
11.04.2018,CHIEF EXECUTIVE,CONWAY AECOM LTD,"5,060.55",CAPITAL PS (REGEN),CONSTRUCTION MAIN CONTRACT,5902298655,1000071205
11.04.2018,CHIEF EXECUTIVE,FAITHFUL & GOULD,"16,000.00",CAPITAL PS (STRAT SERV),CONSTRUCTION FEES - QUANTITY SURVEYOR,5902298672,1000061390
11.04.2018,CHILDREN AND ADULT,RSK ENVIRONMENT LTD,"2,000.00",CAPITAL PS (EDUCATION),CONSTRUCTION FEES - QUANTITY SURVEYOR,5902298627,1000057186
11.04.2018,CHILDREN'S SERVICES,CLIFTON CHILDRENS SOCIETY,"35,146.82",ADOPTION PLACEMENTS & INTER AGENCY,EXTERNAL AGENCIES AND BODIES,5902298120,1000049956
11.04.2018,CHILDREN'S SERVICES,REDACTED PERSONAL DATA,452.64,ADOPTION PLACEMENTS & INTER AGENCY,PAYMENTS TO CARERS,REDACTED,REDACTED
11.04.2018,CHILDREN'S SERVICES,REDACTED PERSONAL DATA,465.52,ADOPTION PLACEMENTS & INTER AGENCY,PAYMENTS TO CARERS,REDACTED,REDACTED
11.04.2018,CHILDREN'S SERVICES,REDACTED PERSONAL DATA,304.64,ADOPTION PLACEMENTS & INTER AGENCY,PAYMENTS TO CARERS,REDACTED,REDACTED
11.04.2018,CHILDREN'S SERVICES,REDACTED PERSONAL DATA,559.06,ADOPTION PLACEMENTS & INTER AGENCY,PAYMENTS TO CARERS,REDACTED,REDACTED
11.04.2018,CHILDREN'S SERVICES,REDACTED PERSONAL DATA,695.04,ADOPTION PLACEMENTS & INTER AGENCY,PAYMENTS TO CARERS,REDACTED,REDACTED
11.04.2018,CHILDREN'S SERVICES,REDACTED PERSONAL DATA,375.54,ADOPTION PLACEMENTS & INTER AGENCY,PAYMENTS TO CARERS,REDACTED,REDACTED
11.04.2018,CHILDREN'S SERVICES,REDACTED PERSONAL DATA,375.54,ADOPTION PLACEMENTS & INTER AGENCY,PAYMENTS TO CARERS,REDACTED,REDACTED
11.04.2018,CHILDREN'S SERVICES,REDACTED PERSONAL DATA,404.46,ADOPTION PLACEMENTS & INTER AGENCY,PAYMENTS TO CARERS,REDACTED,REDACTED
11.04.2018,CHILDREN'S SERVICES,REDACTED PERSONAL DATA,311.34,ADOPTION PLACEMENTS & INTER AGENCY,PAYMENTS TO CARERS,REDACTED,REDACTED
11.04.2018,CHILDREN'S SERVICES,REDACTED PERSONAL DATA,400.84,ADOPTION PLACEMENTS & INTER AGENCY,PAYMENTS TO CARERS,REDACTED,REDACTED
11.04.2018,CHILDREN'S SERVICES,REDACTED PERSONAL DATA,635.34,ADOPTION PLACEMENTS & INTER AGENCY,PAYMENTS TO CARERS,REDACTED,REDACTED
11.04.2018,CHILDREN'S SERVICES,REDACTED PERSONAL DATA,255.22,ADOPTION PLACEMENTS & INTER AGENCY,PAYMENTS TO CARERS,REDACTED,REDACTED
11.04.2018,CHILDREN'S SERVICES,REDACTED PERSONAL DATA,375.54,ADOPTION PLACEMENTS & INTER AGENCY,PAYMENTS TO CARERS,REDACTED,REDACTED
11.04.2018,CHILDREN'S SERVICES,REDACTED PERSONAL DATA,653.06,ADOPTION PLACEMENTS & INTER AGENCY,PAYMENTS TO CARERS,REDACTED,REDACTED
11.04.2018,CHILDREN'S SERVICES,REDACTED PERSONAL DATA,390.26,ADOPTION PLACEMENTS & INTER AGENCY,PAYMENTS TO CARERS,REDACTED,REDACTED
11.04.2018,CHILDREN'S SERVICES,REDACTED PERSONAL DATA,465.54,ADOPTION PLACEMENTS & INTER AGENCY,PAYMENTS TO CARERS,REDACTED,REDACTED
11.04.2018,CHILDREN'S SERVICES,REDACTED PERSONAL DATA,465.54,ADOPTION PLACEMENTS & INTER AGENCY,PAYMENTS TO CARERS,REDACTED,REDACTED
11.04.2018,CHILDREN'S SERVICES,REDACTED PERSONAL DATA,269.22,ADOPTION PLACEMENTS & INTER AGENCY,PAYMENTS TO CARERS,REDACTED,REDACTED
11.04.2018,CHILDREN'S SERVICES,REDACTED PERSONAL DATA,256.54,ADOPTION PLACEMENTS & INTER AGENCY,PAYMENTS TO CARERS,REDACTED,REDACTED
11.04.2018,CHILDREN'S SERVICES,REDACTED PERSONAL DATA,316.5,ADOPTION PLACEMENTS & INTER AGENCY,PAYMENTS TO CARERS,REDACTED,REDACTED
11.04.2018,CHILDREN'S SERVICES,REDACTED PERSONAL DATA,400.84,ADOPTION PLACEMENTS & INTER AGENCY,PAYMENTS TO CARERS,REDACTED,REDACTED
11.04.2018,CHILDREN'S SERVICES,REDACTED PERSONAL DATA,293.26,ADOPTION PLACEMENTS & INTER AGENCY,PAYMENTS TO CARERS,REDACTED,REDACTED
11.04.2018,CHILDREN'S SERVICES,REDACTED PERSONAL DATA,279.26,ADOPTION PLACEMENTS & INTER AGENCY,PAYMENTS TO CARERS,REDACTED,REDACTED
11.04.2018,CHILDREN'S SERVICES,REDACTED PERSONAL DATA,359.44,ADOPTION PLACEMENTS & INTER AGENCY,PAYMENTS TO CARERS,REDACTED,REDACTED
11.04.2018,CHILDREN'S SERVICES,REDACTED PERSONAL DATA,375.54,ADOPTION PLACEMENTS & INTER AGENCY,PAYMENTS TO CARERS,REDACTED,REDACTED
11.04.2018,CHILDREN'S SERVICES,REDACTED PERSONAL DATA,451.8,ADOPTION PLACEMENTS & INTER AGENCY,PAYMENTS TO CARERS,REDACTED,REDACTED
11.04.2018,CHILDREN'S SERVICES,REDACTED PERSONAL DATA,295.3,ADOPTION PLACEMENTS & INTER AGENCY,PAYMENTS TO CARERS,REDACTED,REDACTED
11.04.2018,CHILDREN'S SERVICES,REDACTED PERSONAL DATA,275.1,ADOPTION PLACEMENTS & INTER AGENCY,PAYMENTS TO CARERS,REDACTED,REDACTED
11.04.2018,CHILDREN'S SERVICES,REDACTED PERSONAL DATA,465.48,ADOPTION PLACEMENTS & INTER AGENCY,PAYMENTS TO CARERS,REDACTED,REDACTED
11.04.2018,CHILDREN'S SERVICES,REDACTED PERSONAL DATA,375.54,ADOPTION PLACEMENTS & INTER AGENCY,PAYMENTS TO CARERS,REDACTED,REDACTED
11.04.2018,CHILDREN'S SERVICES,REDACTED PERSONAL DATA,465.54,ADOPTION PLACEMENTS & INTER AGENCY,PAYMENTS TO CARERS,REDACTED,REDACTED
11.04.2018,CHILDREN'S SERVICES,REDACTED PERSONAL DATA,465.54,ADOPTION PLACEMENTS & INTER AGENCY,PAYMENTS TO CARERS,REDACTED,REDACTED
11.04.2018,CHILDREN'S SERVICES,REDACTED PERSONAL DATA,705.24,ADOPTION PLACEMENTS & INTER AGENCY,PAYMENTS TO CARERS,REDACTED,REDACTED
11.04.2018,CHILDREN'S SERVICES,REDACTED PERSONAL DATA,777.36,ADOPTION PLACEMENTS & INTER AGENCY,PAYMENTS TO CARERS,REDACTED,REDACTED
11.04.2018,CHILDREN'S SERVICES,REDACTED PERSONAL DATA,"1,011.20",ADOPTION PLACEMENTS & INTER AGENCY,PAYMENTS TO CARERS,REDACTED,REDACTED
11.04.2018,CHILDREN'S SERVICES,REDACTED PERSONAL DATA,465.54,ADOPTION PLACEMENTS & INTER AGENCY,PAYMENTS TO CARERS,REDACTED,REDACTED
11.04.2018,CHILDREN'S SERVICES,REDACTED PERSONAL DATA,512.02,ADOPTION PLACEMENTS & INTER AGENCY,PAYMENTS TO CARERS,REDACTED,REDACTED
11.04.2018,CHILDREN'S SERVICES,REDACTED PERSONAL DATA,717.14,ADOPTION PLACEMENTS & INTER AGENCY,PAYMENTS TO CARERS,REDACTED,REDACTED
11.04.2018,CHILDREN'S SERVICES,REDACTED PERSONAL DATA,534.54,ADOPTION PLACEMENTS & INTER AGENCY,PAYMENTS TO CARERS,REDACTED,REDACTED
11.04.2018,CHILDREN'S SERVICES,REDACTED PERSONAL DATA,552.16,ADOPTION PLACEMENTS & INTER AGENCY,PAYMENTS TO CARERS,REDACTED,REDACTED
11.04.2018,CHILDREN'S SERVICES,REDACTED PERSONAL DATA,375.54,ADOPTION PLACEMENTS & INTER AGENCY,PAYMENTS TO CARERS,REDACTED,REDACTED
11.04.2018,CHILDREN'S SERVICES,REDACTED PERSONAL DATA,453.24,ADOPTION PLACEMENTS & INTER AGENCY,PAYMENTS TO CARERS,REDACTED,REDACTED
11.04.2018,CHILDREN'S SERVICES,REDACTED PERSONAL DATA,465.52,ADOPTION PLACEMENTS & INTER AGENCY,PAYMENTS TO CARERS,REDACTED,REDACTED
11.04.2018,CHILDREN'S SERVICES,REDACTED PERSONAL DATA,375.54,ADOPTION PLACEMENTS & INTER AGENCY,PAYMENTS TO CARERS,REDACTED,REDACTED
11.04.2018,CHILDREN'S SERVICES,REDACTED PERSONAL DATA,457.14,ADOPTION PLACEMENTS & INTER AGENCY,PAYMENTS TO CARERS,REDACTED,REDACTED
11.04.2018,CHILDREN'S SERVICES,REDACTED PERSONAL DATA,502,ADOPTION PLACEMENTS & INTER AGENCY,PAYMENTS TO CARERS,REDACTED,REDACTED
11.04.2018,CHILDREN'S SERVICES,REDACTED PERSONAL DATA,375.54,ADOPTION PLACEMENTS & INTER AGENCY,PAYMENTS TO CARERS,REDACTED,REDACTED
11.04.2018,CHILDREN'S SERVICES,REDACTED PERSONAL DATA,640.9,ADOPTION PLACEMENTS & INTER AGENCY,PAYMENTS TO CARERS,REDACTED,REDACTED
11.04.2018,CHILDREN'S SERVICES,REDACTED PERSONAL DATA,382.3,ADOPTION PLACEMENTS & INTER AGENCY,PAYMENTS TO CARERS,REDACTED,REDACTED
11.04.2018,CHILDREN'S SERVICES,REDACTED PERSONAL DATA,382.3,ADOPTION PLACEMENTS & INTER AGENCY,PAYMENTS TO CARERS,REDACTED,REDACTED
11.04.2018,CHILDREN'S SERVICES,REDACTED PERSONAL DATA,375.54,ADOPTION PLACEMENTS & INTER AGENCY,PAYMENTS TO CARERS,REDACTED,REDACTED
11.04.2018,CHILDREN'S SERVICES,REDACTED PERSONAL DATA,485.22,ADOPTION PLACEMENTS & INTER AGENCY,PAYMENTS TO CARERS,REDACTED,REDACTED
11.04.2018,CHILDREN'S SERVICES,REDACTED PERSONAL DATA,319.36,ADOPTION PLACEMENTS & INTER AGENCY,PAYMENTS TO CARERS,REDACTED,REDACTED
11.04.2018,CHILDREN'S SERVICES,REDACTED PERSONAL DATA,368.52,ADOPTION PLACEMENTS & INTER AGENCY,PAYMENTS TO CARERS,REDACTED,REDACTED
11.04.2018,CHILDREN'S SERVICES,REDACTED PERSONAL DATA,252.9,ADOPTION PLACEMENTS & INTER AGENCY,PAYMENTS TO CARERS,REDACTED,REDACTED
11.04.2018,CHILDREN'S SERVICES,REDACTED PERSONAL DATA,253.56,ADOPTION PLACEMENTS & INTER AGENCY,PAYMENTS TO CARERS,REDACTED,REDACTED
11.04.2018,CHILDREN'S SERVICES,REDACTED PERSONAL DATA,382.3,ADOPTION PLACEMENTS & INTER AGENCY,PAYMENTS TO CARERS,REDACTED,REDACTED
11.04.2018,CHILDREN'S SERVICES,REDACTED PERSONAL DATA,382.3,ADOPTION PLACEMENTS & INTER AGENCY,PAYMENTS TO CARERS,REDACTED,REDACTED
11.04.2018,CHILDREN'S SERVICES,REDACTED PERSONAL DATA,282.76,ADOPTION PLACEMENTS & INTER AGENCY,PAYMENTS TO CARERS,REDACTED,REDACTED
11.04.2018,CHILDREN'S SERVICES,REDACTED PERSONAL DATA,484.92,ADOPTION PLACEMENTS & INTER AGENCY,PAYMENTS TO CARERS,REDACTED,REDACTED
11.04.2018,CHILDREN'S SERVICES,REDACTED PERSONAL DATA,530,ADOPTION PLACEMENTS & INTER AGENCY,PAYMENTS TO CARERS,REDACTED,REDACTED
11.04.2018,CHILDREN'S SERVICES,REDACTED PERSONAL DATA,908,ADOPTION PLACEMENTS & INTER AGENCY,PAYMENTS TO CARERS,REDACTED,REDACTED
11.04.2018,CHILDREN'S SERVICES,REDACTED PERSONAL DATA,738.32,ADOPTION PLACEMENTS & INTER AGENCY,PAYMENTS TO CARERS,REDACTED,REDACTED
11.04.2018,CHILDREN'S SERVICES,REDACTED PERSONAL DATA,695.12,ADOPTION PLACEMENTS & INTER AGENCY,PAYMENTS TO CARERS,REDACTED,REDACTED
11.04.2018,CHILDREN'S SERVICES,REDACTED PERSONAL DATA,293.98,ADOPTION PLACEMENTS & INTER AGENCY,PAYMENTS TO CARERS,REDACTED,REDACTED
11.04.2018,CHILDREN'S SERVICES,REDACTED PERSONAL DATA,293,ADOPTION PLACEMENTS & INTER AGENCY,PAYMENTS TO CARERS,REDACTED,REDACTED
11.04.2018,CHILDREN'S SERVICES,REDACTED PERSONAL DATA,293,ADOPTION PLACEMENTS & INTER AGENCY,PAYMENTS TO CARERS,REDACTED,REDACTED
11.04.2018,CHILDREN'S SERVICES,REDACTED PERSONAL DATA,652.9,ADOPTION PLACEMENTS & INTER AGENCY,PAYMENTS TO CARERS,REDACTED,REDACTED
11.04.2018,CHILDREN'S SERVICES,REDACTED PERSONAL DATA,652.9,ADOPTION PLACEMENTS & INTER AGENCY,PAYMENTS TO CARERS,REDACTED,REDACTED
11.04.2018,CHILDREN'S SERVICES,REDACTED PERSONAL DATA,854.28,ADOPTION PLACEMENTS & INTER AGENCY,PAYMENTS TO CARERS,REDACTED,REDACTED
11.04.2018,CHILDREN'S SERVICES,REDACTED PERSONAL DATA,712.3,ADOPTION PLACEMENTS & INTER AGENCY,PAYMENTS TO CARERS,REDACTED,REDACTED
11.04.2018,CHILDREN'S SERVICES,REDACTED PERSONAL DATA,767.68,ADOPTION PLACEMENTS & INTER AGENCY,PAYMENTS TO CARERS,REDACTED,REDACTED
11.04.2018,CHILDREN'S SERVICES,REDACTED PERSONAL DATA,510.96,ADOPTION PLACEMENTS & INTER AGENCY,PAYMENTS TO CARERS,REDACTED,REDACTED
11.04.2018,CHILDREN'S SERVICES,REDACTED PERSONAL DATA,682.3,ADOPTION PLACEMENTS & INTER AGENCY,PAYMENTS TO CARERS,REDACTED,REDACTED
11.04.2018,CHILDREN'S SERVICES,REDACTED PERSONAL DATA,682.3,ADOPTION PLACEMENTS & INTER AGENCY,PAYMENTS TO CARERS,REDACTED,REDACTED
11.04.2018,CHILDREN'S SERVICES,REDACTED PERSONAL DATA,588.42,ADOPTION PLACEMENTS & INTER AGENCY,PAYMENTS TO CARERS,REDACTED,REDACTED
11.04.2018,CHILDREN'S SERVICES,REDACTED PERSONAL DATA,"1,053.20",ADOPTION PLACEMENTS & INTER AGENCY,PAYMENTS TO CARERS,REDACTED,REDACTED
11.04.2018,CHILDREN'S SERVICES,REDACTED PERSONAL DATA,261,ADOPTION PLACEMENTS & INTER AGENCY,PAYMENTS TO CARERS,REDACTED,REDACTED
11.04.2018,CHILDREN'S SERVICES,REDACTED PERSONAL DATA,635.34,ADOPTION PLACEMENTS & INTER AGENCY,PAYMENTS TO CARERS,REDACTED,REDACTED
11.04.2018,CHILDREN'S SERVICES,REDACTED PERSONAL DATA,408.78,ADOPTION PLACEMENTS & INTER AGENCY,PAYMENTS TO CARERS,REDACTED,REDACTED
11.04.2018,CHILDREN'S SERVICES,REDACTED PERSONAL DATA,635.34,ADOPTION PLACEMENTS & INTER AGENCY,PAYMENTS TO CARERS,REDACTED,REDACTED
11.04.2018,CHILDREN'S SERVICES,BANYA FAMILY PLACEMENT AGENCY LTD,581.85,AGENCY FOSTERING,EXTERNAL AGENCIES AND BODIES,2102803193,11328315
11.04.2018,CHILDREN'S SERVICES,BANYA FAMILY PLACEMENT AGENCY LTD,581.85,AGENCY FOSTERING,EXTERNAL AGENCIES AND BODIES,2102803195,11328315
11.04.2018,CHILDREN'S SERVICES,BANYA FAMILY PLACEMENT AGENCY LTD,581.85,AGENCY FOSTERING,EXTERNAL AGENCIES AND BODIES,2102803198,11328315
11.04.2018,CHILDREN'S SERVICES,BANYA FAMILY PLACEMENT AGENCY LTD,"1,328.66",AGENCY FOSTERING,EXTERNAL AGENCIES AND BODIES,5902298656,11328315
11.04.2018,CHILDREN'S SERVICES,BANYA FAMILY PLACEMENT AGENCY LTD,"4,072.95",AGENCY FOSTERING,EXTERNAL AGENCIES AND BODIES,2102803196,11328315
11.04.2018,CHILDREN'S SERVICES,COMPASS FOSTERING LONDON LTD,"3,557.10",AGENCY FOSTERING,EXTERNAL AGENCIES AND BODIES,2102803192,1000057908
11.04.2018,CHILDREN'S SERVICES,FAMILY FIRST FOSTERING LTD,"6,864.28",AGENCY FOSTERING,EXTERNAL AGENCIES AND BODIES,2102803194,1000080631
11.04.2018,CHILDREN'S SERVICES,PHS GROUP PLC,"1,105.51",BISHOPS HOUSE EARLY YEARS CENTRE,FURNITURE PURCHASE & REPAIR,5902298612,1851993
11.04.2018,CHILDREN'S SERVICES,DULWICH COLLEGE,"1,200.00",CARE GRPS  1 TO 3,COSTS RECOVERED,5902297870,11308929
11.04.2018,CHILDREN'S SERVICES,UNIVERSITY OF ESSEX,"1,000.00",CARE PRACTICE GROUP SET C,RESIDENTIAL CARE,5902298654,1000055224
11.04.2018,CHILDREN'S SERVICES,ACTIVE RECRUITMENT SEN LTD,"2,660.00",CENTRAL COSTS - SEN,CONTRIBUTION TO PROVISIONS (TP PAYMENTS),5902298630,1000078380
11.04.2018,CHILDREN'S SERVICES,KIDS,500,CENTRAL COSTS - SEN,PROFESSIONAL FEES,5902298635,1000030036
11.04.2018,CHILDREN'S SERVICES,REDACTED PERSONAL DATA,330,DISABILITY & HIV,ADDITIONAL PAYMENTS TO AGENCIES/CARERS,REDACTED,REDACTED
11.04.2018,CHILDREN'S SERVICES,REDACTED PERSONAL DATA,400,DISABILITY & HIV,ADDITIONAL PAYMENTS TO AGENCIES/CARERS,REDACTED,REDACTED
11.04.2018,CHILDREN'S SERVICES,REDACTED PERSONAL DATA,300,DISABILITY & HIV,ADDITIONAL PAYMENTS TO AGENCIES/CARERS,REDACTED,REDACTED
11.04.2018,CHILDREN'S SERVICES,REDACTED PERSONAL DATA,300,DISABILITY & HIV,ADDITIONAL PAYMENTS TO AGENCIES/CARERS,REDACTED,REDACTED
11.04.2018,CHILDREN'S SERVICES,REDACTED PERSONAL DATA,806.08,DISABILITY & HIV,ADDITIONAL PAYMENTS TO AGENCIES/CARERS,REDACTED,REDACTED
11.04.2018,CHILDREN'S SERVICES,REDACTED PERSONAL DATA,300,DISABILITY & HIV,ADDITIONAL PAYMENTS TO AGENCIES/CARERS,REDACTED,REDACTED
11.04.2018,CHILDREN'S SERVICES,REDACTED PERSONAL DATA,260,DISABILITY & HIV,ADDITIONAL PAYMENTS TO AGENCIES/CARERS,REDACTED,REDACTED
11.04.2018,CHILDREN'S SERVICES,REDACTED PERSONAL DATA,300,DISABILITY & HIV,ADDITIONAL PAYMENTS TO AGENCIES/CARERS,REDACTED,REDACTED
11.04.2018,CHILDREN'S SERVICES,REDACTED PERSONAL DATA,533.57,DISABILITY & HIV,OTHER PAYMENTS FOR CLIENTS,REDACTED,REDACTED
11.04.2018,CHILDREN'S SERVICES,REDACTED PERSONAL DATA,888.12,DISABILITY & HIV,PAYMENTS TO CARERS,REDACTED,REDACTED
11.04.2018,CHILDREN'S SERVICES,REDACTED PERSONAL DATA,798.12,DISABILITY & HIV,PAYMENTS TO CARERS,REDACTED,REDACTED
11.04.2018,CHILDREN'S SERVICES,REDACTED PERSONAL DATA,-380.62,DISABILITY & HIV,PAYMENTS TO CARERS,REDACTED,REDACTED
11.04.2018,CHILDREN'S SERVICES,REDACTED PERSONAL DATA,806.08,DISABILITY & HIV,PAYMENTS TO CARERS,REDACTED,REDACTED
11.04.2018,CHILDREN'S SERVICES,REDACTED PERSONAL DATA,888.12,DISABILITY & HIV,PAYMENTS TO CARERS,REDACTED,REDACTED
11.04.2018,CHILDREN'S SERVICES,REDACTED PERSONAL DATA,665.34,DISABILITY & HIV,PAYMENTS TO CARERS,REDACTED,REDACTED
11.04.2018,CHILDREN'S SERVICES,REDACTED PERSONAL DATA,712.3,DISABILITY & HIV,PAYMENTS TO CARERS,REDACTED,REDACTED
11.04.2018,CHILDREN'S SERVICES,REDACTED PERSONAL DATA,712.3,DISABILITY & HIV,PAYMENTS TO CARERS,REDACTED,REDACTED
11.04.2018,CHILDREN'S SERVICES,REDACTED PERSONAL DATA,806.08,DISABILITY & HIV,PAYMENTS TO CARERS,REDACTED,REDACTED
11.04.2018,CHILDREN'S SERVICES,REDACTED PERSONAL DATA,806.08,DISABILITY & HIV,PAYMENTS TO CARERS,REDACTED,REDACTED
11.04.2018,CHILDREN'S SERVICES,REDACTED PERSONAL DATA,"1,700.83",DISABILITY & HIV,PAYMENTS TO CARERS,REDACTED,REDACTED
11.04.2018,CHILDREN'S SERVICES,REDACTED PERSONAL DATA,798.12,DISABILITY & HIV,PAYMENTS TO CARERS,REDACTED,REDACTED
11.04.2018,CHILDREN'S SERVICES,REDACTED PERSONAL DATA,806.08,DISABILITY & HIV,PAYMENTS TO CARERS,REDACTED,REDACTED
11.04.2018,CHILDREN'S SERVICES,REDACTED PERSONAL DATA,806.08,DISABILITY & HIV,PAYMENTS TO CARERS,REDACTED,REDACTED
11.04.2018,CHILDREN'S SERVICES,REDACTED PERSONAL DATA,712.3,DISABILITY & HIV,PAYMENTS TO CARERS,REDACTED,REDACTED
11.04.2018,CHILDREN'S SERVICES,REDACTED PERSONAL DATA,806.08,DISABILITY & HIV,PAYMENTS TO CARERS,REDACTED,REDACTED
11.04.2018,CHILDREN'S SERVICES,REDACTED PERSONAL DATA,806.08,DISABILITY & HIV,PAYMENTS TO CARERS,REDACTED,REDACTED
11.04.2018,CHILDREN'S SERVICES,REDACTED PERSONAL DATA,806.08,DISABILITY & HIV,PAYMENTS TO CARERS,REDACTED,REDACTED
11.04.2018,CHILDREN'S SERVICES,REDACTED PERSONAL DATA,712.3,DISABILITY & HIV,PAYMENTS TO CARERS,REDACTED,REDACTED
11.04.2018,CHILDREN'S SERVICES,REDACTED PERSONAL DATA,806.08,DISABILITY & HIV,PAYMENTS TO CARERS,REDACTED,REDACTED
11.04.2018,CHILDREN'S SERVICES,REDACTED PERSONAL DATA,888.12,DISABILITY & HIV,PAYMENTS TO CARERS,REDACTED,REDACTED
11.04.2018,CHILDREN'S SERVICES,REDACTED PERSONAL DATA,888.12,DISABILITY & HIV,PAYMENTS TO CARERS,REDACTED,REDACTED
11.04.2018,CHILDREN'S SERVICES,REDACTED PERSONAL DATA,798.12,DISABILITY & HIV,PAYMENTS TO CARERS,REDACTED,REDACTED
11.04.2018,CHILDREN'S SERVICES,REDACTED PERSONAL DATA,806.08,DISABILITY & HIV,PAYMENTS TO CARERS,REDACTED,REDACTED
11.04.2018,CHILDREN'S SERVICES,REDACTED PERSONAL DATA,806.08,DISABILITY & HIV,PAYMENTS TO CARERS,REDACTED,REDACTED
11.04.2018,CHILDREN'S SERVICES,REDACTED PERSONAL DATA,858.12,DISABILITY & HIV,PAYMENTS TO CARERS,REDACTED,REDACTED
11.04.2018,CHILDREN'S SERVICES,REDACTED PERSONAL DATA,924.2,DISABILITY & HIV,PAYMENTS TO CARERS,REDACTED,REDACTED
11.04.2018,CHILDREN'S SERVICES,REDACTED PERSONAL DATA,682.3,DISABILITY & HIV,PAYMENTS TO CARERS,REDACTED,REDACTED
11.04.2018,CHILDREN'S SERVICES,REDACTED PERSONAL DATA,798.12,DISABILITY & HIV,PAYMENTS TO CARERS,REDACTED,REDACTED
11.04.2018,CHILDREN'S SERVICES,REDACTED PERSONAL DATA,712.3,DISABILITY & HIV,PAYMENTS TO CARERS,REDACTED,REDACTED
11.04.2018,CHILDREN'S SERVICES,REDACTED PERSONAL DATA,"1,633.46",DISABILITY & HIV,PAYMENTS TO CARERS,REDACTED,REDACTED
11.04.2018,CHILDREN'S SERVICES,REDACTED PERSONAL DATA,665.34,DISABILITY & HIV,PAYMENTS TO CARERS,REDACTED,REDACTED
11.04.2018,CHILDREN'S SERVICES,REDACTED PERSONAL DATA,712.3,DISABILITY & HIV,PAYMENTS TO CARERS,REDACTED,REDACTED
11.04.2018,CHILDREN'S SERVICES,REDACTED PERSONAL DATA,712.3,DISABILITY & HIV,PAYMENTS TO CARERS,REDACTED,REDACTED
11.04.2018,CHILDREN'S SERVICES,REDACTED PERSONAL DATA,991.48,DISABILITY & HIV,PAYMENTS TO CARERS,REDACTED,REDACTED
11.04.2018,CHILDREN'S SERVICES,REDACTED PERSONAL DATA,798.12,DISABILITY & HIV,PAYMENTS TO CARERS,REDACTED,REDACTED
11.04.2018,CHILDREN'S SERVICES,REDACTED PERSONAL DATA,888.12,DISABILITY & HIV,PAYMENTS TO CARERS,REDACTED,REDACTED
11.04.2018,CHILDREN'S SERVICES,REDACTED PERSONAL DATA,798.12,DISABILITY & HIV,PAYMENTS TO CARERS,REDACTED,REDACTED
11.04.2018,CHILDREN'S SERVICES,REDACTED PERSONAL DATA,888.12,DISABILITY & HIV,PAYMENTS TO CARERS,REDACTED,REDACTED
11.04.2018,CHILDREN'S SERVICES,REDACTED PERSONAL DATA,798.12,DISABILITY & HIV,PAYMENTS TO CARERS,REDACTED,REDACTED
11.04.2018,CHILDREN'S SERVICES,REDACTED PERSONAL DATA,-342.05,DISABILITY & HIV,PAYMENTS TO CARERS,REDACTED,REDACTED
11.04.2018,CHILDREN'S SERVICES,REDACTED PERSONAL DATA,888.12,DISABILITY & HIV,PAYMENTS TO CARERS,REDACTED,REDACTED
